{"text_format":"1","workbook":"xlsx","n_sheets":32,"sheets":["GC ING08","MEC LICENCE10","MEC MASTER12","GC MASTER11","GC LICENCE10","GC MASTER12","EAI LICENCE10","EAI MASTER12","EAI MASTER11","MAT MASTER11","MAT MASTER12","MAT LICENCE10","DGPI LICENCE10","MI LICENCE10","DGPI MASTER11","ENV MASTER12","TA LICENCE10","TA MASTER12","TA MASTER11","MI MASTER11","MI MASTER12","EN LICENCE10","EN MASTER11","EN MASTER12","TC S31","TC S32","TC S34","TC S35","TC S36","TC S38","TC S39","TC S310"],"not_rendered":{"charts":0,"images":0,"macros":1,"external_links":2,"defined_names":137,"comments":0,"pivot_tables":0},"unopened":[],"bounds":{"document_bytes":16777216,"sheet_cells":100000,"rows_first":2000,"rows_last":500,"rows_between":2000,"halvings":0,"cell_chars":16384,"cell_head_chars":4096},"cells_cut":0,"cells_raw":0,"read":"whole","date_system":"1900"}

{"sheet":"GC ING08","index":0,"n_rows":36,"n_cols":14,"rows_kept":36,"cut":false,"hidden":false,"merged":[[0,9,0,13],[33,0,35,0],[3,0,8,0],[9,0,14,0],[0,0,0,1],[21,0,26,0],[15,0,20,0],[27,0,32,0]]}
["Departement:",null,null,null,null,"MECANIQUE",null,null,null,"Spécialite:const-fab-stru-chaudronnerie"]
[null,"Section:",null,null,null,"MASTER 2ème année",null,null,null,{"$f":"NOW()","v":"2018-09-09T13:48:19.280"}]
["Jour","SEANCES","MCM-17","Enseignant","Salle","MCM17","MFMP17","Enseignant","Salle","MFMP17","MOCP17","Enseignant","Salle","MOCP17"]
["Dimanche","8h 00                     9h 30",null,null,null,null,"BUREAU DES METHODES©","TOURAB","B417","BUREAU DES METHODES© TOURAB B417"]
[null,"9h 40                 11h 10","TECH-SOUDAGE©","BOUTOUTAOU","C310","TECH-SOUDAGE© BOUTOUTAOU C310","BUREAU DES METHODES(TD)","TOURAB","B417","BUREAU DES METHODES(TD) TOURAB B417","DAO-CAO(TP)","CHALLALI","A26","DAO-CAO(TP) CHALLALI A26"]
[null,"11h20                 12h 50"]
[null,"13h 00              14h 30","TURBOMACHINES©","BRAHIMI","B311","TURBOMACHINES© BRAHIMI B311","BUREAU DES METHODES(TP)","TOURAB","A15","BUREAU DES METHODES(TP) TOURAB A15","ANGLAIS©","MEGHARI","A12","ANGLAIS© MEGHARI A12"]
[null,"14h 40              16h 10","MATERIAUX(TD)","AITSAADA","B38","MATERIAUX(TD) AITSAADA B38",null,null,null,null,"EXPLOIT-LOG(TD)","MANSER","AB12","EXPLOIT-LOG(TD) MANSER AB12"]
[null,"16h 20              17h 50"]
["Lundi","8h 00                    9h 30","BUREAU DES METHODES©","TALHI","B313","BUREAU DES METHODES© TALHI B313","M-D-R FATIGUE©","LECHEB","RC13","M-D-R FATIGUE© LECHEB RC13","EXPLOIT-LOG©","DELLALI","X","EXPLOIT-LOG© DELLALI X"]
[null,"9h 40                  11h 10","BUREAU DES METHODES(TP)","TALHI","B313","BUREAU DES METHODES(TP) TALHI B313","M-D-R FATIGUE(TD)","LECHEB","RC13","M-D-R FATIGUE(TD) LECHEB RC13","EXPLOIT-LOG(TP);CND(TP)","DELLALI;LADDADA","X;X","EXPLOIT-LOG(TP) DELLALI X\nCND(TP) LADDADA X"]
[null,"11h20                12h 50",null,null,null,null,"C-N-D©","LECHEB","A24","C-N-D© LECHEB A24","EXPLOIT-LOG(TP);CND(TP)","DELLALI;LADDADA","X;X","EXPLOIT-LOG(TP) DELLALI X\nCND(TP) LADDADA X"]
[null,"13h 00              14h 30","M-D-R-FATIGUE©","LECHEB","RC14","M-D-R-FATIGUE© LECHEB RC14"]
[null,"14h 40              16h 10","M-D-R-FATIGUE(TD)","LECHEB","RC14","M-D-R-FATIGUE(TD) LECHEB RC14"]
[null,"16h 20              17h 50"]
["Mardi","8h 00                    9h 30","DYNAM-MACH-TOURNANTES©","NOUR","RC13","DYNAM-MACH-TOURNANTES© NOUR RC13","USINAG-SURF-GAUCHE©","BELAIDI-I","C37","USINAG-SURF-GAUCHE© BELAIDI-I C37"]
[null,"9h 40                 11h 10","MATERIAUX©","AITSAADA","A13","MATERIAUX© AITSAADA A13","USINAGE  A GRANDE VITESSE©","BELAIDI-I","C37","USINAGE  A GRANDE VITESSE© BELAIDI-I C37","CND©","IFRAH","B418","CND© IFRAH B418"]
[null,"11h20                12h 50",null,null,null,null,null,null,null,null,"CND(TD)","IFRAH","B418","CND(TD) IFRAH B418"]
[null,"13h 00              14h 30","LOGICIEL-SIMUL-NUM-MEE(TP)","MECHAKRA","A26","LOGICIEL-SIMUL-NUM-MEE(TP) MECHAKRA A26","TECHNIQUE DE SOUDAGE(TP)","BOUZIANE","ATFM","TECHNIQUE DE SOUDAGE(TP) BOUZIANE ATFM"]
[null,"14h 40              16h 10",null,null,null,null,"TECHNIQUE DE SOUDAGE(TP)","BOUZIANE","ATFM","TECHNIQUE DE SOUDAGE(TP) BOUZIANE ATFM","INSTRUMENT ET MESURE©","HACHEMANE","B418","INSTRUMENT ET MESURE© HACHEMANE B418"]
[null,"16h 20              17h 50"]
["Mercredi","8h 00                    9h 30","MATER-COMPOSITES©","MECHAKRA","C37","MATER-COMPOSITES© MECHAKRA C37","DYN-MACH-TOUR©","NOUR","RC13","DYN-MACH-TOUR© NOUR RC13"]
[null,"9h 40                 11h 10","MATER-COMPOSITES(TD)","MECHAKRA","C37","MATER-COMPOSITES(TD) MECHAKRA C37","DYN-MACH-TOUR(TD)","NOUR","RC13","DYN-MACH-TOUR(TD) NOUR RC13","BUREAUX METH©","RAGUEB","AP1","BUREAUX METH© RAGUEB AP1"]
[null,"11h20                12h 50","RECHERCHE-DOC-CON-MEM©","ALEM","AP4","RECHERCHE-DOC-CON-MEM© ALEM AP4","RECHERCHE-DOC-CON-MEM©","ALEM","AP4","RECHERCHE-DOC-CON-MEM© ALEM AP4","BUREAUX METH(TD)","RAGUEB","AP1","BUREAUX METH(TD) RAGUEB AP1"]
[null,"13h 00              14h 30","TURBOMACHINES(TP)","BRAHIMI","RC13","TURBOMACHINES(TP) BRAHIMI RC13","USINAG-SURF-GAUCHE(TD)","BELAIDI-I","C37","USINAG-SURF-GAUCHE(TD) BELAIDI-I C37"]
[null,"14h 40              16h 10",null,null,null,null,null,null,null,null,"INSTRUMENT ET MESURE©","HACHEMANE","A16","INSTRUMENT ET MESURE© HACHEMANE A16"]
[null,"16h 20              17h 50"]
["Jeudi","8h 00                     9h 30","DYNAM-MACH-TOURNANTES©","NOUR","A14","DYNAM-MACH-TOURNANTES© NOUR A14",null,null,null,null,"DAO-CAO©","CHALLALI","B210","DAO-CAO© CHALLALI B210"]
[null,"9h 40                  11h 10","MANAGEMENT©","GUERRACHE","C48","MANAGEMENT© GUERRACHE C48","MANAGEMENT©","GUERRACHE","C48","MANAGEMENT© GUERRACHE C48","INSTRUMENT ET MESURE©","HACHEMANE","C37","INSTRUMENT ET MESURE© HACHEMANE C37"]
[null,"11h20                 12h 50","CHARP-METALLIQUE©","MESKINE","C48","CHARP-METALLIQUE© MESKINE C48",null,null,null,null,"HSE©","IFRAH","C37","HSE© IFRAH C37"]
[null,"13h 00              14h 30",null,null,null,null,"MOL-ING-PLASTIC©","CHALLALI","C310","MOL-ING-PLASTIC© CHALLALI C310","HSE(TD)","IFRAH","C37","HSE(TD) IFRAH C37"]
[null,"14h 40              16h 10",null,null,null,null,"MOL-ING-PLASTIC(TP)","CHALLALI","C310","MOL-ING-PLASTIC(TP) CHALLALI C310"]
[null,"16h 20              17h 50"]
["Samedi","8h 00                     9h 30"]
[null,"9h 40                  11h 10"]
[null,"11h20                 12h 50"]

{"sheet":"MEC LICENCE10","index":1,"n_rows":36,"n_cols":18,"rows_kept":36,"cut":false,"hidden":false,"merged":[[0,0,0,5],[21,0,26,0],[27,0,32,0],[33,0,35,0],[3,0,8,0],[9,0,14,0],[15,0,20,0]]}
["Dep:G-Mécanique",null,null,null,null,null,null,null,null,"Filière:Construction Mécanique",null,null,null,"Spécialite:Construction Mécanique"]
[null,"Section:",null,null,null,"Licence 3ème année",null,null,null,{"$f":"NOW()","v":"2018-09-09T13:48:19.280"}]
["Jour","SEANCES","LCM-16/A","Enseignant","Salle","LCM-16/A","LCM-16/B","Enseignant","Salle","LCM-16/B","LCM-16/C","Enseignant","Salle","LCM-16/C","LCM-14/D","Enseignant","Salle","LCM-14/D"]
["Dimanche","8h 00                     9h 30","DESSIN(TP)","MAIZA","AT23","DESSIN(TP) MAIZA AT23",null,null,null,null,null,null,null,null,"CFAO(TP)","XX","XX","CFAO(TP) XX XX"]
[null,"9h 40                 11h 10","DESSIN(TP)","MAIZA","AT23","DESSIN(TP) MAIZA AT23",null,null,null,null,"CONSTR-MEC(TD)","BOUDIEB","A22","CONSTR-MEC(TD) BOUDIEB A22","CFAO(TP)","XX","XX","CFAO(TP) XX XX"]
[null,"11h20                 12h 50",null,null,null,null,"CONSTR-MEC(TD)","BOUDIEB","C49","CONSTR-MEC(TD) BOUDIEB C49"]
[null,"13h 00              14h 30","CONSTR MEC©","BOUDIEB","AP3","CONSTR MEC© BOUDIEB AP3","CONSTR MEC©","BOUDIEB","AP3","CONSTR MEC© BOUDIEB AP3","CONSTR MEC©","BOUDIEB","AP3","CONSTR MEC© BOUDIEB AP3","MEC ANALYTIQUE©","XX","XX","MEC ANALYTIQUE© XX XX"]
[null,"14h 40              16h 10","ENVR ET DEVLOPP DURABLE©","LADJANI","AP3","ENVR ET DEVLOPP DURABLE© LADJANI AP3","ENVR ET DEVLOPP DURABLE©","LADJANI","AP3","ENVR ET DEVLOPP DURABLE© LADJANI AP3","ENVR ET DEVLOPP DURABLE©","LADJANI","AP3","ENVR ET DEVLOPP DURABLE© LADJANI AP3","CONSTR MEC©","XX","XX","CONSTR MEC© XX XX"]
[null,"16h 20              17h 50"]
["Lundi","8h 00                    9h 30","MEC ANALYTIQUE©","HEDEILI-F","AP3","MEC ANALYTIQUE© HEDEILI-F AP3","MEC ANALYTIQUE©","HEDEILI-F","AP3","MEC ANALYTIQUE© HEDEILI-F AP3","MEC ANALYTIQUE©","HEDEILI-F","AP3","MEC ANALYTIQUE© HEDEILI-F AP3","RESIST DES MATR©","XX","XX","RESIST DES MATR© XX XX"]
[null,"9h 40                  11h 10","ASSERV ET REGULAT©","BOUMEDINE","AP3","ASSERV ET REGULAT© BOUMEDINE AP3","ASSERV ET REGULAT©","BOUMEDINE","AP3","ASSERV ET REGULAT© BOUMEDINE AP3","ASSERV ET REGULAT©","BOUMEDINE","AP3","ASSERV ET REGULAT© BOUMEDINE AP3","MEC ANALYTIQUE©","XX","XX","MEC ANALYTIQUE© XX XX"]
[null,"11h20                12h 50"]
[null,"13h 00              14h 30","ELASTICITE(TD)","DJOUAD","B41","ELASTICITE(TD) DJOUAD B41","DESSIN(TP)","MAIZA","AT24","DESSIN(TP) MAIZA AT24","CFAO(TP)","HAMRANI","RC9/B","CFAO(TP) HAMRANI RC9/B","MEC ANALYTIQUE(TD)","XX","XX","MEC ANALYTIQUE(TD) XX XX"]
[null,"14h 40              16h 10",null,null,null,null,"DESSIN(TP)","MAIZA","AT24","DESSIN(TP) MAIZA AT24","CFAO(TP)","HAMRANI","RC9/B","CFAO(TP) HAMRANI RC9/B"]
[null,"16h 20              17h 50"]
["Mardi","8h 00                    9h 30","ELASTICITE©","DJOUAD","AP1","ELASTICITE© DJOUAD AP1","ELASTICITE©","DJOUAD","AP1","ELASTICITE© DJOUAD AP1","ELASTICITE©","DJOUAD","AP1","ELASTICITE© DJOUAD AP1","DESSIN(TP)","XX","XX","DESSIN(TP) XX XX"]
[null,"9h 40                 11h 10","RESIST DES MATR(TD)","CHIKH","C49","RESIST DES MATR(TD) CHIKH C49","ELASTICITE(TD)","DJOUAD","C42","ELASTICITE(TD) DJOUAD C42",null,null,null,null,"DESSIN(TP)","XX","XX","DESSIN(TP) XX XX"]
[null,"11h20                12h 50",null,null,null,null,null,null,null,null,null,null,null,null,"ELASTICITE©","XX","XX","ELASTICITE© XX XX"]
[null,"13h 00              14h 30","MAINTENANCE©","HEDEILI-F","AP1","MAINTENANCE© HEDEILI-F AP1","MAINTENANCE©","HEDEILI-F","AP1","MAINTENANCE© HEDEILI-F AP1","MAINTENANCE©","HEDEILI-F","AP1","MAINTENANCE© HEDEILI-F AP1"]
[null,"14h 40              16h 10","RESIST DES MATR©","CHIKH","AP1","RESIST DES MATR© CHIKH AP1","RESIST DES MATR©","CHIKH","AP1","RESIST DES MATR© CHIKH AP1","RESIST DES MATR©","CHIKH","AP1","RESIST DES MATR© CHIKH AP1","MAINTENANCE©","XX","XX","MAINTENANCE© XX XX"]
[null,"16h 20              17h 50"]
["Mercredi","8h 00                    9h 30","MEC ANALYTIQUE(TD)","HEDEILI-N","B36","MEC ANALYTIQUE(TD) HEDEILI-N B36","CFAO(TP)","HAMRANI","AB12","CFAO(TP) HAMRANI AB12","METROLOGIE(TP)","CHALLA","ATFMS","METROLOGIE(TP) CHALLA ATFMS"]
[null,"9h 40                 11h 10",null,null,null,null,"CFAO(TP)","HAMRANI","AB12","CFAO(TP) HAMRANI AB12","METROLOGIE(TP)","CHALLA","ATFMS","METROLOGIE(TP) CHALLA ATFMS"]
[null,"11h20                12h 50","CONSTR MEC(TD)","BOUDIEB","A21","CONSTR MEC(TD) BOUDIEB A21",null,null,null,null,"RESIST DES MATR(TD)","CHIKH","A14","RESIST DES MATR(TD) CHIKH A14"]
[null,"13h 00              14h 30","CFAO(TP)","HAMRANI","A26","CFAO(TP) HAMRANI A26","RESIST DES MATR(TD)","CHIKH","A22","RESIST DES MATR(TD) CHIKH A22","MEC ANALYTIQUE(TD)","HEDEILI-N","A13","MEC ANALYTIQUE(TD) HEDEILI-N A13","CONSTR MEC(TD)","XX","XX","CONSTR MEC(TD) XX XX"]
[null,"14h 40              16h 10","CFAO(TP)","HAMRANI","A26","CFAO(TP) HAMRANI A26","MEC ANALYTIQUE(TD)","HEDEILI-N","A21","MEC ANALYTIQUE(TD) HEDEILI-N A21",null,null,null,null,"R-D-M(TD)","XX","XX","R-D-M(TD) XX XX"]
[null,"16h 20              17h 50"]
["Jeudi","8h 00                     9h 30","MEC ANALYTIQUE©","HEDEILI-F","AP1","MEC ANALYTIQUE© HEDEILI-F AP1","MEC ANALYTIQUE©","HEDEILI-F","AP1","MEC ANALYTIQUE© HEDEILI-F AP1","MEC ANALYTIQUE©","HEDEILI-F","AP1","MEC ANALYTIQUE© HEDEILI-F AP1","ENVR ET DEVLOPP DURABLE©","XX","XX","ENVR ET DEVLOPP DURABLE© XX XX"]
[null,"9h 40                  11h 10","METROLOGIE(TP)","CHALLA","ATFMS","METROLOGIE(TP) CHALLA ATFMS",null,null,null,null,null,null,null,null,"ASSERV ET REGULAT©","XX","XX","ASSERV ET REGULAT© XX XX"]
[null,"11h20                 12h 50","METROLOGIE(TP)","CHALLA","ATFMS","METROLOGIE(TP) CHALLA ATFMS",null,null,null,null,"ELASTICITE(TD)","DJOUAD","A22","ELASTICITE(TD) DJOUAD A22"]
[null,"13h 00              14h 30",null,null,null,null,"METROLOGIE(TP)","CHALLA","ATFMS","METROLOGIE(TP) CHALLA ATFMS","DESSIN(TP)","MAIZA","AT23","DESSIN(TP) MAIZA AT23"]
[null,"14h 40              16h 10",null,null,null,null,"METROLOGIE(TP)","CHALLA","ATFMS","METROLOGIE(TP) CHALLA ATFMS","DESSIN(TP)","MAIZA","AT23","DESSIN(TP) MAIZA AT23"]
[null,"16h 20              17h 50"]
["Samedi","8h 00                     9h 30"]
[null,"9h 40                  11h 10",null,null,null,null,null,null,null,null,null,null,null,null,"METROLOGIE(TP)","XX","XX","METROLOGIE(TP) XX XX"]
[null,"11h20                 12h 50",null,null,null,null,null,null,null,null,null,null,null,null,"ELASTICITE(TD)","XX","XX","ELASTICITE(TD) XX XX"]

{"sheet":"MEC MASTER12","index":2,"n_rows":36,"n_cols":18,"rows_kept":36,"cut":false,"hidden":false,"merged":[[33,0,35,0],[0,0,0,1],[3,0,8,0],[9,0,14,0],[15,0,20,0],[21,0,26,0],[27,0,32,0]]}
["Filière:génie  mécanique",null,null,null,null,null,null,null,null,"Spécialité:Construction-fabrication",null,null,null,"structure mecanique",null,null,null,"chaudronnerie"]
[null,"Section:",null,null,null,"Mastre 1ère année",null,null,null,{"$f":"NOW()","v":"2018-09-09T13:48:19.280"}]
["Jour","SEANCES","MCM-18","Enseignant","Salle","MCM-18","MFMP-18","Enseignant","Salle","MFMP-18","MOCP18","Enseignant","Salle","MOCP18"]
["Dimanche","8h 00                     9h 30","MOTEUR A COND©","MERAH","C48","MOTEUR A COND© MERAH C48","MATERIAUX©","AITSAADA","B310","MATERIAUX© AITSAADA B310"]
[null,"9h 40                 11h 10","MOTEUR A COND(TD)","MERAH","C48","MOTEUR A COND(TD) MERAH C48","MATERIAUX(TD)","AITSAADA","B310","MATERIAUX(TD) AITSAADA B310"]
[null,"11h20                 12h 50",null,null,null,null,"ANGLAIS©","MEGHARI","B310","ANGLAIS© MEGHARI B310","TUYAUTRIE I©","REGUEB","C43","TUYAUTRIE I© REGUEB C43"]
[null,"13h 00              14h 30","RDM(TP);MDF(TP)","BELHADEF;BAHLOUL","AT13;RC7","RDM(TP) BELHADEF AT13\nMDF(TP) BAHLOUL RC7",null,null,null,null,"CHAUDRONNERIR I©","CHEBAB","C43","CHAUDRONNERIR I© CHEBAB C43"]
[null,"14h 40              16h 10","RDM(TP);MDF(TP)","BELHADEF;BAHLOUL","AT13;RC7","RDM(TP) BELHADEF AT13\nMDF(TP) BAHLOUL RC7",null,null,null,null,"CHAUDRONNERIR I(TD)","CHEBAB","C43","CHAUDRONNERIR I(TD) CHEBAB C43"]
[null,"16h 20              17h 50"]
["Lundi","8h 00                    9h 30",null,null,null,null,"COUP DES METAUX©","CHALLALI","C37","COUP DES METAUX© CHALLALI C37","SOUDAGE©","BOUTOUTAOU","B212","SOUDAGE© BOUTOUTAOU B212"]
[null,"9h 40                  11h 10",null,null,null,null,"COUP DES METAUX(TD)","CHALLALI","C37","COUP DES METAUX(TD) CHALLALI C37","ELEMENTS FINIS ET PROGR©","BOUTOUTAOU","B212","ELEMENTS FINIS ET PROGR© BOUTOUTAOU B212"]
[null,"11h20                12h 50","TECH-FAB-COND-AV©","BELAIDI-I","X","TECH-FAB-COND-AV© BELAIDI-I X",null,null,null,null,"TUYAUTRIE I(TD)","REGUEB","B212","TUYAUTRIE I(TD) REGUEB B212"]
[null,"13h 00              14h 30","MAINT-INDUST©","BENAMMAR","AP4","MAINT-INDUST© BENAMMAR AP4","MAINT-INDUST©","BENAMMAR","AP4","MAINT-INDUST© BENAMMAR AP4"]
[null,"14h 40              16h 10","HYGIENE-SECURITE-IND","RAGUEB","X","HYGIENE-SECURITE-IND RAGUEB X","H-S-I©","REGUEB","B39","H-S-I© REGUEB B39","SOUDAGE(TD)","BOUTOUTAOU","B213","SOUDAGE(TD) BOUTOUTAOU B213"]
[null,"16h 20              17h 50"]
["Mardi","8h 00                    9h 30","DY-FLUIDES-APP©","MERAH","B414","DY-FLUIDES-APP© MERAH B414","M-M-C©","BENSAFIA","B313","M-M-C© BENSAFIA B313","PLASTICITE©","HEDEILI-N","B212","PLASTICITE© HEDEILI-N B212"]
[null,"9h 40                 11h 10","DY-FLUIDES-APP(TD)","MERAH","B312","DY-FLUIDES-APP(TD) MERAH B312","M-M-C(TD)","BENSAFIA","B313","M-M-C(TD) BENSAFIA B313","PLASTICITE(TD)","HEDEILI-N","B212","PLASTICITE(TD) HEDEILI-N B212"]
[null,"11h20                12h 50",null,null,null,null,null,null,null,null,"M-D-R©","HACHEMANE","B212","M-D-R© HACHEMANE B212"]
[null,"13h 00              14h 30","R-D-M-A©","CHIKH","B38","R-D-M-A© CHIKH B38"]
[null,"14h 40              16h 10","M-M-C©","BENSAFIA","B36","M-M-C© BENSAFIA B36"]
[null,"16h 20              17h 50"]
["Mercredi","8h 00                    9h 30","R-D-M(TD)","CHIKH","B38","R-D-M(TD) CHIKH B38","PROCEDES M-E-F©","BENDJEDDOU","C49","PROCEDES M-E-F© BENDJEDDOU C49","ELEMENTS FINIS ET PROGR©","BOUTOUTAOU","B212","ELEMENTS FINIS ET PROGR© BOUTOUTAOU B212"]
[null,"9h 40                 11h 10","M-M-C©","BENSAFIA","B36","M-M-C© BENSAFIA B36","MACHINES OUTILS©","BENDJEDDOU","C49","MACHINES OUTILS© BENDJEDDOU C49","SOUDAGE©","BOUTOUTAOU","B212","SOUDAGE© BOUTOUTAOU B212"]
[null,"11h20                12h 50","M-M-C(TD)","BENSAFIA","B36","M-M-C(TD) BENSAFIA B36"]
[null,"13h 00              14h 30",null,null,null,null,"FABR-MEC-METROL(TP);METROLOGIE(TP)","BELLAL;CHALLA","ATFM;ATFMS","FABR-MEC-METROL(TP) BELLAL ATFM\nMETROLOGIE(TP) CHALLA ATFMS","M-D-R(TD) ","HACHEMANE","C43","M-D-R(TD)  HACHEMANE C43"]
[null,"14h 40              16h 10","ANGLAIS©","MEGHARI","B32","ANGLAIS© MEGHARI B32","FABR-MEC-METROL(TP);METROLOGIE(TP)","BELLAL;CHALLA","ATFM;ATFMS","FABR-MEC-METROL(TP) BELLAL ATFM\nMETROLOGIE(TP) CHALLA ATFMS","ELEMENTS FINIS ET PROGR(TD) ","BOUTOUTAOU","C43","ELEMENTS FINIS ET PROGR(TD)  BOUTOUTAOU C43"]
[null,"16h 20              17h 50"]
["Jeudi","8h 00                     9h 30","TECH-FAB-COND-AV(TP)","BELLAL+HALFAOUI","FM","TECH-FAB-COND-AV(TP) BELLAL+HALFAOUI FM","PROCEDES M-E-F(TD)","BENDJEDDOU","A13","PROCEDES M-E-F(TD) BENDJEDDOU A13"]
[null,"9h 40                  11h 10","TECH-FAB-COND-AV(TP)","BELLAL+HALFAOUI","FM","TECH-FAB-COND-AV(TP) BELLAL+HALFAOUI FM","ROBOTIQUE-INDUST©","HEDEILI-F","A13","ROBOTIQUE-INDUST© HEDEILI-F A13","DYN DES STRUCTURES II©","HAMRANI","AP1","DYN DES STRUCTURES II© HAMRANI AP1"]
[null,"11h20                 12h 50",null,null,null,null,"ROBOTIQUE INDUST(TP)","HEDEILI-F","A13","ROBOTIQUE INDUST(TP) HEDEILI-F A13","DYN DES STRUCTURES II(TD)","HAMRANI","AP1","DYN DES STRUCTURES II(TD) HAMRANI AP1"]
[null,"13h 00              14h 30","AUTO-SYST-INDUST©","SEMMOUD","B42","AUTO-SYST-INDUST© SEMMOUD B42"]
[null,"14h 40              16h 10","AUTO-SYST-INDUST(TP)","SEMMOUD","B42","AUTO-SYST-INDUST(TP) SEMMOUD B42"]
[null,"16h 20              17h 50"]
["Samedi","8h 00                     9h 30"]
[null,"9h 40                  11h 10"]
[null,"11h20                 12h 50"]

{"sheet":"GC MASTER11","index":3,"n_rows":36,"n_cols":18,"rows_kept":36,"cut":false,"hidden":false,"merged":[[33,0,35,0],[3,0,8,0],[9,0,14,0],[0,0,0,1],[15,0,20,0],[21,0,26,0],[27,0,32,0]]}
["Departement:",null,null,null,null,"génie civil"]
[null,"Section:",null,null,null,"Master 2ème année",null,null,null,{"$f":"NOW()","v":"2018-09-09T13:48:19.280"}]
["Jour","SEANCES","MGC17-ST","Enseignant","Salle","MGC17-ST","MGC17-GO","Enseignant","Salle","MGC17-GO","MGC17-P/A","Enseignant","Salle","MGC17-P/A","MGC17-P/B","Enseignant","Salle","MGC17-P/B"]
["Dimanche","8h 00                     9h 30",null,null,null,null,"STAB-SOL-PROB©","LAZALI","B48","STAB-SOL-PROB© LAZALI B48"]
[null,"9h 40                 11h 10","GENIE PARASISMIQUE©","SERIDI","B32","GENIE PARASISMIQUE© SERIDI B32","STABILITE-SOL-PROB(TP)","LAZALI","B48","STABILITE-SOL-PROB(TP) LAZALI B48","INGENIERIE FONDATIONS©","BERKANI","AP5","INGENIERIE FONDATIONS© BERKANI AP5","INGENIERIE FONDATIONS©","BERKANI","AP5","INGENIERIE FONDATIONS© BERKANI AP5"]
[null,"11h20                 12h 50","PLASTICITE-ENDOM©","HAMADOUCHE","B36","PLASTICITE-ENDOM© HAMADOUCHE B36","STABILITE-SOL-PROB(TP)","LAZALI","B48","STABILITE-SOL-PROB(TP) LAZALI B48","CONSTR-MET(TD)","LABDAOUI","B415","CONSTR-MET(TD) LABDAOUI B415","INGENIERIE FONDATIONS(TD)","BERKANI","B41","INGENIERIE FONDATIONS(TD) BERKANI B41"]
[null,"13h 00              14h 30","PLASTICITE-ENDOM(TD)","HAMADOUCHE","B36","PLASTICITE-ENDOM(TD) HAMADOUCHE B36",null,null,null,null,"ELEMENT FINISII(TD)","MEGHOUCHE","B419","ELEMENT FINISII(TD) MEGHOUCHE B419"]
[null,"14h 40              16h 10",null,null,null,null,null,null,null,null,null,null,null,null,"ELEMENT FINIS(TD)","MEGHOUCHE","B419","ELEMENT FINIS(TD) MEGHOUCHE B419"]
[null,"16h 20              17h 50"]
["Lundi","8h 00                    9h 30","GENIE PARASISMIQUE(TD)","SERIDI","B32","GENIE PARASISMIQUE(TD) SERIDI B32","PATHO-OUV-GEO©","LAZALI+BELARBI","X","PATHO-OUV-GEO© LAZALI+BELARBI X","BETON PRECONTRAIT(TD)","CHEBBOUT","B415","BETON PRECONTRAIT(TD) CHEBBOUT B415","CAL-STRUCT-ASSIST PAR ORD©","BEDDIAR","RC9/B","CAL-STRUCT-ASSIST PAR ORD© BEDDIAR RC9/B"]
[null,"9h 40                  11h 10","BETON PRECONTRAINT©","CHEBBOUT","B32","BETON PRECONTRAINT© CHEBBOUT B32","CAL-RUP-ANAL-LIM©","HAMADOUCHE","B48","CAL-RUP-ANAL-LIM© HAMADOUCHE B48","CAL-STRUCT-ASSIST PAR ORD©","BEDDIAR","RC9/B","CAL-STRUCT-ASSIST PAR ORD© BEDDIAR RC9/B"]
[null,"11h20                12h 50","RISQUE NATURELS©","HAMZA","B39","RISQUE NATURELS© HAMZA B39","CAL-RUP-ANAL-LIM(TD)","HAMADOUCHE","B48","CAL-RUP-ANAL-LIM(TD) HAMADOUCHE B48","BETON PRECONTRAIT©","CHEBBOUT","B417","BETON PRECONTRAIT© CHEBBOUT B417","BETON PRECONTRAIT©","CHEBBOUT","B417","BETON PRECONTRAIT© CHEBBOUT B417"]
[null,"13h 00              14h 30","BETON PRECONTRAINT(TD)","CHEBBOUT","B38","BETON PRECONTRAINT(TD) CHEBBOUT B38"]
[null,"14h 40              16h 10"]
[null,"16h 20              17h 50"]
["Mardi","8h 00                    9h 30","OUVRAGE SPECIAUX©","BEDDIAR","B31","OUVRAGE SPECIAUX© BEDDIAR B31","SYST-INFOR-GE(TP)","BEDHOUCHE","A27","SYST-INFOR-GE(TP) BEDHOUCHE A27","BETON PRECONTRAIT©","CHEBBOUT","X","BETON PRECONTRAIT© CHEBBOUT X","BETON PRECONTRAIT(TD)","CHEBBOUT","X","BETON PRECONTRAIT(TD) CHEBBOUT X"]
[null,"9h 40                 11h 10","OUVRAGE SPECIAUX(TD)","BEDDIAR","B31","OUVRAGE SPECIAUX(TD) BEDDIAR B31",null,null,null,null,null,null,null,null,"BETON PRECONTRAIT©","CHEBBOUT","X","BETON PRECONTRAIT© CHEBBOUT X"]
[null,"11h20                12h 50","BETON PRECONTRAINT©","CHEBBOUT","X","BETON PRECONTRAINT© CHEBBOUT X","NOTION-CONSTR-CIVIL-INDUST©","BEDAOUI","C48","NOTION-CONSTR-CIVIL-INDUST© BEDAOUI C48"]
[null,"13h 00              14h 30",null,null,null,null,"DY-OUV-GEO©","MESSAFER","C45","DY-OUV-GEO© MESSAFER C45","CONSTR-MET©","LABDAOUI","B416","CONSTR-MET© LABDAOUI B416"]
[null,"14h 40              16h 10",null,null,null,null,"DY-OUV-GEO(TD)","MESSAFER","C45","DY-OUV-GEO(TD) MESSAFER C45"]
[null,"16h 20              17h 50"]
["Mercredi","8h 00                    9h 30","PROJET-STRUCT-BET-ARME©","CHALLA-L","B32","PROJET-STRUCT-BET-ARME© CHALLA-L B32","TUNNELS-OUV-SOUT©","MESSAFER","A13","TUNNELS-OUV-SOUT© MESSAFER A13","ORG DES CHANTIERS©","BERKANI","B418","ORG DES CHANTIERS© BERKANI B418","ORG DES CHANTIERS©","BERKANI","B418","ORG DES CHANTIERS© BERKANI B418"]
[null,"9h 40                 11h 10",null,null,null,null,"TUNNELS-OUV-SOUT(TD)","MESSAFER","A15","TUNNELS-OUV-SOUT(TD) MESSAFER A15","ELEMENT FINIS©","KADRI","B418","ELEMENT FINIS© KADRI B418","ELEMENT FINIS©","KADRI","B418","ELEMENT FINIS© KADRI B418"]
[null,"11h20                12h 50","MODELISATION STRUCTURE(TP);PROJET-STRUCT-BET-ARME(TP)","MEGHOUCHE;CHALLA-L","B417;B419","MODELISATION STRUCTURE(TP) MEGHOUCHE B417\nPROJET-STRUCT-BET-ARME(TP) CHALLA-L B419"]
[null,"13h 00              14h 30","MODELISATION STRUCTURE(TP);PROJET-STRUCT-BET-ARME(TP)","MEGHOUCHE;CHALLA-L","B416;B419","MODELISATION STRUCTURE(TP) MEGHOUCHE B416\nPROJET-STRUCT-BET-ARME(TP) CHALLA-L B419","SYST-INFOR-GE©","BEDHOUCHE","B48","SYST-INFOR-GE© BEDHOUCHE B48"]
[null,"14h 40              16h 10",null,null,null,null,"BARRAGES-EN-TERR©","MESSAFER","B48","BARRAGES-EN-TERR© MESSAFER B48"]
[null,"16h 20              17h 50"]
["Jeudi","8h 00                     9h 30","RECH-DOC-CONCEPT-MEM©","KAB","B44","RECH-DOC-CONCEPT-MEM© KAB B44","RECH-DOC-CONCEPT-MEM©","KAB","B44","RECH-DOC-CONCEPT-MEM© KAB B44",null,null,null,null,"CONSTR-MET©","LABDAOUI","B35","CONSTR-MET© LABDAOUI B35"]
[null,"9h 40                  11h 10",null,null,null,null,"GEOSTATISTIQUE©","MESSAFER","B311","GEOSTATISTIQUE© MESSAFER B311",null,null,null,null,"CONSTR-MET(TD)","LABDAOUI","B44","CONSTR-MET(TD) LABDAOUI B44"]
[null,"11h20                 12h 50",null,null,null,null,"GEOSTATISTIQUE(TD)","MESSAFER","B311","GEOSTATISTIQUE(TD) MESSAFER B311","INGENIERIE FONDATIONS(TD)","BERKANI","B413","INGENIERIE FONDATIONS(TD) BERKANI B413"]
[null,"13h 00              14h 30",null,null,null,null,null,null,null,null,"INGENIERIE FONDATIONS©","BERKANI","B213","INGENIERIE FONDATIONS© BERKANI B213","INGENIERIE FONDATIONS©","BERKANI","B213","INGENIERIE FONDATIONS© BERKANI B213"]
[null,"14h 40              16h 10"]
[null,"16h 20              17h 50"]
["Samedi","8h 00                     9h 30"]
[null,"9h 40                  11h 10"]
[null,"11h20                 12h 50"]

{"sheet":"GC LICENCE10","index":4,"n_rows":36,"n_cols":18,"rows_kept":36,"cut":false,"hidden":false,"merged":[[33,0,34,0],[3,0,8,0],[9,0,14,0],[0,0,0,1],[21,0,26,0],[15,0,20,0],[27,0,32,0]]}
["Departement:",null,null,null,null,"génie civil",null,null,null,"Filière:G-civil",null,null,null,"Spécialite:G-civil",null,null,null,{"$f":"NOW()","v":"2018-09-09T13:48:19.280"}]
[{"$f":"TODAY()","v":"2018-09-09"},"Section:",null,null,null,"Licence 3ème année"]
["Jour","SEANCES","LGC-16/A","Enseignant","Salle","LGC-16/A","LGC-16/B","Enseignant","Salle","LGC-16/B","LGC-16/C","Enseignant","Salle","LGC-16/C","LGC-16/D","Enseignant","Salle","LGC-16/D"]
["Dimanche","8h 00                     9h 30",null,null,null,null,null,null,null,null,"M-D-S(TD)","SANDJAK","B415","M-D-S(TD) SANDJAK B415"]
[null,"9h 40                 11h 10","RESISTANCE DES MATERIAUXII©","BOUDJELOUD","AP3","RESISTANCE DES MATERIAUXII© BOUDJELOUD AP3","RESISTANCE DES MATERIAUXII©","BOUDJELOUD","AP3","RESISTANCE DES MATERIAUXII© BOUDJELOUD AP3","RESISTANCE DES MATERIAUXII©","BOUDJELOUD","AP3","RESISTANCE DES MATERIAUXII© BOUDJELOUD AP3","RESISTANCE DES MATERIAUXII©","BOUDJELOUD","AP3","RESISTANCE DES MATERIAUXII© BOUDJELOUD AP3"]
[null,"11h20                 12h 50","R-D-MII(TD)","BOUDJELOUD","B31","R-D-MII(TD) BOUDJELOUD B31"]
[null,"13h 00              14h 30",null,null,null,null,"R-D-MII(TD)","BOUDJELOUD","B31","R-D-MII(TD) BOUDJELOUD B31","MDC(TP)","X+CHAID","C08","MDC(TP) X+CHAID C08","MDS(TP)","BERKANI","C05","MDS(TP) BERKANI C05"]
[null,"14h 40              16h 10",null,null,null,null,null,null,null,null,"MDS(TP)","BERKANI","C05","MDS(TP) BERKANI C05","MDC(TP)","X+CHAID","C08","MDC(TP) X+CHAID C08"]
[null,"16h 20              17h 50"]
["Lundi","8h 00                    9h 30",null,null,null,null,null,null,null,null,null,null,null,null,"M-D-S(TD)","SANDJAK","B41","M-D-S(TD) SANDJAK B41"]
[null,"9h 40                  11h 10",null,null,null,null,"BETON ARME(TD)","GAHER","B39","BETON ARME(TD) GAHER B39"]
[null,"11h20                12h 50",null,null,null,null,null,null,null,null,null,null,null,null,"BETON ARME(TD)","GAHER","B313","BETON ARME(TD) GAHER B313"]
[null,"13h 00              14h 30","BETON ARME©","GAHER","AP3","BETON ARME© GAHER AP3","BETON ARME©","GAHER","AP3","BETON ARME© GAHER AP3","BETON ARME©","GAHER","AP3","BETON ARME© GAHER AP3","BETON ARME©","GAHER","AP3","BETON ARME© GAHER AP3"]
[null,"14h 40              16h 10"]
[null,"16h 20              17h 50"]
["Mardi","8h 00                    9h 30"]
[null,"9h 40                 11h 10","TECHNIQUES ET REGLES DE CONSTRUCTION©","BEDAOUI","AP2","TECHNIQUES ET REGLES DE CONSTRUCTION© BEDAOUI AP2","TECHNIQUES ET REGLES DE CONSTRUCTION©","BEDAOUI","AP2","TECHNIQUES ET REGLES DE CONSTRUCTION© BEDAOUI AP2","TECHNIQUES ET REGLES DE CONSTRUCTION©","BEDAOUI","AP2","TECHNIQUES ET REGLES DE CONSTRUCTION© BEDAOUI AP2","CHARPENTE METTALIQUE©","BEDAOUI","AP2","CHARPENTE METTALIQUE© BEDAOUI AP2"]
[null,"11h20                12h 50","NORMES ET REGLEMENT©","BEDHOUCHE","AP2","NORMES ET REGLEMENT© BEDHOUCHE AP2","NORMES ET REGLEMENT©","BEDHOUCHE","AP2","NORMES ET REGLEMENT© BEDHOUCHE AP2","NORMES ET REGLEMENT©","BEDHOUCHE","AP2","NORMES ET REGLEMENT© BEDHOUCHE AP2","NORMES ET REGLEMENT©","BEDHOUCHE","AP2","NORMES ET REGLEMENT© BEDHOUCHE AP2"]
[null,"13h 00              14h 30",null,null,null,null,null,null,null,null,"CHARP-METALIQ(TD)","BEDAOUI","B36","CHARP-METALIQ(TD) BEDAOUI B36"]
[null,"14h 40              16h 10","HYDROLIQUE GEN©","DAIMALLAH","AP4","HYDROLIQUE GEN© DAIMALLAH AP4","HYDROLIQUE GEN©","DAIMALLAH","AP4","HYDROLIQUE GEN© DAIMALLAH AP4","HYDROLIQUE GEN©","DAIMALLAH","AP4","HYDROLIQUE GEN© DAIMALLAH AP4","HYDROLIQUE GEN©","DAIMALLAH","AP4","HYDROLIQUE GEN© DAIMALLAH AP4"]
[null,"16h 20              17h 50"]
["Mercredi","8h 00                    9h 30","[SP]DESSIN(TP)","BELARBI","B47","[SP]DESSIN(TP) BELARBI B47","[SI]DESSIN-BTP(TP)","BELARBI","B47","[SI]DESSIN-BTP(TP) BELARBI B47"]
[null,"9h 40                 11h 10","[SP]DESSIN(TP)","BELARBI","B47","[SP]DESSIN(TP) BELARBI B47","[SI]DESSIN-BTP(TP)","BELARBI","B47","[SI]DESSIN-BTP(TP) BELARBI B47",null,null,null,null,"R-D-MII(TD)","BOUDJELOUD","B311","R-D-MII(TD) BOUDJELOUD B311"]
[null,"11h20                12h 50",null,null,null,null,null,null,null,null,"R-D-MII(TD)","BOUDJELOUD","B311","R-D-MII(TD) BOUDJELOUD B311"]
[null,"13h 00              14h 30","MAT DE CONSTRUCTION©","CHAID","AP3","MAT DE CONSTRUCTION© CHAID AP3","MAT DE CONSTRUCTION©","CHAID","AP3","MAT DE CONSTRUCTION© CHAID AP3","MAT DE CONSTRUCTION©","CHAID","AP3","MAT DE CONSTRUCTION© CHAID AP3","MAT DE CONSTRUCTION©","CHAID","AP3","MAT DE CONSTRUCTION© CHAID AP3"]
[null,"14h 40              16h 10","TOPOGRAPHIE©","BELARBI","AP3","TOPOGRAPHIE© BELARBI AP3","TOPOGRAPHIE©","BELARBI","AP3","TOPOGRAPHIE© BELARBI AP3","TOPOGRAPHIE©","BELARBI","AP3","TOPOGRAPHIE© BELARBI AP3","TOPOGRAPHIE©","BELARBI","AP3","TOPOGRAPHIE© BELARBI AP3"]
[null,"16h 20              17h 50"]
["Jeudi","8h 00                     9h 30","CHARP-METALIQ(TD)","BEDAOUI","B42","CHARP-METALIQ(TD) BEDAOUI B42",null,null,null,null,"[SI]DESSIN(TP)","BELARBI","AT22","[SI]DESSIN(TP) BELARBI AT22","[SP]DESSIN(TP)","BELARBI","AT22","[SP]DESSIN(TP) BELARBI AT22"]
[null,"9h 40                  11h 10","BETON ARME(TD)","GAHER","B42","BETON ARME(TD) GAHER B42","CHARP-METALIQ(TD)","BEDAOUI","B313","CHARP-METALIQ(TD) BEDAOUI B313","[SI]DESSIN(TP)","BELARBI","AT22","[SI]DESSIN(TP) BELARBI AT22","[SP]DESSIN(TP)","BELARBI","AT22","[SP]DESSIN(TP) BELARBI AT22"]
[null,"11h20                 12h 50",null,null,null,null,null,null,null,null,"BETON ARME(TD)","GAHER","B44","BETON ARME(TD) GAHER B44","CHARP-METALIQ(TD)","BEDAOUI","B417","CHARP-METALIQ(TD) BEDAOUI B417"]
[null,"13h 00              14h 30","MDC(TP)","GHERNOUTI-H+X","C08","MDC(TP) GHERNOUTI-H+X C08","MDS(TP)","BEDHOUCHE","C08","MDS(TP) BEDHOUCHE C08"]
[null,"14h 40              16h 10","MDS(TP)","BEDHOUCHE","C08","MDS(TP) BEDHOUCHE C08","MDC(TP)","GHERNOUTI-H+X","C08","MDC(TP) GHERNOUTI-H+X C08"]
[null,"16h 20              17h 50"]
["Samedi","8h 00                     9h 30","MECANIQUE DES SOLSII©","SANDJAK","AP4","MECANIQUE DES SOLSII© SANDJAK AP4","MECANIQUE DES SOLSII©","SANDJAK","AP4","MECANIQUE DES SOLSII© SANDJAK AP4","MECANIQUE DES SOLSII©","SANDJAK","AP4","MECANIQUE DES SOLSII© SANDJAK AP4","MECANIQUE DES SOLSII©","SANDJAK","AP4","MECANIQUE DES SOLSII© SANDJAK AP4"]
[null,"9h 40                  11h 10","M-D-S(TD)","SANDJAK","B415","M-D-S(TD) SANDJAK B415"]
[null,"11h20                 12h 50",null,null,null,null,"M-D-S(TD)","SANDJAK","B415","M-D-S(TD) SANDJAK B415"]

{"sheet":"GC MASTER12","index":5,"n_rows":36,"n_cols":18,"rows_kept":36,"cut":false,"hidden":false,"merged":[[33,0,35,0],[0,0,0,1],[3,0,8,0],[9,0,14,0],[15,0,20,0],[21,0,26,0],[27,0,32,0]]}
["Filière:génie civil",null,null,null,null,"Spécialité:",null,null,null,"structures-geotechnique"]
[null,"Section:",null,null,null,"Master 1ème année",null,null,null,null,null,null,null,{"$f":"NOW()","v":"2018-09-09T13:48:19.280"}]
["Jour","SEANCES","MGCP18/A","Enseignant","Salle","MGCP18/A","MGCP18/B","Enseignant","Salle","MGCP18/B","MGCP18-GE","Enseignant","Salle","MGCP18-GE","MGC18-ST","Enseignant","Salle","MGC18-ST"]
["Dimanche","8h 00                     9h 30","D-D-S©","MEZAZIGH","B419","D-D-S© MEZAZIGH B419","D-D-S©","MEZAZIGH","B419","D-D-S© MEZAZIGH B419","D-D-SI©","SERIDI","B39","D-D-SI© SERIDI B39","COMP-PROGRAMMATION(TP)","NADIR","RC9/A","COMP-PROGRAMMATION(TP) NADIR RC9/A"]
[null,"9h 40                 11h 10",null,null,null,null,null,null,null,null,"GEOTECH ROUTIERE©","SANDJAK","B413","GEOTECH ROUTIERE© SANDJAK B413","STRUCTURES METALIQUE©","LABDAOUI","B39","STRUCTURES METALIQUE© LABDAOUI B39"]
[null,"11h20                 12h 50","CONCEPT-TECH-BAT©","DJAALALI","B419","CONCEPT-TECH-BAT© DJAALALI B419","CONCEPT-TECH-BAT©","DJAALALI","B419","CONCEPT-TECH-BAT© DJAALALI B419","M-M-C©","KADRI","B418","M-M-C© KADRI B418"]
[null,"13h 00              14h 30",null,null,null,null,null,null,null,null,null,null,null,null,"STRUCTURES EN B-A©","DJAALALI","B35","STRUCTURES EN B-A© DJAALALI B35"]
[null,"14h 40              16h 10",null,null,null,null,null,null,null,null,"ALEA ET RISQUE GEOT©","LAZALI","B415","ALEA ET RISQUE GEOT© LAZALI B415","STRUCTURES METALIQUE(TD)","LABDAOUI","B35","STRUCTURES METALIQUE(TD) LABDAOUI B35"]
[null,"16h 20              17h 50"]
["Lundi","8h 00                    9h 30","ELASTICITE©","ABED-ZIANE","B417","ELASTICITE© ABED-ZIANE B417","ELASTICITE©","ABED-ZIANE","B417","ELASTICITE© ABED-ZIANE B417",null,null,null,null,"D-D-S©","MEZAZIGH","A11","D-D-S© MEZAZIGH A11"]
[null,"9h 40                  11h 10","ELASTICITE©","ABED-ZIANE","B417","ELASTICITE© ABED-ZIANE B417","ELASTICITE©","ABED-ZIANE","B417","ELASTICITE© ABED-ZIANE B417","D-D-SI(TD)","SERIDI","B415","D-D-SI(TD) SERIDI B415"]
[null,"11h20                12h 50","ELASTICITE(TD)","ABED-ZIANE","B419","ELASTICITE(TD) ABED-ZIANE B419",null,null,null,null,"TECH-ROUTIERE(TP)","SANDJAK","B414","TECH-ROUTIERE(TP) SANDJAK B414","D-D-S(TD)","MEZAZIGH","A13","D-D-S(TD) MEZAZIGH A13"]
[null,"13h 00              14h 30",null,null,null,null,"ELASTICITE(TD)","ABED-ZIANE","B419","ELASTICITE(TD) ABED-ZIANE B419","FONDATION©","LAZALI","X","FONDATION© LAZALI X","BATIMENT©","BEDDIAR","B31","BATIMENT© BEDDIAR B31"]
[null,"14h 40              16h 10",null,null,null,null,"D-D-S(TD)","MEZAZIGH","B419","D-D-S(TD) MEZAZIGH B419","FONDATION(TD)","LAZALI","X","FONDATION(TD) LAZALI X","BATIMENT©","BEDDIAR","B31","BATIMENT© BEDDIAR B31"]
[null,"16h 20              17h 50"]
["Mardi","8h 00                    9h 30","M-D-S©","TOUKAL","B37","M-D-S© TOUKAL B37","M-D-S©","TOUKAL","B37","M-D-S© TOUKAL B37","M-M-C©","KADRI","B310","M-M-C© KADRI B310","ANGLAIS©","HADDADI","B42","ANGLAIS© HADDADI B42"]
[null,"9h 40                 11h 10","M-D-S-II©","KECHOUANE","B37","M-D-S-II© KECHOUANE B37","M-D-S-II©","KECHOUANE","B37","M-D-S-II© KECHOUANE B37","ESSAI GEOTHECNIQUES(TP)","BEDHOUCHE","C05","ESSAI GEOTHECNIQUES(TP) BEDHOUCHE C05","STRUCT METTALIQUE©","LABDAOUI","B42","STRUCT METTALIQUE© LABDAOUI B42"]
[null,"11h20                12h 50","M-D-S-II(TD)","KECHOUANE","B313","M-D-S-II(TD) KECHOUANE B313","M-D-S(TD)","TOUKAL","B37","M-D-S(TD) TOUKAL B37","M-M-C(TD)","RAHLI","B32","M-M-C(TD) RAHLI B32"]
[null,"13h 00              14h 30","M-D-S(TD)","TOUKAL","B32","M-D-S(TD) TOUKAL B32"]
[null,"14h 40              16h 10",null,null,null,null,null,null,null,null,"ANGLAIS©","HADDADI","B32","ANGLAIS© HADDADI B32"]
[null,"16h 20              17h 50"]
["Mercredi","8h 00                    9h 30","M-D-S©","TOUKAL","B416","M-D-S© TOUKAL B416","M-D-S©","TOUKAL","B416","M-D-S© TOUKAL B416",null,null,null,null,"METH EXPRIMENTAL(TP)","GHERNOUTI-H","B48","METH EXPRIMENTAL(TP) GHERNOUTI-H B48"]
[null,"9h 40                 11h 10","M-D-S-II©","KECHOUANE","AP4","M-D-S-II© KECHOUANE AP4","M-D-S-II©","KECHOUANE","AP4","M-D-S-II© KECHOUANE AP4","HYDROLOGIES©","BENMOUHOUB","B48","HYDROLOGIES© BENMOUHOUB B48","M-D-S©","TOUKAL","B38","M-D-S© TOUKAL B38"]
[null,"11h20                12h 50",null,null,null,null,"M-D-S-II(TD)","KECHOUANE","B38","M-D-S-II(TD) KECHOUANE B38","TALLS ET SOUTENEMENT©","HAMZA","B37","TALLS ET SOUTENEMENT© HAMZA B37","MEC DES STRUCTURE(TD)","TOUKAL","B35","MEC DES STRUCTURE(TD) TOUKAL B35"]
[null,"13h 00              14h 30","D-D-S©","MEZAZIGH","B418","D-D-S© MEZAZIGH B418","D-D-S©","MEZAZIGH","B418","D-D-S© MEZAZIGH B418","TALLS ET SOUTENEMENT(TD)","HAMZA","B37","TALLS ET SOUTENEMENT(TD) HAMZA B37"]
[null,"14h 40              16h 10","D-D-S(TD)","MEZAZIGH","B47","D-D-S(TD) MEZAZIGH B47",null,null,null,null,null,null,null,null,"MATERIAUX INNOVANTES(TP)","GHERNOUTI-H","B44","MATERIAUX INNOVANTES(TP) GHERNOUTI-H B44"]
[null,"16h 20              17h 50"]
["Jeudi","8h 00                     9h 30","GESTION PROJET©","GAHER","B416","GESTION PROJET© GAHER B416","GESTION PROJET©","GAHER","B416","GESTION PROJET© GAHER B416","METH DES DIFF FINIS(TP)","ROUABHI","RC9/B","METH DES DIFF FINIS(TP) ROUABHI RC9/B","MATERIAUX INNOVANTES©","GHERNOUTI-H","B415","MATERIAUX INNOVANTES© GHERNOUTI-H B415"]
[null,"9h 40                  11h 10","CONCEPT-TECH-BAT©","DJAALALI","AP6","CONCEPT-TECH-BAT© DJAALALI AP6","CONCEPT-TECH-BAT©","DJAALALI","AP6","CONCEPT-TECH-BAT© DJAALALI AP6","METH-DIFF-FINIF©","ROUABHI","C412","METH-DIFF-FINIF© ROUABHI C412"]
[null,"11h20                 12h 50",null,null,null,null,null,null,null,null,null,null,null,null,"STRUCTURES EN B-A(TD)","DJAALALI","B213","STRUCTURES EN B-A(TD) DJAALALI B213"]
[null,"13h 00              14h 30",null,null,null,null,null,null,null,null,null,null,null,null,"COMP-PROGRAMMATION(TD)","NADIR","B214","COMP-PROGRAMMATION(TD) NADIR B214"]
[null,"14h 40              16h 10"]
[null,"16h 20              17h 50"]
["Samedi","8h 00                     9h 30"]
[null,"9h 40                  11h 10"]
[null,"11h20                 12h 50"]

{"sheet":"EAI LICENCE10","index":6,"n_rows":36,"n_cols":14,"rows_kept":36,"cut":false,"hidden":false,"merged":[[0,0,0,1],[3,0,8,0],[33,0,35,0],[27,0,32,0],[21,0,26,0],[15,0,20,0],[9,0,14,0]]}
[null,null,null,null,null,null,null,null,null,"Filière:electrotech-auto-electron",null,null,null,"Spécialite:electrotech-auto-electron"]
[null,"Section:",null,null,null,"Licence 3ème année",null,null,null,{"$f":"NOW()","v":"2018-09-09T13:48:19.280"}]
["Jour","SEANCES","LELEC N-16","Enseignant","Salle","LELEC N-16","LAUT-16","Enseignant","Salle","LAUT-16","LELECT-16","Enseignant","Salle","LELECT-16"]
["Dimanche","8h 00                     9h 30",null,null,null,null,"NORMES ET CERTIFICATION©","KORSO","C42","NORMES ET CERTIFICATION© KORSO C42","THEORIE DE CHAMP©","HAMEL","B312","THEORIE DE CHAMP© HAMEL B312"]
[null,"9h 40                 11h 10","SIGNAL (TP)","MASSOUT","B210","SIGNAL (TP) MASSOUT B210",null,null,null,null,"THEORIE DE CHAMP(TD)","HAMEL","B312","THEORIE DE CHAMP(TD) HAMEL B312"]
[null,"11h20                 12h 50","RESEAUX LOCAUX (TP)","KEBOUR","B210","RESEAUX LOCAUX (TP) KEBOUR B210","ANGLAIS©","YAHIAOUI","A24","ANGLAIS© YAHIAOUI A24","SCHEMAS ET APPARILLAGE©","BOUDOUDA","B312","SCHEMAS ET APPARILLAGE© BOUDOUDA B312"]
[null,"13h 00              14h 30","TRAIT DE SIGNAL©","MASSOUT","B312","TRAIT DE SIGNAL© MASSOUT B312","COMMANDES SYST LINEAIRE©","HAMDAOUI","A24","COMMANDES SYST LINEAIRE© HAMDAOUI A24"]
[null,"14h 40              16h 10","TRAIT DE SIGNAL(TD) ","MASSOUT","B312","TRAIT DE SIGNAL(TD)  MASSOUT B312","COMMANDES SYST LINEAIRE(TD)","HAMDAOUI","A24","COMMANDES SYST LINEAIRE(TD) HAMDAOUI A24","SCHEMAS ET APPARILLAGE(TP)","BOUDOUDA","EEA2","SCHEMAS ET APPARILLAGE(TP) BOUDOUDA EEA2"]
[null,"16h 20              17h 50"]
["Lundi","8h 00                    9h 30",null,null,null,null,"ELECTRONIQUE DE PUISSANCES©","AHRICHE","A22","ELECTRONIQUE DE PUISSANCES© AHRICHE A22","ELECTRONIQUE DE PUISSANCES©","AHRICHE","A22","ELECTRONIQUE DE PUISSANCES© AHRICHE A22"]
[null,"9h 40                  11h 10",null,null,null,null,"ELECTRONIQUE DE PUISSANCES(TD)","AHRICHE","A22","ELECTRONIQUE DE PUISSANCES(TD) AHRICHE A22","RESEAUX ELECTRIQUE©","KOUBA","B35","RESEAUX ELECTRIQUE© KOUBA B35"]
[null,"11h20                12h 50","SYST A MICROPROCESSEURS©","MAHDI","B31","SYST A MICROPROCESSEURS© MAHDI B31"]
[null,"13h 00              14h 30","SYST A MICROPROCESSEURS(TP);FONCTION D'ELECTRONIQUE(TP)","MAHDI;BOURKACHE","B211;AT11","SYST A MICROPROCESSEURS(TP) MAHDI B211\nFONCTION D'ELECTRONIQUE(TP) BOURKACHE AT11","COMMANDES SYST LINEAIRE(TP);PROGRAMMATION EN C++(TP)","HAMDAOUI;IKHLEF","B210;AB12","COMMANDES SYST LINEAIRE(TP) HAMDAOUI B210\nPROGRAMMATION EN C++(TP) IKHLEF AB12","CONCEPTION DES SYST ELECTRONIQUE©","LARABI","B35","CONCEPTION DES SYST ELECTRONIQUE© LARABI B35"]
[null,"14h 40              16h 10","SYST A MICROPROCESSEURS(TP);FONCTION D'ELECTRONIQUE(TP)","MAHDI;BOURKACHE","B211;AT11","SYST A MICROPROCESSEURS(TP) MAHDI B211\nFONCTION D'ELECTRONIQUE(TP) BOURKACHE AT11","COMMANDES SYST LINEAIRE(TP);PROGRAMMATION EN C++(TP)","HAMDAOUI;IKHLEF","B210;AB12","COMMANDES SYST LINEAIRE(TP) HAMDAOUI B210\nPROGRAMMATION EN C++(TP) IKHLEF AB12","ELECTRONIQUE DE PUISSANCES(TD)","AHRICHE","B35","ELECTRONIQUE DE PUISSANCES(TD) AHRICHE B35"]
[null,"16h 20              17h 50"]
["Mardi","8h 00                    9h 30","PHYS DES SEMI CONDUCTEURS©","KHALFI","A22","PHYS DES SEMI CONDUCTEURS© KHALFI A22","ELECTRONIQUE DE PUISSANCES(TP)","AHRICHE","B211","ELECTRONIQUE DE PUISSANCES(TP) AHRICHE B211","SEYST ASSERVIS©","OUHIB","B419","SEYST ASSERVIS© OUHIB B419"]
[null,"9h 40                 11h 10","PROPAGATION D'ONDES©","KHALFI","A22","PROPAGATION D'ONDES© KHALFI A22","ELECTRONIQUE DE PUISSANCES(TP)","AHRICHE","B211","ELECTRONIQUE DE PUISSANCES(TP) AHRICHE B211","SEYST ASSERVIS(TD)","OUHIB","B419","SEYST ASSERVIS(TD) OUHIB B419"]
[null,"11h20                12h 50","TECH COMPOSANTES ELECTRII©","KHALFI","A22","TECH COMPOSANTES ELECTRII© KHALFI A22"]
[null,"13h 00              14h 30","FONCTION D'ELECTRONIQUE©","BOURKACHE","B419","FONCTION D'ELECTRONIQUE© BOURKACHE B419","MODEL ET IDENTIFICATION DES SYST©","BENABDALLAH","B35","MODEL ET IDENTIFICATION DES SYST© BENABDALLAH B35","ELECTRONIQUE DE PUISSANCES(TP)","AHRICHE","B211","ELECTRONIQUE DE PUISSANCES(TP) AHRICHE B211"]
[null,"14h 40              16h 10","FONCTION D'ELECTRONIQUE(TD) ","BOURKACHE","B419","FONCTION D'ELECTRONIQUE(TD)  BOURKACHE B419",null,null,null,null,"ELECTRONIQUE DE PUISSANCES(TP)","AHRICHE","B211","ELECTRONIQUE DE PUISSANCES(TP) AHRICHE B211"]
[null,"16h 20              17h 50"]
["Mercredi","8h 00                    9h 30","RESAUX INFORMATIQUES©","KEBOUR","B46","RESAUX INFORMATIQUES© KEBOUR B46","MICRO PROCESSEUR ET MICRO CONTROL©","SMAANI","A21","MICRO PROCESSEUR ET MICRO CONTROL© SMAANI A21","RESEAUX ELECTRIQUE©","KOUBA","B419","RESEAUX ELECTRIQUE© KOUBA B419"]
[null,"9h 40                 11h 10","RESAUX INFORMATIQUES(TD)","KEBOUR","B46","RESAUX INFORMATIQUES(TD) KEBOUR B46","PROGRAMMATION EN C++©","NEKAA","A21","PROGRAMMATION EN C++© NEKAA A21","RESEAUX ELECTRIQUE(TD)","KOUBA","B419","RESEAUX ELECTRIQUE(TD) KOUBA B419"]
[null,"11h20                12h 50",null,null,null,null,null,null,null,null,"RESEAUX ELECTRIQUE(TP)","KOUBA","RC9/B","RESEAUX ELECTRIQUE(TP) KOUBA RC9/B"]
[null,"13h 00              14h 30","SYST A MICROPROCESSEURS©","MAHDI","B311","SYST A MICROPROCESSEURS© MAHDI B311","MODEL ET IDENTIFICATION DES SYST(TP);MICRO PROCESSEUR ET MICRO CONTROL(TP)","BENABDALLAH;SMAANI","B210;B211","MODEL ET IDENTIFICATION DES SYST(TP) BENABDALLAH B210\nMICRO PROCESSEUR ET MICRO CONTROL(TP) SMAANI B211","RESEAUX ELECTRIQUE(TP)","KOUBA","RC9/B","RESEAUX ELECTRIQUE(TP) KOUBA RC9/B"]
[null,"14h 40              16h 10","SYST A MICROPROCESSEURS(TD) ","MAHDI","B311","SYST A MICROPROCESSEURS(TD)  MAHDI B311","MODEL ET IDENTIFICATION DES SYST(TP);MICRO PROCESSEUR ET MICRO CONTROL(TP)","BENABDALLAH;SMAANI","B210;B211","MODEL ET IDENTIFICATION DES SYST(TP) BENABDALLAH B210\nMICRO PROCESSEUR ET MICRO CONTROL(TP) SMAANI B211"]
[null,"16h 20              17h 50"]
["Jeudi","8h 00                     9h 30",null,null,null,null,"MICRO PROCESSEUR ET MICRO CONTROL©","SMAANI","B36","MICRO PROCESSEUR ET MICRO CONTROL© SMAANI B36","SEYST ASSERVIS (TP)","HAMDAOUI","AB12","SEYST ASSERVIS (TP) HAMDAOUI AB12"]
[null,"9h 40                  11h 10",null,null,null,null,"MICRO PROCESSEUR ET MICRO CONTROL(TD)","SMAANI","B36","MICRO PROCESSEUR ET MICRO CONTROL(TD) SMAANI B36","SEYST ASSERVIS (TP)","HAMDAOUI","AB12","SEYST ASSERVIS (TP) HAMDAOUI AB12"]
[null,"11h20                 12h 50","TRAVAUX AVANT PROJET©","AKROUM","B42","TRAVAUX AVANT PROJET© AKROUM B42",null,null,null,null,"LOGICIEL DE SIMULATION©","HAROUN","A12","LOGICIEL DE SIMULATION© HAROUN A12"]
[null,"13h 00              14h 30","TRAVAUX AVANT PROJET(TP)","AKROUM","B211","TRAVAUX AVANT PROJET(TP) AKROUM B211","ENNERGIE RENOUVELABLES©","HAROUN","A14","ENNERGIE RENOUVELABLES© HAROUN A14","CAPTEURS ET INSTRIMENTATION©","BOUMEDINE","B417","CAPTEURS ET INSTRIMENTATION© BOUMEDINE B417"]
[null,"14h 40              16h 10",null,null,null,null,null,null,null,null,"CAPTEURS(TP)","BOUMEDINE","B417","CAPTEURS(TP) BOUMEDINE B417"]
[null,"16h 20              17h 50"]
["Samedi","8h 00                     9h 30"]
[null,"9h 40                  11h 10"]
[null,"11h20                 12h 50"]

{"sheet":"EAI MASTER12","index":7,"n_rows":36,"n_cols":14,"rows_kept":36,"cut":false,"hidden":false,"merged":[[33,0,35,0],[0,0,0,1],[3,0,8,0],[9,0,14,0],[15,0,20,0],[21,0,26,0],[27,0,32,0]]}
["Filière:Automatique",null,null,null,null,"Filière:electronique-electrotechnique",null,null,null,"Spécialité:Automatique et informatique-",null,null,null,"Spécialité:machines electriques"]
[null,"Section:",null,null,null,"Master 1ère année",null,null,null,"Spécialité:electronique systemes embarques",null,null,null,{"$f":"NOW()","v":"2018-09-09T13:48:19.280"}]
["Jour","SEANCES","MAI-I8","Enseignant","Salle","MAI-I8","MESE18","Enseignant","Salle","MESE18","MME18","Enseignant","Salle","MME18"]
["Dimanche","8h 00                     9h 30","RESEAUX ET PROTOCOLES-COMM(TP) ","KEBOUR","B210","RESEAUX ET PROTOCOLES-COMM(TP)  KEBOUR B210","SYST ASSERVISSEMENT NUMERIQUES©","IDIR","B42","SYST ASSERVISSEMENT NUMERIQUES© IDIR B42","RES-TRANS-DIS-EN-ELECT©","AIBECHE","B311","RES-TRANS-DIS-EN-ELECT© AIBECHE B311"]
[null,"9h 40                 11h 10","RESEAUX ET PROTOCOLES-COMM©","KEBOUR","B47","RESEAUX ET PROTOCOLES-COMM© KEBOUR B47","SYST ASSERVISSEMENT NUMERIQUES(TD)","IDIR","B42","SYST ASSERVISSEMENT NUMERIQUES(TD) IDIR B42","RES-TRANS-DIS-EN-ELECT(TD) ","AIBECHE","B311","RES-TRANS-DIS-EN-ELECT(TD)  AIBECHE B311"]
[null,"11h20                 12h 50",null,null,null,null,"PROGRAMMATION ORIENTE OBJET ©","NEKAA","A22","PROGRAMMATION ORIENTE OBJET © NEKAA A22"]
[null,"13h 00              14h 30","OPTIMISATION©","IDIR","B39","OPTIMISATION© IDIR B39","PROGRAMMATION ORIENTE OBJET (TP) ","NEKAA","A27","PROGRAMMATION ORIENTE OBJET (TP)  NEKAA A27","U-PROCESS ET U-CONTROLEURS(TP)","HOCINE","B211","U-PROCESS ET U-CONTROLEURS(TP) HOCINE B211"]
[null,"14h 40              16h 10","OPTIMISATION(TD) ","IDIR","B39","OPTIMISATION(TD)  IDIR B39","PROGRAMMATION ORIENTE OBJET (TP) ","NEKAA","A27","PROGRAMMATION ORIENTE OBJET (TP)  NEKAA A27","U-PROCESS ET U-CONTROLEURS(TP)","HOCINE","B211","U-PROCESS ET U-CONTROLEURS(TP) HOCINE B211"]
[null,"16h 20              17h 50"]
["Lundi","8h 00                    9h 30","OPTIMISATION(TP) ","IDIR","AB12","OPTIMISATION(TP)  IDIR AB12","COM-WIFI©","BOURKACHE","A16","COM-WIFI© BOURKACHE A16","ELECT-PUISS-AVAC©","BOUDOUDA","B47","ELECT-PUISS-AVAC© BOUDOUDA B47"]
[null,"9h 40                  11h 10","OPTIMISATION(TP) ","IDIR","AB12","OPTIMISATION(TP)  IDIR AB12","ELECTRONIQUE NUMERIQUE AVANCEES FGPA(TP)","GUERBAI","A27","ELECTRONIQUE NUMERIQUE AVANCEES FGPA(TP) GUERBAI A27","ELECT-PUISS-AVAC(TD) ","BOUDOUDA","B47","ELECT-PUISS-AVAC(TD)  BOUDOUDA B47"]
[null,"11h20                12h 50",null,null,null,null,"ELECTRONIQUE NUMERIQUE AVANCEES FGPA(TP)","GUERBAI","A27","ELECTRONIQUE NUMERIQUE AVANCEES FGPA(TP) GUERBAI A27"]
[null,"13h 00              14h 30","SYST LINEAIRES MULTI©","KHELOUAT","A16","SYST LINEAIRES MULTI© KHELOUAT A16","[SP]TRAIT SIGNAL AVANCEE(TP);[SP]SYST [SI]ASSERVISSEMENT NUMERIQUES AVANCEE (TP) ","GUERBAI;IDIR","A26;A26","[SP]TRAIT SIGNAL AVANCEE(TP) GUERBAI A26\n[SP]SYST [SI]ASSERVISSEMENT NUMERIQUES AVANCEE (TP)  IDIR A26","METH-NUM-APPL-OPT©","ACHELI","B416","METH-NUM-APPL-OPT© ACHELI B416"]
[null,"14h 40              16h 10","SYST LINEAIRES MULTI(TD) ","KHELOUAT","A16","SYST LINEAIRES MULTI(TD)  KHELOUAT A16","[SP]TRAIT SIGNAL AVANCEE(TP);[SP]SYST [SI]ASSERVISSEMENT NUMERIQUES AVANCEE (TP) ","GUERBAI;IDIR","A26;A26","[SP]TRAIT SIGNAL AVANCEE(TP) GUERBAI A26\n[SP]SYST [SI]ASSERVISSEMENT NUMERIQUES AVANCEE (TP)  IDIR A26","METH-NUM-APPL-OPT(TD) ","ACHELI","B416","METH-NUM-APPL-OPT(TD)  ACHELI B416"]
[null,"16h 20              17h 50"]
["Mardi","8h 00                    9h 30","ASSO-CONV-MACH©","ABDESLAME","B41","ASSO-CONV-MACH© ABDESLAME B41","CONCEPT SYSTEM A MICROPROCESSEUR©","SAADSOUD","B214","CONCEPT SYSTEM A MICROPROCESSEUR© SAADSOUD B214","METH-NUM-APPL-OPT(TP);RES-TRANS-DIS-EN-ELECT(TP)","IKHLEF;AIBECHE","RC9/A;B210","METH-NUM-APPL-OPT(TP) IKHLEF RC9/A\nRES-TRANS-DIS-EN-ELECT(TP) AIBECHE B210"]
[null,"9h 40                 11h 10","ASSO-CONV-MACH(TD) ","ABDESLAME","B41","ASSO-CONV-MACH(TD)  ABDESLAME B41","CONCEPT SYSTEM A MICROPROCESSEUR(TD)","SAADSOUD","B214","CONCEPT SYSTEM A MICROPROCESSEUR(TD) SAADSOUD B214","METH-NUM-APPL-OPT(TP);RES-TRANS-DIS-EN-ELECT(TP)","IKHLEF;AIBECHE","RC9/A;B210","METH-NUM-APPL-OPT(TP) IKHLEF RC9/A\nRES-TRANS-DIS-EN-ELECT(TP) AIBECHE B210"]
[null,"11h20                12h 50"]
[null,"13h 00              14h 30","SYST LINEAIRES MULTI(TP) ;ASSOC-CONV-MACH(TP) ","KHELOUAT;ABDESLAME","A27;AB12","SYST LINEAIRES MULTI(TP)  KHELOUAT A27\nASSOC-CONV-MACH(TP)  ABDESLAME AB12","ELECTR-NUM-AVANCEE FPGA©","SMAANI","B44","ELECTR-NUM-AVANCEE FPGA© SMAANI B44","ENERGIES RENOUVLABLE©","TAZROUT","B31","ENERGIES RENOUVLABLE© TAZROUT B31"]
[null,"14h 40              16h 10","SYST LINEAIRES MULTI(TP) ;ASSOC-CONV-MACH(TP) ","KHELOUAT;ABDESLAME","A27;AB12","SYST LINEAIRES MULTI(TP)  KHELOUAT A27\nASSOC-CONV-MACH(TP)  ABDESLAME AB12","ELECTR-NUM-AVANCEE FPGA(TD)","SMAANI","B44","ELECTR-NUM-AVANCEE FPGA(TD) SMAANI B44"]
[null,"16h 20              17h 50"]
["Mercredi","8h 00                    9h 30","TRAIT SIGNAL©","MASSOUT","C48","TRAIT SIGNAL© MASSOUT C48","CONCEP SYSTEM A MICROPRO©","SAADSOUD","B42","CONCEP SYSTEM A MICROPRO© SAADSOUD B42","MACH-ELECT-APPRO©","HAMEL","A12","MACH-ELECT-APPRO© HAMEL A12"]
[null,"9h 40                 11h 10","TRAIT SIGNAL(TP) ","MASSOUT","C43","TRAIT SIGNAL(TP)  MASSOUT C43","CONCEPT SYSTEM A MICROPROCESSEUR(TP)","SAADSOUD","B42","CONCEPT SYSTEM A MICROPROCESSEUR(TP) SAADSOUD B42","MACH-ELECT-APPRO(TD) ","HAMEL","A12","MACH-ELECT-APPRO(TD)  HAMEL A12"]
[null,"11h20                12h 50","TRAIT SIGNAL(TP) ","MASSOUT","C43","TRAIT SIGNAL(TP)  MASSOUT C43"]
[null,"13h 00              14h 30",null,null,null,null,"TRAIT SIGNAL AVANCEE©","GUERBAI","B42","TRAIT SIGNAL AVANCEE© GUERBAI B42","MACH ELECT(TP)","HAMEL+BOUZIDA","EEA2","MACH ELECT(TP) HAMEL+BOUZIDA EEA2"]
[null,"14h 40              16h 10",null,null,null,null,"TRAIT SIGNAL AVANCEE(TD)","GUERBAI","B42","TRAIT SIGNAL AVANCEE(TD) GUERBAI B42","MACH ELECT(TP)","HAMEL+BOUZIDA","EEA2","MACH ELECT(TP) HAMEL+BOUZIDA EEA2"]
[null,"16h 20              17h 50"]
["Jeudi","8h 00                     9h 30","ANGLAIS TECH TERMINO©","YAHIAOUI","AP3","ANGLAIS TECH TERMINO© YAHIAOUI AP3","ANGLAIS TECH ET TERM©","YAHIAOUI","AP3","ANGLAIS TECH ET TERM© YAHIAOUI AP3","ANGLAIS TECH ET TERM©","YAHIAOUI","AP3","ANGLAIS TECH ET TERM© YAHIAOUI AP3"]
[null,"9h 40                  11h 10","TRAIT SIGNAL(TD) ","MASSOUT","B416","TRAIT SIGNAL(TD)  MASSOUT B416",null,null,null,null,"U-PROCESS ET U-CONTROLEURS©","HOCINE","A24","U-PROCESS ET U-CONTROLEURS© HOCINE A24"]
[null,"11h20                 12h 50","ACTION-INDUSTERIELLE©","FELLAG","AP3","ACTION-INDUSTERIELLE© FELLAG AP3","ACTION-INDUSTERIELLE©","FELLAG","AP3","ACTION-INDUSTERIELLE© FELLAG AP3","ACTION-INDUSTERIELLE©","AOUZLAG","AP3","ACTION-INDUSTERIELLE© AOUZLAG AP3"]
[null,"13h 00              14h 30","GESTION DE LA MAINTENANCE©","HAMDAOUI","A22","GESTION DE LA MAINTENANCE© HAMDAOUI A22",null,null,null,null,"ELECTRO-PUISS(TP) ","BOUDOUDA","A26","ELECTRO-PUISS(TP)  BOUDOUDA A26"]
[null,"14h 40              16h 10",null,null,null,null,null,null,null,null,"ELECTRO-PUISS(TP) ","BOUDOUDA","A26","ELECTRO-PUISS(TP)  BOUDOUDA A26"]
[null,"16h 20              17h 50"]
["Samedi","8h 00                     9h 30"]
[null,"9h 40                  11h 10"]
[null,"11h20                 12h 50"]

{"sheet":"EAI MASTER11","index":8,"n_rows":36,"n_cols":14,"rows_kept":36,"cut":false,"hidden":false,"merged":[[0,5,0,13],[33,0,35,0],[3,0,8,0],[9,0,14,0],[0,0,0,1],[15,0,20,0],[21,0,26,0],[27,0,32,0]]}
["Spécialite:",null,null,null,null,"Automatique  informatique-electronique  systemes embarques-machines electrique"]
["Departement:","Section:",null,null,null,"Master 2ème année",null,null,null,{"$f":"NOW()","v":"2018-09-09T13:48:19.280"}]
["Jour","SEANCES","MAI-I7","Enseignant","Salle","MAI-I7","MESE-17","Enseignant","Salle","MESE-17","MME-17","Enseignant","Salle","MME-17"]
["Dimanche","8h 00                     9h 30","COMMAND AVANCEE©","BENABDALLAH","B31","COMMAND AVANCEE© BENABDALLAH B31","AUTOMATE PROGRAMABLLE©","NAFAA","A11","AUTOMATE PROGRAMABLLE© NAFAA A11","COMM-MACH-ELECT(TP)","ABDESLAME","A27","COMM-MACH-ELECT(TP) ABDESLAME A27"]
[null,"9h 40                 11h 10","COMMAND AVANCEE(TD)","BENABDALLAH","B31","COMMAND AVANCEE(TD) BENABDALLAH B31","AUTOMATE PROGRAMABLLE(TD)","NAFAA","A11","AUTOMATE PROGRAMABLLE(TD) NAFAA A11","COMM-MACH-ELECT(TP)","ABDESLAME","A27","COMM-MACH-ELECT(TP) ABDESLAME A27"]
[null,"11h20                 12h 50"]
[null,"13h 00              14h 30","COMMAND AVANCEE(TP);ROBOTIQUE(TP)","OUHIB;NAFAA","RC9/B;A26","COMMAND AVANCEE(TP) OUHIB RC9/B\nROBOTIQUE(TP) NAFAA A26","SYSTEMES TEMPS REEL©","AKROUM","B32","SYSTEMES TEMPS REEL© AKROUM B32","MACHINES ELECT-SPECIAL©","GROUNI","B44","MACHINES ELECT-SPECIAL© GROUNI B44"]
[null,"14h 40              16h 10","COMMAND AVANCEE(TP);ROBOTIQUE(TP)","OUHIB;NAFAA","RC9/B;A26","COMMAND AVANCEE(TP) OUHIB RC9/B\nROBOTIQUE(TP) NAFAA A26","SYSTEMES TEMPS REEL(TD)","AKROUM","B31","SYSTEMES TEMPS REEL(TD) AKROUM B31","MACHINES ELECT-SPECIAL(TD)","GROUNI","B44","MACHINES ELECT-SPECIAL(TD) GROUNI B44"]
[null,"16h 20              17h 50"]
["Lundi","8h 00                    9h 30","ROBOTIQUE©","NAFAA","C48","ROBOTIQUE© NAFAA C48","[SI]SYSTEMES TEMPS REEL(TP);[SP]SYST EMBARQUES(TP)","AKROUM;HAROUNE-F","B211;B210","[SI]SYSTEMES TEMPS REEL(TP) AKROUM B211\n[SP]SYST EMBARQUES(TP) HAROUNE-F B210","COMMAND-MACH-ELECT©","ABDESLAME","A25","COMMAND-MACH-ELECT© ABDESLAME A25"]
[null,"9h 40                  11h 10","ROBOTIQUE(TD)","NAFAA","C48","ROBOTIQUE(TD) NAFAA C48","[SI]SYSTEMES TEMPS REEL(TP);[SP]SYST EMBARQUES(TP)","AKROUM;HAROUNE-F","B211;B210","[SI]SYSTEMES TEMPS REEL(TP) AKROUM B211\n[SP]SYST EMBARQUES(TP) HAROUNE-F B210","COMMAND-MACH-ELECT(TD)","ABDESLAME","A25","COMMAND-MACH-ELECT(TD) ABDESLAME A25"]
[null,"11h20                12h 50"]
[null,"13h 00              14h 30","FPGA ET PROG VHDL(TP)","GUERBAI","A27","FPGA ET PROG VHDL(TP) GUERBAI A27","AUTOM PROGRA(TP)","NAFAA","AT15","AUTOM PROGRA(TP) NAFAA AT15","QUALITE-ENERG©","AHRICHE","A14","QUALITE-ENERG© AHRICHE A14"]
[null,"14h 40              16h 10",null,null,null,null,"AUTOM PROGRA(TP)","NAFAA","AT15","AUTOM PROGRA(TP) NAFAA AT15"]
[null,"16h 20              17h 50"]
["Mardi","8h 00                    9h 30","SYST A EVENEMENT DISCRETS©","KHELOUAT","B47","SYST A EVENEMENT DISCRETS© KHELOUAT B47","SYSTEMES EMBARQUE©","HAROUNE-F","B38","SYSTEMES EMBARQUE© HAROUNE-F B38","CONCEP-ASSI-ORD©","BOUZIDA","B39","CONCEP-ASSI-ORD© BOUZIDA B39"]
[null,"9h 40                 11h 10","SYST A EVENEMENT DISCRETS(TD)","KHELOUAT","B47","SYST A EVENEMENT DISCRETS(TD) KHELOUAT B47","SYSTEMES EMBARQUE(TD)","HAROUNE-F","B38","SYSTEMES EMBARQUE(TD) HAROUNE-F B38","REG-TYRAN-MACH©","BOUZIDA","B39","REG-TYRAN-MACH© BOUZIDA B39"]
[null,"11h20                12h 50","COMMAND AVANCEE©","BENABDALLAH","B47","COMMAND AVANCEE© BENABDALLAH B47","ROBOTIQUE©","RAHMOUNE-EL","B36","ROBOTIQUE© RAHMOUNE-EL B36"]
[null,"13h 00              14h 30",null,null,null,null,null,null,null,null,"CONCEP-ASS-ORD(TP)","BOUZIDA","B39","CONCEP-ASS-ORD(TP) BOUZIDA B39"]
[null,"14h 40              16h 10",null,null,null,null,null,null,null,null,"REG-TRANS-MACH(TD)","BOUZIDA","B35","REG-TRANS-MACH(TD) BOUZIDA B35"]
[null,"16h 20              17h 50"]
["Mercredi","8h 00                    9h 30","DEV-SITE-WEB©","NEKAA","B313","DEV-SITE-WEB© NEKAA B313","LANGAGE JAVA©","HARRAR","C32","LANGAGE JAVA© HARRAR C32","REG-TRANS-MACH(TP)","BOUZIDA","B210","REG-TRANS-MACH(TP) BOUZIDA B210"]
[null,"9h 40                 11h 10","FPGA ET PROGRAMATION©","GUERBAI","B313","FPGA ET PROGRAMATION© GUERBAI B313","LANGAGE JAVA(TP)","HARRAR","RC9/B","LANGAGE JAVA(TP) HARRAR RC9/B","IDENT-DIAG-MACH©","AIBECHE","A22","IDENT-DIAG-MACH© AIBECHE A22"]
[null,"11h20                12h 50","FPGA ET PROGRAMATION(TD)","GUERBAI","B313","FPGA ET PROGRAMATION(TD) GUERBAI B313",null,null,null,null,"IDENT-DIAG-MACH-ELECT(TP)","AIBECHE","A26","IDENT-DIAG-MACH-ELECT(TP) AIBECHE A26"]
[null,"13h 00              14h 30","TRAIT-IMAGE©","HARRAR","B312","TRAIT-IMAGE© HARRAR B312","CARTE A PUCES©","RAHMOUNE-EL","B310","CARTE A PUCES© RAHMOUNE-EL B310"]
[null,"14h 40              16h 10",null,null,null,null,"VISION ARTIFICIELLE(TD)","HARRAR","B310","VISION ARTIFICIELLE(TD) HARRAR B310"]
[null,"16h 20              17h 50"]
["Jeudi","8h 00                     9h 30","RECHERCHE-DOC-CONC©","GROUNI","B37","RECHERCHE-DOC-CONC© GROUNI B37","RECHERCHE-DOC-CONC©","GROUNI","B37","RECHERCHE-DOC-CONC© GROUNI B37","RECHERCHE-DOC-CONC©","GROUNI","B37","RECHERCHE-DOC-CONC© GROUNI B37"]
[null,"9h 40                  11h 10","SUPERVISION(SCADA)©","IKHLEF","B49","SUPERVISION(SCADA)© IKHLEF B49","SYSTEMES EMBARQUE©","HAROUNE-F","B48","SYSTEMES EMBARQUE© HAROUNE-F B48","ECHAUF-REF-ACT©","GROUNI","C42","ECHAUF-REF-ACT© GROUNI C42"]
[null,"11h20                 12h 50",null,null,null,null,null,null,null,null,"ECOLOGIE-IND-DEV©","MENNAD","B414","ECOLOGIE-IND-DEV© MENNAD B414"]
[null,"13h 00              14h 30","SUPERVISION(SCADA)(TP)","IKHLEF","RC9/B","SUPERVISION(SCADA)(TP) IKHLEF RC9/B","VISION ARTIFICIELLE©","HARRAR","A23","VISION ARTIFICIELLE© HARRAR A23"]
[null,"14h 40              16h 10","SUPERVISION(SCADA)(TP)","IKHLEF","RC9/B","SUPERVISION(SCADA)(TP) IKHLEF RC9/B","VISION ARTIFICIELLEE(TP)","HARRAR","A27","VISION ARTIFICIELLEE(TP) HARRAR A27"]
[null,"16h 20              17h 50"]
["Samedi","8h 00                     9h 30"]
[null,"9h 40                  11h 10"]
[null,"11h20                 12h 50"]

{"sheet":"MAT MASTER11","index":9,"n_rows":36,"n_cols":18,"rows_kept":36,"cut":false,"hidden":false,"merged":[[0,0,0,1],[3,0,8,0],[33,0,35,0],[27,0,32,0],[21,0,26,0],[15,0,20,0],[9,0,14,0]]}
["Departement:",null,null,null,null,"génie matérieux",{"$f":"TODAY()","v":"2018-09-09"}]
[{"$f":"TODAY()","v":"2018-09-09"},"Section:",null,null,null,"Master 2ème année",null,null,null,{"$f":"NOW()","v":"2018-09-09T13:48:19.280"}]
["Jour","SEANCES","MMGC-16","Enseignant","Salle","MMGC-16","MGM-16","Enseignant","Salle","MGM-16","XXXXX","Enseignant","Salle","X","MMCV12","Enseignant","Salle","MMCV12"]
["Dimanche","8h 00                     9h 30","MATERIAUX COMP©","SAFI","B212","MATERIAUX COMP© SAFI B212","METH-EXP-CONT-MAT©","BOUDOUDA-GP","B214","METH-EXP-CONT-MAT© BOUDOUDA-GP B214","XXXXX","XXX","XX","XXXXX XXX XX","PROJET ET EXPERIMENTATION(TD)","XXXXX","XXXXX","PROJET ET EXPERIMENTATION(TD) XXXXX XXXXX"]
[null,"9h 40                 11h 10","MATERIAUX RECYCLE©","CHAID","B212","MATERIAUX RECYCLE© CHAID B212","METH-EXP-CONT-MAT(TP)","BOUDOUDA-GP","B214","METH-EXP-CONT-MAT(TP) BOUDOUDA-GP B214","XXXXX","XXX","XX","XXXXX XXX XX","VERRES SPECIAUX©","XXXXX","XXXXX","VERRES SPECIAUX© XXXXX XXXXX"]
[null,"11h20                 12h 50","ELEMENTS FINIS(TP)","MANSER","AB12","ELEMENTS FINIS(TP) MANSER AB12"]
[null,"13h 00              14h 30",null,null,null,null,"PROP-PHY-MEC-CER©","KERIMECHE","B214","PROP-PHY-MEC-CER© KERIMECHE B214","XXXXX","XXX","XX","XXXXX XXX XX","CERAMIQUE-ELECTRIQUE©","XXXXX","XXXXX","CERAMIQUE-ELECTRIQUE© XXXXX XXXXX"]
[null,"14h 40              16h 10",null,null,null,null,"PROP-PHYSIQU-MEC(TD)","KERIMECHE","B214","PROP-PHYSIQU-MEC(TD) KERIMECHE B214","XXXXX","XXX","XX","XXXXX XXX XX"]
[null,"16h 20              17h 50"]
["Lundi","8h 00                    9h 30","PATHOLOGIE DES CONSTRUCTIONS©","RABAHI","B213","PATHOLOGIE DES CONSTRUCTIONS© RABAHI B213","CND©","ZERIZER","B31","CND© ZERIZER B31","XXXXX","XXX","XX","XXXXX XXX XX","EMAUX ET VITROCERAMIQUE©","XXXXX","XXXXX","EMAUX ET VITROCERAMIQUE© XXXXX XXXXX"]
[null,"9h 40                  11h 10","MATERIAUX RECYCLE(TD)","CHAID","B31","MATERIAUX RECYCLE(TD) CHAID B31",null,null,null,null,"XXXXX","XXX","XX","XXXXX XXX XX","ANGLAIS©","XXXXX","XXXXX","ANGLAIS© XXXXX XXXXX"]
[null,"11h20                12h 50",null,null,null,null,"CND(TP)","ZERIZER","B32","CND(TP) ZERIZER B32","XXXXX","XXX","XX","XXXXX XXX XX"]
[null,"13h 00              14h 30","DURABULITE DES MATERIAUX(TP)","RABAHI","B16","DURABULITE DES MATERIAUX(TP) RABAHI B16","CHOIX DES MATERIAUX©","KANA","B36","CHOIX DES MATERIAUX© KANA B36","XXXXX","XXX","XX","XXXXX XXX XX","EMAUX-VITROCER(TP)(1/2G); TECH-CONT-CER(TP)(1/2G)","WW;WW","WW;WW","EMAUX-VITROCER(TP)(1/2G) WW WW\n TECH-CONT-CER(TP)(1/2G) WW WW"]
[null,"14h 40              16h 10","DURABULITE DES MATERIAUX(TP)","RABAHI","B16","DURABULITE DES MATERIAUX(TP) RABAHI B16","DEFAUTS 2 ET DEFORM PLASTIQUE(TD)","X","B36","DEFAUTS 2 ET DEFORM PLASTIQUE(TD) X B36",null,null,null,null,"EMAUX-VITROCER(TP)(1/2G); TECH-CONT-CER(TP)(1/2G)","WW;WW","WW;WW","EMAUX-VITROCER(TP)(1/2G) WW WW\n TECH-CONT-CER(TP)(1/2G) WW WW"]
[null,"16h 20              17h 50"]
["Mardi","8h 00                    9h 30","DURABULITE DES MATERIAUX©","BENMOUNAH","B213","DURABULITE DES MATERIAUX© BENMOUNAH B213","CHOIX DES MATERIAUX(TD)","KANA","B49","CHOIX DES MATERIAUX(TD) KANA B49","XXXXX","XXX","XX","XXXXX XXX XX","RUP-MATER-FRAGILE©","WW","WW","RUP-MATER-FRAGILE© WW WW"]
[null,"9h 40                 11h 10","DURABULITE DES MATERIAUX©","BENMOUNAH","B213","DURABULITE DES MATERIAUX© BENMOUNAH B213","MATERIAUX AU CHOIX©","CHEMANI-F","B44","MATERIAUX AU CHOIX© CHEMANI-F B44","XXXXX","XXX","XX","XXXXX XXX XX","TECH-CONT-CER-VER©","WW","WW","TECH-CONT-CER-VER© WW WW"]
[null,"11h20                12h 50",null,null,null,null,null,null,null,null,null,null,null,null,"RUP-MATER-FRAGILE(TD)","WW","WW","RUP-MATER-FRAGILE(TD) WW WW"]
[null,"13h 00              14h 30","BETON PRECONTRIANT©","GHANEM","B47","BETON PRECONTRIANT© GHANEM B47","FATIGUE DES MATR(TD)","X","B310","FATIGUE DES MATR(TD) X B310","XXXXX","XXX","XX","XXXXX XXX XX"]
[null,"14h 40              16h 10","BETON PRECONTRIANT(TD)","GHANEM","B47","BETON PRECONTRIANT(TD) GHANEM B47",null,null,null,null,"XXXXX","XXX","XX","XXXXX XXX XX"]
[null,"16h 20              17h 50"]
["Mercredi","8h 00                    9h 30","MATER-COMP(TD)","SAFI","B44","MATER-COMP(TD) SAFI B44",null,null,null,null,"XXXXX","XXX","XX","XXXXX XXX XX","CERAMIQUE-THERM-MEC©","WW","WW","CERAMIQUE-THERM-MEC© WW WW"]
[null,"9h 40                 11h 10","BETONS INNOVANTS©","CHAID","B44","BETONS INNOVANTS© CHAID B44",null,null,null,null,"XXXXX","XXX","XX","XXXXX XXX XX","EQUIP-INDUST-CER-VERRE©","WW","WW","EQUIP-INDUST-CER-VERRE© WW WW"]
[null,"11h20                12h 50","BETONS INNOVANTS(TP)","BOUCHOUIKA","C08","BETONS INNOVANTS(TP) BOUCHOUIKA C08","MATERIAUX AU CHOIX©","CHEMANI-F","B31","MATERIAUX AU CHOIX© CHEMANI-F B31","XXXXX","XXX","XX","XXXXX XXX XX"]
[null,"13h 00              14h 30",null,null,null,null,"DEFAUTS 2 ET DEFORM PLASTIQUE©","BEZZAZI","B212","DEFAUTS 2 ET DEFORM PLASTIQUE© BEZZAZI B212","XXXXX","XXX","XX","XXXXX XXX XX","VERRES-SPECIAUX(TP)(1/2G);CERA-THERM(TP)(1/2G)","QQ;QQ","WW;WW","VERRES-SPECIAUX(TP)(1/2G) QQ WW\nCERA-THERM(TP)(1/2G) QQ WW"]
[null,"14h 40              16h 10",null,null,null,null,"DEFAUTS 2 ET DEFORM PLASTIQUE©","BEZZAZI","B212","DEFAUTS 2 ET DEFORM PLASTIQUE© BEZZAZI B212","XXXXX","XXX","XX","XXXXX XXX XX","VERRES-SPECIAUX(TP)(1/2G);CERA-THERM(TP)(1/2G)","QQ;QQ","WW;WW","VERRES-SPECIAUX(TP)(1/2G) QQ WW\nCERA-THERM(TP)(1/2G) QQ WW"]
[null,"16h 20              17h 50"]
["Jeudi","8h 00                     9h 30","RECHERCHE DOCUMENTAIRE ET CONCEP DE MEM©","HAMIANE","A14","RECHERCHE DOCUMENTAIRE ET CONCEP DE MEM© HAMIANE A14","RECHERCHE DOCUMENTAIRE ET CONCEP DE MEM©","HAMIANE","A14","RECHERCHE DOCUMENTAIRE ET CONCEP DE MEM© HAMIANE A14","XXXXX","XXX","XX","XXXXX XXX XX"]
[null,"9h 40                  11h 10","PLANS D'EXPERIENCES©","BENOTMANE","B214","PLANS D'EXPERIENCES© BENOTMANE B214",null,null,null,null,"XXXXX","XXX","XX","XXXXX XXX XX"]
[null,"11h20                 12h 50","ELEMENTS FINIS©","ROUABHI","B47","ELEMENTS FINIS© ROUABHI B47"]
[null,"13h 00              14h 30",null,null,null,null,"FATIGUE DES MATR©","BEZZAZI","B212","FATIGUE DES MATR© BEZZAZI B212",null,null,null,null,"CERAMIQUE-USAG-ELECT(TP)","WW","WW","CERAMIQUE-USAG-ELECT(TP) WW WW"]
[null,"14h 40              16h 10",null,null,null,null,"DEGRADATION DES POLYMERS©","BEZZAZI","B212","DEGRADATION DES POLYMERS© BEZZAZI B212",null,null,null,null," CERAMIQUE-USAG-ELECT(TP)","WW","WW"," CERAMIQUE-USAG-ELECT(TP) WW WW"]
[null,"16h 20              17h 50"]
["Samedi","8h 00                     9h 30"]
[null,"9h 40                  11h 10"]
[null,"11h20                 12h 50"]

{"sheet":"MAT MASTER12","index":10,"n_rows":36,"n_cols":18,"rows_kept":36,"cut":false,"hidden":false,"merged":[[0,0,0,1],[3,0,8,0],[33,0,35,0],[27,0,32,0],[21,0,26,0],[15,0,20,0],[9,0,14,0]]}
[null,null,null,null,null,"Spécialité: matérieux gc-G Matérieaux"]
[{"$f":"TODAY()","v":"2018-09-09"},"Section:",null,null,null,"Master 1ère année",null,null,null,{"$f":"NOW()","v":"2018-09-09T13:48:19.280"}]
["Jour","SEANCES","MMGC-17","Enseignant","Salle","MMGC-17","MGM-17","Enseignant","Salle","MGM-17","MGPM-16","Enseignant","Salle","MGPM-16","MCV15","Enseignant","Salle","MCV15"]
["Dimanche","8h 00                     9h 30","TECH DES BETONS©","GHERNOUTI-H","C412","TECH DES BETONS© GHERNOUTI-H C412","ANGLAIS©","HADDADI","B37","ANGLAIS© HADDADI B37","CH-PHY-SILICATES©","XXX","XXX","CH-PHY-SILICATES© XXX XXX","XXX","XXX","XXX","XXX XXX XXX"]
[null,"9h 40                 11h 10","TECH DES BETONS(TD)","GHERNOUTI-H","C412","TECH DES BETONS(TD) GHERNOUTI-H C412","ELAB-CAR-MAT-CERAMIQUE©","BOUMCHEDDA","B37","ELAB-CAR-MAT-CERAMIQUE© BOUMCHEDDA B37","CH-PHY-SILICATES(TD)","XXX","XXX","CH-PHY-SILICATES(TD) XXX XXX","XXX","XXX","XXX","XXX XXX XXX"]
[null,"11h20                 12h 50"]
[null,"13h 00              14h 30","MAT DE CONSTRUCTION©","RABAHI","B37","MAT DE CONSTRUCTION© RABAHI B37","METHO DES ELEMENTS FINIS©","SETTET","B42","METHO DES ELEMENTS FINIS© SETTET B42","CLASS-STRUC-MAT©","XXX","XXX","CLASS-STRUC-MAT© XXX XXX","XXX","XXX","XXX","XXX XXX XXX"]
[null,"14h 40              16h 10","MAT DE CONSTRUCTION(TD)","RABAHI","B37","MAT DE CONSTRUCTION(TD) RABAHI B37","METH E-F(TD)","SETTET","B42","METH E-F(TD) SETTET B42","CLASS-STRUC-MAT(TD)","XXX","XXX","CLASS-STRUC-MAT(TD) XXX XXX"]
[null,"16h 20              17h 50"]
["Lundi","8h 00                    9h 30","ELASTICITE©","TAZROUT","C412","ELASTICITE© TAZROUT C412",null,null,null,null,null,null,null,null,"XXX","XXX","XXX","XXX XXX XXX"]
[null,"9h 40                  11h 10","THERMIQUE DE BAT©","SAIDI","C412","THERMIQUE DE BAT© SAIDI C412","VALORISATION ET RECYCLAGE DES MATERIAUX©","KHERIBET","B418","VALORISATION ET RECYCLAGE DES MATERIAUX© KHERIBET B418",null,null,null,null,"XXX","XXX","XXX","XXX XXX XXX"]
[null,"11h20                12h 50","ELASTICITE(TD)","TAZROUT","C412","ELASTICITE(TD) TAZROUT C412","ELEMENTS FINIS(TP)","MANSER","RC9/B","ELEMENTS FINIS(TP) MANSER RC9/B","THERMODYNAMIQUE APP©","XXX","XXX","THERMODYNAMIQUE APP© XXX XXX"]
[null,"13h 00              14h 30",null,null,null,null,null,null,null,null,"THERMODYNAMIQUE APP(TD)","XXX","XXX","THERMODYNAMIQUE APP(TD) XXX XXX","XXX","XXX","XXX","XXX XXX XXX"]
[null,"14h 40              16h 10",null,null,null,null,"STRUCTURE DES MAT ET DEFAUTS-CRISTAL(TD)","DILMI","B311","STRUCTURE DES MAT ET DEFAUTS-CRISTAL(TD) DILMI B311","THERMODYNAMIQUE APP©","XXX","XXX","THERMODYNAMIQUE APP© XXX XXX"]
[null,"16h 20              17h 50"]
["Mardi","8h 00                    9h 30",null,null,null,null,null,null,null,null,"CND©","XXX","XXX","CND© XXX XXX","XXX","XXX","XXX","XXX XXX XXX"]
[null,"9h 40                 11h 10",null,null,null,null,"STRUCTURE DES MAT ET DEFAUTS-CRISTAL©","DILMI","B415","STRUCTURE DES MAT ET DEFAUTS-CRISTAL© DILMI B415",null,null,null,null,"XXX","XXX","XXX","XXX XXX XXX"]
[null,"11h20                12h 50",null,null,null,null,"MANAG DES RESS TECHN©","TAZROUT","B417","MANAG DES RESS TECHN© TAZROUT B417","CRISTALLOGRAPHIE©","XXX","XXX","CRISTALLOGRAPHIE© XXX XXX"]
[null,"13h 00              14h 30",null,null,null,null,null,null,null,null,"CRISTALLOGRAPHIE(TD)","XXX","XXX","CRISTALLOGRAPHIE(TD) XXX XXX","XXX","XXX","XXX","XXX XXX XXX"]
[null,"14h 40              16h 10"]
[null,"16h 20              17h 50"]
["Mercredi","8h 00                    9h 30","LIANTS(TP)","BOUCHOUIKA","C08","LIANTS(TP) BOUCHOUIKA C08","COMP-MEC-MAT-MAT©","DJEBILI","C45","COMP-MEC-MAT-MAT© DJEBILI C45","RHEOLOGIE©","XXX","XXX","RHEOLOGIE© XXX XXX"]
[null,"9h 40                 11h 10","LIANTS(TP)","BOUCHOUIKA","C08","LIANTS(TP) BOUCHOUIKA C08","COMP-MEC-MAT-MAT(TD)","DJEBILI","C45","COMP-MEC-MAT-MAT(TD) DJEBILI C45","CARACTERISATION DES MATR(TP)","XXX","XXX","CARACTERISATION DES MATR(TP) XXX XXX","XXX","XXX","XXX","XXX XXX XXX"]
[null,"11h20                12h 50"]
[null,"13h 00              14h 30","PHYSIQUE DES MAT(TP)","SAFI","C08","PHYSIQUE DES MAT(TP) SAFI C08","ESSAI MECANIQUE(1/2G)(TP) ","DJEBILI","B39","ESSAI MECANIQUE(1/2G)(TP)  DJEBILI B39"]
[null,"14h 40              16h 10","PHYSIQUE DES MAT(TP)","SAFI","C08","PHYSIQUE DES MAT(TP) SAFI C08","ESSAI MECANIQUE(1/2G)(TP) ","DJEBILI","B39","ESSAI MECANIQUE(1/2G)(TP)  DJEBILI B39"]
[null,"16h 20              17h 50"]
["Jeudi","8h 00                     9h 30","ANGLAIS©","HADDADI","C48","ANGLAIS© HADDADI C48",null,null,null,null,"INSTRUMENTATION ET REGULATION©","XXX","XXX","INSTRUMENTATION ET REGULATION© XXX XXX"]
[null,"9h 40                  11h 10","TECHN DES BETON(TP)","BOUCHOUIKA","C08","TECHN DES BETON(TP) BOUCHOUIKA C08","ELAB-CAR-MAT-CERAMIQUE(TP)","BOUMCHEDDA","B112","ELAB-CAR-MAT-CERAMIQUE(TP) BOUMCHEDDA B112","INSTRUMENTATION ET REGULATION(TP)","XXX","XXX","INSTRUMENTATION ET REGULATION(TP) XXX XXX","XXX","XXX","XXX","XXX XXX XXX"]
[null,"11h20                 12h 50","TECHN DES BETON(TP)","BOUCHOUIKA","C08","TECHN DES BETON(TP) BOUCHOUIKA C08"]
[null,"13h 00              14h 30",null,null,null,null,"THERMODYNM DIAG EQUIL©","MENNAD","B419","THERMODYNM DIAG EQUIL© MENNAD B419","METHODES ELECTROCH ANAL©","XXX","XXX","METHODES ELECTROCH ANAL© XXX XXX","XXX","XXX","XXX","XXX XXX XXX"]
[null,"14h 40              16h 10",null,null,null,null,"THERMODYNM DIAG EQUIL(TD)","MENNAD","B419","THERMODYNM DIAG EQUIL(TD) MENNAD B419","METHODES ELECTROCH ANAL(TP)","XXX","XXX","METHODES ELECTROCH ANAL(TP) XXX XXX","XXX","XXX","XXX","XXX XXX XXX"]
[null,"16h 20              17h 50"]
["Samedi","8h 00                     9h 30","OUVRAGE EN BETON ARMEE©","GHANEM-A","B41","OUVRAGE EN BETON ARMEE© GHANEM-A B41",null,null,null,null,null,null,null,null,"XXX","XXX","XXX","XXX XXX XXX"]
[null,"9h 40                  11h 10","OUVRAGE EN BETON ARMEE©","GHANEM-A","B41","OUVRAGE EN BETON ARMEE© GHANEM-A B41",null,null,null,null,null,null,null,null,"XXX","XXX","XXX","XXX XXX XXX"]
[null,"11h20                 12h 50","OUVRAGE EN BETON ARMEE(TD)","GHANEM-A","B41","OUVRAGE EN BETON ARMEE(TD) GHANEM-A B41"]

{"sheet":"MAT LICENCE10","index":11,"n_rows":36,"n_cols":18,"rows_kept":36,"cut":false,"hidden":false,"merged":[[0,0,0,1],[3,0,8,0],[33,0,35,0],[27,0,32,0],[21,0,26,0],[15,0,20,0],[9,0,14,0]]}
[null,null,null,null,null,"Filière:G-Mécanique",null,null,null,"Spécialité:G-matérieaux"]
[{"$f":"TODAY()","v":"2018-09-09"},"Section:",null,null,null,"licence 3ème année",null,null,null,{"$f":"NOW()","v":"2018-09-09T13:48:19.280"}]
["Jour","SEANCES","LGM-16/A","Enseignant","Salle","LGM-16/A","LGM-16/B","Enseignant","Salle","LGM-16/B","LGM-15/C","Enseignant","Salle","LGM-15/C","LSTM11","Enseignant","Salle","LSTM11"]
["Dimanche","8h 00                     9h 30",null,null,null,null,"METHO D'ANALYS ET CARACTERISATION(TP)","BOUMCHEDDA","B112","METHO D'ANALYS ET CARACTERISATION(TP) BOUMCHEDDA B112","XX","XX","XX","XX XX XX","METROLOGIE©","XXX","XXX","METROLOGIE© XXX XXX"]
[null,"9h 40                 11h 10","TRANSFER DE CHALEUR ET DE MASSE©","SAIDI","AP1","TRANSFER DE CHALEUR ET DE MASSE© SAIDI AP1","TRANSFER DE CHALEUR ET DE MASSE©","SAIDI","AP1","TRANSFER DE CHALEUR ET DE MASSE© SAIDI AP1","XX","XX","XX","XX XX XX","METAUX ET ALLIAGE©","XXX","XXX","METAUX ET ALLIAGE© XXX XXX"]
[null,"11h20                 12h 50","TRANSFER DE CHALEUR ET DE MASSE(TP)","BENOUADAH","RC13","TRANSFER DE CHALEUR ET DE MASSE(TP) BENOUADAH RC13",null,null,null,null,null,null,null,null,"MATH ASSIST PAR ORD©","XXX","XXX","MATH ASSIST PAR ORD© XXX XXX"]
[null,"13h 00              14h 30",null,null,null,null,"TRANSFER DE CHALEUR ET DE MASSE(TD)","ANGAR","RC13","TRANSFER DE CHALEUR ET DE MASSE(TD) ANGAR RC13"]
[null,"14h 40              16h 10","TRANSFER DE CHALEUR ET DE MASSE(TD)","ANGAR","RC13","TRANSFER DE CHALEUR ET DE MASSE(TD) ANGAR RC13",null,null,null,null,null,null,null,null,"METAUX ET ALLIAGE(TD)","XXX","XXX","METAUX ET ALLIAGE(TD) XXX XXX"]
[null,"16h 20              17h 50"]
["Lundi","8h 00                    9h 30",null,null,null,null,"M-M-C(TD)","ZERIZER","C49","M-M-C(TD) ZERIZER C49","XX","XX","XX","XX XX XX","LES LIANTS MINEREAUX©","XXX","XXX","LES LIANTS MINEREAUX© XXX XXX"]
[null,"9h 40                  11h 10","M-M-C(TD)","ZERIZER","A24","M-M-C(TD) ZERIZER A24","METAUX ET ALLIAGE(TD)","DILMI","A24","METAUX ET ALLIAGE(TD) DILMI A24","XX","XX","XX","XX XX XX","LES BETONS©","XXX","XXX","LES BETONS© XXX XXX"]
[null,"11h20                12h 50","METHO D'ANALYS ET CARACTERISATION(TP)","BOUMCHEDDA","B112","METHO D'ANALYS ET CARACTERISATION(TP) BOUMCHEDDA B112",null,null,null,null,null,null,null,null,"MATH ASSIST PAR ORD(TD)","XXX","XXX","MATH ASSIST PAR ORD(TD) XXX XXX"]
[null,"13h 00              14h 30","METAUX ET ALLIAGES©","DILMI","B37","METAUX ET ALLIAGES© DILMI B37","METAUX ET ALLIAGES©","DILMI","B37","METAUX ET ALLIAGES© DILMI B37","XX","XX","XX","XX XX XX"]
[null,"14h 40              16h 10","LIANTS ET BETONS©","CHAID","B37","LIANTS ET BETONS© CHAID B37","LIANTS ET BETONS©","CHAID","B37","LIANTS ET BETONS© CHAID B37","XX","XX","XX","XX XX XX"]
[null,"16h 20              17h 50"]
["Mardi","8h 00                    9h 30","MEC DES MELIEUX CONTINUS©","ZERIZER","A12","MEC DES MELIEUX CONTINUS© ZERIZER A12","MEC DES MELIEUX CONTINUS©","ZERIZER","A12","MEC DES MELIEUX CONTINUS© ZERIZER A12","XX","XX","XX","XX XX XX","POLYMERES ET MAT COMP©","XXX","XXX","POLYMERES ET MAT COMP© XXX XXX"]
[null,"9h 40                 11h 10","NORMALISATION©","HAMIANE","AP1","NORMALISATION© HAMIANE AP1","NORMALISATION©","HAMIANE","AP1","NORMALISATION© HAMIANE AP1","XX","XX","XX","XX XX XX","LES LIANTS MINERAUX(TP)(1/2G);LES BETON(TP)((1/2G)","XXX;XXX","XXX;XXX","LES LIANTS MINERAUX(TP)(1/2G) XXX XXX\nLES BETON(TP)((1/2G) XXX XXX"]
[null,"11h20                12h 50","ASSEMBLAGES DES MATERIAUX©","BOUAMRENE","AP1","ASSEMBLAGES DES MATERIAUX© BOUAMRENE AP1","ASSEMBLAGES DES MATERIAUX©","BOUAMRENE","AP1","ASSEMBLAGES DES MATERIAUX© BOUAMRENE AP1","XX","XX","XX","XX XX XX","LES LIANTS MINERAUX(TP)(1/2G);LES BETON(TP)((1/2G)","XXX;XXX","XXX;XXX","LES LIANTS MINERAUX(TP)(1/2G) XXX XXX\nLES BETON(TP)((1/2G) XXX XXX"]
[null,"13h 00              14h 30"]
[null,"14h 40              16h 10","CERAMIQUE ET VERRE ET BETON(TP)","CHEMANI-F+ABOUTALEB","B27","CERAMIQUE ET VERRE ET BETON(TP) CHEMANI-F+ABOUTALEB B27",null,null,null,null,"XX","XX","XX","XX XX XX","ANGLAIS©","XXX","XXX","ANGLAIS© XXX XXX"]
[null,"16h 20              17h 50"]
["Mercredi","8h 00                    9h 30",null,null,null,null,"CERAMIQUE ET VERRE(TD)","ABOUTALEB","B27","CERAMIQUE ET VERRE(TD) ABOUTALEB B27","XX","XX","XX","XX XX XX","VERRES©","XXX","XXX","VERRES© XXX XXX"]
[null,"9h 40                 11h 10","METAUX ET ALLIAGES(TP)","SITOUAH","AT-INIL","METAUX ET ALLIAGES(TP) SITOUAH AT-INIL","TRANSFER DE CHALEUR(TP)","BENOUADAH","B39","TRANSFER DE CHALEUR(TP) BENOUADAH B39","XX","XX","XX","XX XX XX","CERAMIQUE©","XXX","XXX","CERAMIQUE© XXX XXX"]
[null,"11h20                12h 50"]
[null,"13h 00              14h 30","CERAMIQUE ET VERRES©","ABOUTALEB","A14","CERAMIQUE ET VERRES© ABOUTALEB A14","CERAMIQUE ET VERRES©","ABOUTALEB","A14","CERAMIQUE ET VERRES© ABOUTALEB A14","XX","XX","XX","XX XX XX","POLYMERES ET MAT COMP©","XXX","XXX","POLYMERES ET MAT COMP© XXX XXX"]
[null,"14h 40              16h 10",null,null,null,null,"CERAMIQUE ET VERRE ET BETON(TP)","CHEMANI-F+ABOUTALEB","B27","CERAMIQUE ET VERRE ET BETON(TP) CHEMANI-F+ABOUTALEB B27",null,null,null,null,"POLYMERES ET MAT COMP©","XXX","XXX","POLYMERES ET MAT COMP© XXX XXX"]
[null,"16h 20              17h 50"]
["Jeudi","8h 00                     9h 30","METHO D'ANALYS ET CARACTERISATION©","BOUMCHEDDA","A24","METHO D'ANALYS ET CARACTERISATION© BOUMCHEDDA A24","METHO D'ANALYS ET CARACTERISATION©","BOUMCHEDDA","A24","METHO D'ANALYS ET CARACTERISATION© BOUMCHEDDA A24","XX","XX","XX","XX XX XX","CRISTALLOGRAPHIE©","XXX","XXX","CRISTALLOGRAPHIE© XXX XXX"]
[null,"9h 40                  11h 10","CERAMIQUE ET VERRE(TD)","ABOUTALEB","B27","CERAMIQUE ET VERRE(TD) ABOUTALEB B27","ANGLAIS©","DOUALI","A21","ANGLAIS© DOUALI A21","XX","XX","XX","XX XX XX","CERAMIQUE(TP)(1/2G);VERRES(TP)(1/2G)","XXX;XXX","XXX;XXX","CERAMIQUE(TP)(1/2G) XXX XXX\nVERRES(TP)(1/2G) XXX XXX"]
[null,"11h20                 12h 50","ANGLAIS©","DOUALI","A14","ANGLAIS© DOUALI A14",null,null,null,null,null,null,null,null,"CERAMIQUE(TP)(1/2G);VERRES(TP)(1/2G)","XXX;XXX","XXX;XXX","CERAMIQUE(TP)(1/2G) XXX XXX\nVERRES(TP)(1/2G) XXX XXX"]
[null,"13h 00              14h 30","METAUX ET ALLIAGE(TD)","DILMI","B35","METAUX ET ALLIAGE(TD) DILMI B35","METAUX ET ALLIAGES(TP)","SITOUAH","AT-INIL","METAUX ET ALLIAGES(TP) SITOUAH AT-INIL"]
[null,"14h 40              16h 10",null,null,null,null,null,null,null,null,null,null,null,null,"METROLOGIE(TD)","XXX","XXX","METROLOGIE(TD) XXX XXX"]
[null,"16h 20              17h 50"]
["Samedi","8h 00                     9h 30"]
[null,"9h 40                  11h 10",null,null,null,null,null,null,null,null,"XX","XX","XX","XX XX XX"]
[null,"11h20                 12h 50",null,null,null,null,null,null,null,null,"XX","XX","XX","XX XX XX"]

{"sheet":"DGPI LICENCE10","index":12,"n_rows":36,"n_cols":18,"rows_kept":36,"cut":false,"hidden":false,"merged":[[33,0,35,0],[3,0,8,0],[9,0,14,0],[0,0,0,1],[15,0,20,0],[21,0,26,0],[27,0,32,0]]}
[null,null,null,null,null,null,null,null,null,"Filière:génie des procédés",null,null,null,"Spécialite:génie des procédés"]
[{"$f":"TODAY()","v":"2018-09-09"},"Section:",null,null,null,"licence 3ème année",null,null,null,{"$f":"NOW()","v":"2018-09-09T13:48:19.280"}]
["Jour","SEANCES","LGP-16/A","Enseignant","Salle","LGP-16/A","LGP-16/B","Enseignant","Salle","LGP-16/B","LGP-16/C","Enseignant","Salle","LGP-16/C","LGP-16/D","Enseignant","Salle","LGP-16/D"]
["Dimanche","8h 00                     9h 30","[SP]TECH D'ANALYSE(TP)","X","B24","[SP]TECH D'ANALYSE(TP) X B24","CHIMIE PHYSIQUE5 ET G.CHIMIQUE(1/2G)(TP)","MALEK","B26","CHIMIE PHYSIQUE5 ET G.CHIMIQUE(1/2G)(TP) MALEK B26","[SI]TECH D'ANALYSE(TP)","X","B24","[SI]TECH D'ANALYSE(TP) X B24","[SP]TECH D'ANALYSE(TP)","X","B24","[SP]TECH D'ANALYSE(TP) X B24"]
[null,"9h 40                 11h 10","[SP]TECH D'ANALYSE(TP)","X","B24","[SP]TECH D'ANALYSE(TP) X B24","CHIMIE PHYSIQUE5 ET G.CHIMIQUE(1/2G)(TP)","MALEK","B26","CHIMIE PHYSIQUE5 ET G.CHIMIQUE(1/2G)(TP) MALEK B26","[SI]TECH D'ANALYSE(TP)","X","B24","[SI]TECH D'ANALYSE(TP) X B24","[SP]TECH D'ANALYSE(TP)","X","B24","[SP]TECH D'ANALYSE(TP) X B24"]
[null,"11h20                 12h 50"]
[null,"13h 00              14h 30","TECH D'ANALYSE©","GHEMATI","AP2","TECH D'ANALYSE© GHEMATI AP2","TECH D'ANALYSE©","GHEMATI","AP2","TECH D'ANALYSE© GHEMATI AP2","TECH D'ANALYSE©","GHEMATI","AP2","TECH D'ANALYSE© GHEMATI AP2","TECH D'ANALYSE©","GHEMATI","AP2","TECH D'ANALYSE© GHEMATI AP2"]
[null,"14h 40              16h 10","BILAN MACROSCOPIQUE©","LECHEB-TA","X","BILAN MACROSCOPIQUE© LECHEB-TA X","BILAN MACROSCOPIQUE©","LECHEB-TA","X","BILAN MACROSCOPIQUE© LECHEB-TA X","BILAN MACROSCOPIQUE©","LECHEB-TA","X","BILAN MACROSCOPIQUE© LECHEB-TA X","BILAN MACROSCOPIQUE©","LECHEB-TA","X","BILAN MACROSCOPIQUE© LECHEB-TA X"]
[null,"16h 20              17h 50"]
["Lundi","8h 00                    9h 30",null,null,null,null,null,null,null,null,"TRANSF DE MATIERE(TD)","ASSELAH","B46","TRANSF DE MATIERE(TD) ASSELAH B46"]
[null,"9h 40                  11h 10","PROC DES PHARMACETIQUE©","TALANTIKIT","AP4","PROC DES PHARMACETIQUE© TALANTIKIT AP4","PROC DES PHARMACETIQUE©","TALANTIKIT","AP4","PROC DES PHARMACETIQUE© TALANTIKIT AP4","PROC DES PHARMACETIQUE©","TALANTIKIT","AP4","PROC DES PHARMACETIQUE© TALANTIKIT AP4","PROC DES PHARMACETIQUE©","TALANTIKIT","AP4","PROC DES PHARMACETIQUE© TALANTIKIT AP4"]
[null,"11h20                12h 50","TRANSF DE MATIERE©","ASSELAH","AP4","TRANSF DE MATIERE© ASSELAH AP4","TRANSF DE MATIERE©","ASSELAH","AP4","TRANSF DE MATIERE© ASSELAH AP4","TRANSF DE MATIERE©","ASSELAH","AP4","TRANSF DE MATIERE© ASSELAH AP4","TRANSF DE MATIERE©","ASSELAH","AP4","TRANSF DE MATIERE© ASSELAH AP4"]
[null,"13h 00              14h 30","TRANSF DE MATIERE(TD)","ASSELAH","B414","TRANSF DE MATIERE(TD) ASSELAH B414",null,null,null,null,null,null,null,null,"TRANSF DE MATIERE(TD)","X","B414","TRANSF DE MATIERE(TD) X B414"]
[null,"14h 40              16h 10",null,null,null,null,"[SI]BILAN MACROSCOPIQUE(TD)","LECHEB-TA","X","[SI]BILAN MACROSCOPIQUE(TD) LECHEB-TA X","[SP]BILAN MACROSCOPIQUE(TD)","LECHEB-TA","X","[SP]BILAN MACROSCOPIQUE(TD) LECHEB-TA X"]
[null,"16h 20              17h 50"]
["Mardi","8h 00                    9h 30","TRANS DE QUANTITE DE MOUV©","SEKOUR","AP3","TRANS DE QUANTITE DE MOUV© SEKOUR AP3","TRANS DE QUANTITE DE MOUV©","SEKOUR","AP3","TRANS DE QUANTITE DE MOUV© SEKOUR AP3","TRANS DE QUANTITE DE MOUV©","SEKOUR","AP3","TRANS DE QUANTITE DE MOUV© SEKOUR AP3","TRANS DE QUANTITE DE MOUV©","SEKOUR","AP3","TRANS DE QUANTITE DE MOUV© SEKOUR AP3"]
[null,"9h 40                 11h 10","CINETIQUE ETCATALYSE HOMOGENE©","ASSELAH","AP3","CINETIQUE ETCATALYSE HOMOGENE© ASSELAH AP3","CINETIQUE ETCATALYSE HOMOGENE©","ASSELAH","AP3","CINETIQUE ETCATALYSE HOMOGENE© ASSELAH AP3","CINETIQUE ETCATALYSE HOMOGENE©","ASSELAH","AP3","CINETIQUE ETCATALYSE HOMOGENE© ASSELAH AP3","CINETIQUE ETCATALYSE HOMOGENE©","ASSELAH","AP3","CINETIQUE ETCATALYSE HOMOGENE© ASSELAH AP3"]
[null,"11h20                12h 50",null,null,null,null,"TRANSF DE MATIERE(TD)","ASSELAH","B419","TRANSF DE MATIERE(TD) ASSELAH B419",null,null,null,null,"ELECTROCHIMIE(TD)","SMAILI-TA","X","ELECTROCHIMIE(TD) SMAILI-TA X"]
[null,"13h 00              14h 30","[SP]BILAN MACROSCOPIQUE(TD)","LECHEB-TA","X","[SP]BILAN MACROSCOPIQUE(TD) LECHEB-TA X",null,null,null,null,"CHIMIE PHYSIQUE5 ET G.CHIMIQUE(1/2G)(TP)","MALEK","B24","CHIMIE PHYSIQUE5 ET G.CHIMIQUE(1/2G)(TP) MALEK B24"]
[null,"14h 40              16h 10",null,null,null,null,null,null,null,null,"CHIMIE PHYSIQUE5 ET G.CHIMIQUE(1/2G)(TP)","MALEK","B24","CHIMIE PHYSIQUE5 ET G.CHIMIQUE(1/2G)(TP) MALEK B24","TRANSF DE CHALEUR(TD)","BOUFELLAH","X","TRANSF DE CHALEUR(TD) BOUFELLAH X"]
[null,"16h 20              17h 50"]
["Mercredi","8h 00                    9h 30","ELECTROCHIMIE©","LOUHAB","AP2","ELECTROCHIMIE© LOUHAB AP2","ELECTROCHIMIE©","LOUHAB","AP2","ELECTROCHIMIE© LOUHAB AP2","ELECTROCHIMIE©","LOUHAB","AP2","ELECTROCHIMIE© LOUHAB AP2","ELECTROCHIMIE©","LOUHAB","AP2","ELECTROCHIMIE© LOUHAB AP2"]
[null,"9h 40                 11h 10","POLLUTION-AIR-EAU-SOL©","BENRACHEDI","AP2","POLLUTION-AIR-EAU-SOL© BENRACHEDI AP2","POLLUTION-AIR-EAU-SOL©","BENRACHEDI","AP2","POLLUTION-AIR-EAU-SOL© BENRACHEDI AP2","POLLUTION-AIR-EAU-SOL©","BENRACHEDI","AP2","POLLUTION-AIR-EAU-SOL© BENRACHEDI AP2","POLLUTION-AIR-EAU-SOL©","BENRACHEDI","AP2","POLLUTION-AIR-EAU-SOL© BENRACHEDI AP2"]
[null,"11h20                12h 50"]
[null,"13h 00              14h 30","INSTRUMENTATION-CAPTEURS©","X","AP2","INSTRUMENTATION-CAPTEURS© X AP2","INSTRUMENTATION-CAPTEURS©","X","AP2","INSTRUMENTATION-CAPTEURS© X AP2","INSTRUMENTATION-CAPTEURS©","X","AP2","INSTRUMENTATION-CAPTEURS© X AP2","INSTRUMENTATION-CAPTEURS©","X","AP2","INSTRUMENTATION-CAPTEURS© X AP2"]
[null,"14h 40              16h 10"]
[null,"16h 20              17h 50"]
["Jeudi","8h 00                     9h 30","CHIMIE PHYSIQUE5 ET G.CHIMIQUE(1/2G)(TP)","MALEK","B26","CHIMIE PHYSIQUE5 ET G.CHIMIQUE(1/2G)(TP) MALEK B26","[SI]TECH D'ANALYSE(TP)","X","B24","[SI]TECH D'ANALYSE(TP) X B24",null,null,null,null,"CHIMIE PHYSIQUE5 ET G.CHIMIQUE(1/2G)(TP)","BANDOU","B24","CHIMIE PHYSIQUE5 ET G.CHIMIQUE(1/2G)(TP) BANDOU B24"]
[null,"9h 40                  11h 10","CHIMIE PHYSIQUE5 ET G.CHIMIQUE(1/2G)(TP)","MALEK","B26","CHIMIE PHYSIQUE5 ET G.CHIMIQUE(1/2G)(TP) MALEK B26","[SI]TECH D'ANALYSE(TP)","X","B24","[SI]TECH D'ANALYSE(TP) X B24",null,null,null,null,"CHIMIE PHYSIQUE5 ET G.CHIMIQUE(1/2G)(TP)","BANDOU","B24","CHIMIE PHYSIQUE5 ET G.CHIMIQUE(1/2G)(TP) BANDOU B24"]
[null,"11h20                 12h 50",null,null,null,null,null,null,null,null,"TRANSF DE CHALEUR(TD)","BOUFELLAH","B31","TRANSF DE CHALEUR(TD) BOUFELLAH B31"]
[null,"13h 00              14h 30","TRANSF DE CHALEUR©","BOUFELLAH","AP3","TRANSF DE CHALEUR© BOUFELLAH AP3","TRANSF DE CHALEUR©","BOUFELLAH","AP3","TRANSF DE CHALEUR© BOUFELLAH AP3","TRANSF DE CHALEUR©","BOUFELLAH","AP3","TRANSF DE CHALEUR© BOUFELLAH AP3","TRANSF DE CHALEUR©","BOUFELLAH","AP3","TRANSF DE CHALEUR© BOUFELLAH AP3"]
[null,"14h 40              16h 10","PROC AGRO ALIMENTAIRE©","BENAKMOUM","AP3","PROC AGRO ALIMENTAIRE© BENAKMOUM AP3","PROC AGRO ALIMENTAIRE©","BENAKMOUM","AP3","PROC AGRO ALIMENTAIRE© BENAKMOUM AP3","PROC AGRO ALIMENTAIRE©","BENAKMOUM","AP3","PROC AGRO ALIMENTAIRE© BENAKMOUM AP3","PROC AGRO ALIMENTAIRE©","BENAKMOUM","AP3","PROC AGRO ALIMENTAIRE© BENAKMOUM AP3"]
[null,"16h 20              17h 50"]
["Samedi","8h 00                     9h 30",null,null,null,null,"ELECTROCHIMIE(TD)","SMAILI-TA","B212","ELECTROCHIMIE(TD) SMAILI-TA B212"]
[null,"9h 40                  11h 10","ELECTROCHIMIE(TD)","SMAILI-TA","B44","ELECTROCHIMIE(TD) SMAILI-TA B44","TRANSF DE CHALEUR(TD)","BOUFELLAH","B212","TRANSF DE CHALEUR(TD) BOUFELLAH B212"]
[null,"11h20                 12h 50","TRANSF DE CHALEUR(TD)","BOUFELLAH","B44","TRANSF DE CHALEUR(TD) BOUFELLAH B44",null,null,null,null,"ELECTROCHIMIE(TD)","SMAILI-TA","B413","ELECTROCHIMIE(TD) SMAILI-TA B413"]

{"sheet":"MI LICENCE10","index":13,"n_rows":36,"n_cols":19,"rows_kept":36,"cut":false,"hidden":false,"merged":[[0,18,0,20],[0,0,0,1],[27,0,32,0],[33,0,35,0],[3,0,8,0],[9,0,14,0],[15,0,20,0],[21,0,26,0]]}
[null,null,null,null,null,"Filière:Hygiène et securite industrielle",null,null,null,null,null,null,null,"Spécialité:Hygiène et securite industrielle",null,null,null,null,{"$f":"NOW()","v":"2018-09-09T13:48:19.280"}]
[{"$f":"TODAY()","v":"2018-09-09"},"Section:",null,null,null,"licence 3ème année"]
["Jour","SEANCES","LGP-16/E","Enseignant","Salle","LGP-16/E","LGP-16/F","Enseignant","Salle","LGP-16/F","LGP-16/G","Enseignant","Salle","LGP-16/G","LHSI-16","Enseignant","Salle","LHSI-16"]
["Dimanche","8h 00                     9h 30","CHIMIE PHYSIQUE5 ET G.CHIMIQUE(1/2G)(TP)","BANDOU","C210","CHIMIE PHYSIQUE5 ET G.CHIMIQUE(1/2G)(TP) BANDOU C210","[SI]TECH D'ANALYSE(TP)","X","B24","[SI]TECH D'ANALYSE(TP) X B24","CHIMIE PHYSIQUE5 ET G.CHIMIQUE(1/2G)(TP)","BANDOU","C210","CHIMIE PHYSIQUE5 ET G.CHIMIQUE(1/2G)(TP) BANDOU C210"]
[null,"9h 40                 11h 10","CHIMIE PHYSIQUE5 ET G.CHIMIQUE(1/2G)(TP)","BANDOU","C210","CHIMIE PHYSIQUE5 ET G.CHIMIQUE(1/2G)(TP) BANDOU C210","[SI]TECH D'ANALYSE(TP)","X","B24","[SI]TECH D'ANALYSE(TP) X B24","CHIMIE PHYSIQUE5 ET G.CHIMIQUE(1/2G)(TP)","BANDOU","C210","CHIMIE PHYSIQUE5 ET G.CHIMIQUE(1/2G)(TP) BANDOU C210","SECURITE INCEDIE©","KEBBOUCHE","B36","SECURITE INCEDIE© KEBBOUCHE B36"]
[null,"11h20                 12h 50",null,null,null,null,null,null,null,null,null,null,null,null,"PROTECTION ENVIRONNEMENT©","ABDELLAOUI","B35","PROTECTION ENVIRONNEMENT© ABDELLAOUI B35"]
[null,"13h 00              14h 30","TECH D'ANALYSE©","GHEMATI","AP2","TECH D'ANALYSE© GHEMATI AP2","TECH D'ANALYSE©","GHEMATI","AP2","TECH D'ANALYSE© GHEMATI AP2","TECH D'ANALYSE©","GHEMATI","AP2","TECH D'ANALYSE© GHEMATI AP2","TOXICOLOGIE INDUST©","ANNOU","RC14","TOXICOLOGIE INDUST© ANNOU RC14"]
[null,"14h 40              16h 10","BILAN MACROSCOPIQUE©","LECHEB-TA","X","BILAN MACROSCOPIQUE© LECHEB-TA X","BILAN MACROSCOPIQUE©","LECHEB-TA","X","BILAN MACROSCOPIQUE© LECHEB-TA X","BILAN MACROSCOPIQUE©","LECHEB-TA","X","BILAN MACROSCOPIQUE© LECHEB-TA X","TOXICOLOGIE INDUST(TD) ","ANNOU","RC14","TOXICOLOGIE INDUST(TD)  ANNOU RC14"]
[null,"16h 20              17h 50"]
["Lundi","8h 00                    9h 30",null,null,null,null,"TRANSF DE MATIERE(TD)","X","B48","TRANSF DE MATIERE(TD) X B48",null,null,null,null,"SECURITE INCEDIE© ","KEBBOUCHE","B214","SECURITE INCEDIE©  KEBBOUCHE B214"]
[null,"9h 40                  11h 10","PROC DES PHARMACETIQUE©","TALANTIKIT","AP4","PROC DES PHARMACETIQUE© TALANTIKIT AP4","PROC DES PHARMACETIQUE©","TALANTIKIT","AP4","PROC DES PHARMACETIQUE© TALANTIKIT AP4","PROC DES PHARMACETIQUE©","TALANTIKIT","AP4","PROC DES PHARMACETIQUE© TALANTIKIT AP4","SECURITE INCEDIE(TD) ","KEBBOUCHE","B214","SECURITE INCEDIE(TD)  KEBBOUCHE B214"]
[null,"11h20                12h 50","TRANSF DE MATIERE©","ASSELAH","AP4","TRANSF DE MATIERE© ASSELAH AP4","TRANSF DE MATIERE©","ASSELAH","AP4","TRANSF DE MATIERE© ASSELAH AP4","TRANSF DE MATIERE©","ASSELAH","AP4","TRANSF DE MATIERE© ASSELAH AP4","ACAUSTIQUE INDUST©","X","B214","ACAUSTIQUE INDUST© X B214"]
[null,"13h 00              14h 30","ELECTROCHIMIE(TD)","SMAILI-TA","X","ELECTROCHIMIE(TD) SMAILI-TA X"]
[null,"14h 40              16h 10",null,null,null,null,"ELECTROCHIMIE(TD)","SMAILI-TA","X","ELECTROCHIMIE(TD) SMAILI-TA X","TRANSF DE CHALEUR(TD)","X","X","TRANSF DE CHALEUR(TD) X X"]
[null,"16h 20              17h 50"]
["Mardi","8h 00                    9h 30","TRANS DE QUANTITE DE MOUV©","SEKOUR","AP3","TRANS DE QUANTITE DE MOUV© SEKOUR AP3","TRANS DE QUANTITE DE MOUV©","SEKOUR","AP3","TRANS DE QUANTITE DE MOUV© SEKOUR AP3","TRANS DE QUANTITE DE MOUV©","SEKOUR","AP3","TRANS DE QUANTITE DE MOUV© SEKOUR AP3","ANALYS DES DONNEES OUTILS STAT©","LECHEB-TA","C49","ANALYS DES DONNEES OUTILS STAT© LECHEB-TA C49"]
[null,"9h 40                 11h 10","CINETIQUE ETCATALYSE HOMOGENE©","ASSELAH","AP3","CINETIQUE ETCATALYSE HOMOGENE© ASSELAH AP3","CINETIQUE ETCATALYSE HOMOGENE©","ASSELAH","AP3","CINETIQUE ETCATALYSE HOMOGENE© ASSELAH AP3","CINETIQUE ETCATALYSE HOMOGENE©","ASSELAH","AP3","CINETIQUE ETCATALYSE HOMOGENE© ASSELAH AP3","ETUDE DE CAS EN HSI©","BALLOUL","A12","ETUDE DE CAS EN HSI© BALLOUL A12"]
[null,"11h20                12h 50","TRANSF DE MATIERE(TD)","X","B415","TRANSF DE MATIERE(TD) X B415",null,null,null,null,null,null,null,null,"NOTION D'ECOLOGIES©","BALLOUL","A12","NOTION D'ECOLOGIES© BALLOUL A12"]
[null,"13h 00              14h 30",null,null,null,null,"CHIMIE PHYSIQUE5 ET G.CHIMIQUE(1/2G)(TP)","BANDOU","C210","CHIMIE PHYSIQUE5 ET G.CHIMIQUE(1/2G)(TP) BANDOU C210","TRANSF DE MATIERE(TD)","X","X","TRANSF DE MATIERE(TD) X X"]
[null,"14h 40              16h 10","[SI]BILAN MACROSCOPIQUE(TD)","LECHEB-TA","X","[SI]BILAN MACROSCOPIQUE(TD) LECHEB-TA X","CHIMIE PHYSIQUE5 ET G.CHIMIQUE(1/2G)(TP)","BANDOU","C210","CHIMIE PHYSIQUE5 ET G.CHIMIQUE(1/2G)(TP) BANDOU C210","ELECTROCHIMIE(TD)","SMAILI-TA","X","ELECTROCHIMIE(TD) SMAILI-TA X"]
[null,"16h 20              17h 50"]
["Mercredi","8h 00                    9h 30","ELECTROCHIMIE©","LOUHAB","AP2","ELECTROCHIMIE© LOUHAB AP2","ELECTROCHIMIE©","LOUHAB","AP2","ELECTROCHIMIE© LOUHAB AP2","ELECTROCHIMIE©","LOUHAB","AP2","ELECTROCHIMIE© LOUHAB AP2","METHO QUALIT D'ANALYS©","TIRECHE","B312","METHO QUALIT D'ANALYS© TIRECHE B312"]
[null,"9h 40                 11h 10","POLLUTION-AIR-EAU-SOL©","BENRACHEDI","AP2","POLLUTION-AIR-EAU-SOL© BENRACHEDI AP2","POLLUTION-AIR-EAU-SOL©","BENRACHEDI","AP2","POLLUTION-AIR-EAU-SOL© BENRACHEDI AP2","POLLUTION-AIR-EAU-SOL©","BENRACHEDI","AP2","POLLUTION-AIR-EAU-SOL© BENRACHEDI AP2","METHO-QUALIT D'ANALYSE(TD)","TIRECHE","B312","METHO-QUALIT D'ANALYSE(TD) TIRECHE B312"]
[null,"11h20                12h 50",null,null,null,null,null,null,null,null,null,null,null,null,"DEVELOPPEMENT DURABLE©","BALLOUL","B312","DEVELOPPEMENT DURABLE© BALLOUL B312"]
[null,"13h 00              14h 30","INSTRUMENTATION-CAPTEURS©","X","AP2","INSTRUMENTATION-CAPTEURS© X AP2","INSTRUMENTATION-CAPTEURS©","X","AP2","INSTRUMENTATION-CAPTEURS© X AP2","INSTRUMENTATION-CAPTEURS©","X","AP2","INSTRUMENTATION-CAPTEURS© X AP2"]
[null,"14h 40              16h 10","TRANSF DE CHALEUR(TD)","X","X","TRANSF DE CHALEUR(TD) X X","[SI]BILAN MACROSCOPIQUE(TD)","LECHEB-TA","X","[SI]BILAN MACROSCOPIQUE(TD) LECHEB-TA X","[SI]BILAN MACROSCOPIQUE(TD)","LECHEB-TA","X","[SI]BILAN MACROSCOPIQUE(TD) LECHEB-TA X","SYST MANAGEMENT©","HADDADOU","A12","SYST MANAGEMENT© HADDADOU A12"]
[null,"16h 20              17h 50"]
["Jeudi","8h 00                     9h 30","[SI]TECH D'ANALYSE(TP)","X","B24","[SI]TECH D'ANALYSE(TP) X B24",null,null,null,null,"[SI]TECH D'ANALYSE(TP)","X","B24","[SI]TECH D'ANALYSE(TP) X B24"]
[null,"9h 40                  11h 10","[SI]TECH D'ANALYSE(TP)","X","B24","[SI]TECH D'ANALYSE(TP) X B24",null,null,null,null,"[SI]TECH D'ANALYSE(TP)","X","B24","[SI]TECH D'ANALYSE(TP) X B24"]
[null,"11h20                 12h 50",null,null,null,null,"TRANSF DE CHALEUR(TD)","X","B35","TRANSF DE CHALEUR(TD) X B35"]
[null,"13h 00              14h 30","TRANSF DE CHALEUR©","BOUFELLAH","AP3","TRANSF DE CHALEUR© BOUFELLAH AP3","TRANSF DE CHALEUR©","BOUFELLAH","AP3","TRANSF DE CHALEUR© BOUFELLAH AP3","TRANSF DE CHALEUR©","BOUFELLAH","AP3","TRANSF DE CHALEUR© BOUFELLAH AP3"]
[null,"14h 40              16h 10","PROC AGRO ALIMENTAIRE©","BENAKMOUM","AP3","PROC AGRO ALIMENTAIRE© BENAKMOUM AP3","PROC AGRO ALIMENTAIRE©","BENAKMOUM","AP3","PROC AGRO ALIMENTAIRE© BENAKMOUM AP3","PROC AGRO ALIMENTAIRE©","BENAKMOUM","AP3","PROC AGRO ALIMENTAIRE© BENAKMOUM AP3"]
[null,"16h 20              17h 50"]
["Samedi","8h 00                     9h 30",null,null,null,null,null,null,null,null,null,null,null,null,"SECURITE INST EQUIP INDUST©","X","B37","SECURITE INST EQUIP INDUST© X B37"]
[null,"9h 40                  11h 10",null,null,null,null,null,null,null,null,null,null,null,null,"SECURITE INST EQUIP INDUST©","X","B37","SECURITE INST EQUIP INDUST© X B37"]
[null,"11h20                 12h 50",null,null,null,null,null,null,null,null,null,null,null,null,"SECURITE INST EQUIP INDUST(TD) ","X","B37","SECURITE INST EQUIP INDUST(TD)  X B37"]

{"sheet":"DGPI MASTER11","index":14,"n_rows":36,"n_cols":18,"rows_kept":36,"cut":false,"hidden":false,"merged":[[0,0,0,1],[27,0,32,0],[33,0,35,0],[3,0,8,0],[9,0,14,0],[15,0,20,0],[21,0,26,0]]}
["Departement:",null,null,null,null,"génie des procédés"]
[{"$f":"TODAY()","v":"2018-09-09"},"Section:",null,null,null,"master 2ème année",null,null,null,{"$f":"NOW()","v":"2018-09-09T13:48:19.280"}]
["Jour","SEANCES","MGCH-17","Enseignant","Salle","MGCH-17","MGEV-17","Enseignant","Salle","MGEV-17","MHSI-17","Enseignant","Salle","MHSI-17","MPOLY17","Enseignant","Salle","MPOLY17"]
["Dimanche","8h 00                     9h 30","OPTIM-MOD-PROC©","BENOTMANE","RC14","OPTIM-MOD-PROC© BENOTMANE RC14","POLLUTION DU SOL©","BOUMECHHOUR","C49","POLLUTION DU SOL© BOUMECHHOUR C49"]
[null,"9h 40                 11h 10","OPTIM-MOD-PROC(TD)","BENOTMANE","RC14","OPTIM-MOD-PROC(TD) BENOTMANE RC14","POLLUTION DU SOL(TD)","BOUMECHHOUR","C49","POLLUTION DU SOL(TD) BOUMECHHOUR C49",null,null,null,null,"METH-PHYS-ANALY©","HADERBACHE","C32","METH-PHYS-ANALY© HADERBACHE C32"]
[null,"11h20                 12h 50",null,null,null,null,null,null,null,null,"MICRO-BIO-ENV©","ANNOU","B37","MICRO-BIO-ENV© ANNOU B37"]
[null,"13h 00              14h 30","DISTILLATION(TP)","BOUTICHE","B24","DISTILLATION(TP) BOUTICHE B24","REG-COM-PROC©","X","C310","REG-COM-PROC© X C310","METH-INT-ANAL-RISQUE©","ZAOUANI","B212","METH-INT-ANAL-RISQUE© ZAOUANI B212","METH-PHYS-ANALYSES(TD","HADERBACHE","B46","METH-PHYS-ANALYSES(TD HADERBACHE B46"]
[null,"14h 40              16h 10",null,null,null,null,"REG-COM-PROC(TP)","X","C37","REG-COM-PROC(TP) X C37","METH-INT-ANAL-RISQUE(1/2G)(TP)","ZAOUANI","B212","METH-INT-ANAL-RISQUE(1/2G)(TP) ZAOUANI B212","METH-PHYS-ANALY(TP)","YELLES","B46","METH-PHYS-ANALY(TP) YELLES B46"]
[null,"16h 20              17h 50"]
["Lundi","8h 00                    9h 30","DISTILLATION©","ALIOUCHE","B310","DISTILLATION© ALIOUCHE B310","PROC-TRAIT-EFF-GAZ©","BALLOUL","B38","PROC-TRAIT-EFF-GAZ© BALLOUL B38","OUTILS D'AIDE DECISION©","ZAOUANI","B42","OUTILS D'AIDE DECISION© ZAOUANI B42","MEC-POLYMERS©","KOUINI","B311","MEC-POLYMERS© KOUINI B311"]
[null,"9h 40                  11h 10","DISTILLATION(TD)","ALIOUCHE","B310","DISTILLATION(TD) ALIOUCHE B310","PROC-TRAIT-EFF-GAZ(TD)","BALLOUL","B38","PROC-TRAIT-EFF-GAZ(TD) BALLOUL B38","OUTILS D'AIDE DECISION(TD)","ZAOUANI","B42","OUTILS D'AIDE DECISION(TD) ZAOUANI B42","MAT-COMP-INOOVANTES©","GHEMATI","B311","MAT-COMP-INOOVANTES© GHEMATI B311"]
[null,"11h20                12h 50",null,null,null,null,null,null,null,null,"CULTURE DE SECURITE©","ZAOUANI","B35","CULTURE DE SECURITE© ZAOUANI B35","POLYMERS ENVIRONNEMENT©","GHEMATI","B311","POLYMERS ENVIRONNEMENT© GHEMATI B311"]
[null,"13h 00              14h 30","INTENSI-PROC©","X","A12","INTENSI-PROC© X A12","G-ENVIRONNEMENT(TP)","BOUMECHHOUR","B12","G-ENVIRONNEMENT(TP) BOUMECHHOUR B12"]
[null,"14h 40              16h 10",null,null,null,null,"G-ENVIRONNEMENT(TP)","BOUMECHHOUR","B12","G-ENVIRONNEMENT(TP) BOUMECHHOUR B12",null,null,null,null,"VEILLIS ET DEGRADATION(TD)","KOUINI","B310","VEILLIS ET DEGRADATION(TD) KOUINI B310"]
[null,"16h 20              17h 50"]
["Mardi","8h 00                    9h 30","CHIMIE VERTE©","HACHEMI-MS","B44","CHIMIE VERTE© HACHEMI-MS B44","INSTR-ANAL-STAT©","YEDDOU","A16","INSTR-ANAL-STAT© YEDDOU A16","AUDIT-CERI-ACCRE©","X","A14","AUDIT-CERI-ACCRE© X A14","BIO-POLYMERS©","BELLOUL","B48","BIO-POLYMERS© BELLOUL B48"]
[null,"9h 40                 11h 10","RAFFINAGE PETROCHIMIE(TP)","X","C210","RAFFINAGE PETROCHIMIE(TP) X C210","BIOPROCEDES©","YEDDOU","A16","BIOPROCEDES© YEDDOU A16","SECURITE FONC(TD)","KORSO","B46","SECURITE FONC(TD) KORSO B46","BIO-POLYMERS(TD)","BELLOUL","B48","BIO-POLYMERS(TD) BELLOUL B48"]
[null,"11h20                12h 50",null,null,null,null,null,null,null,null,"MANAGEMENT ENV©","TIRECHE","B44","MANAGEMENT ENV© TIRECHE B44"]
[null,"13h 00              14h 30","RAF-PETROCHI©","KIHAL","A12","RAF-PETROCHI© KIHAL A12","MILIEUX-PAREUX-DISPERSES(TP)","OUAZENE","B111","MILIEUX-PAREUX-DISPERSES(TP) OUAZENE B111",null,null,null,null,"VIELLIS DEGRA-POLY©","KOUINI","C48","VIELLIS DEGRA-POLY© KOUINI C48"]
[null,"14h 40              16h 10","RAFFINAGE PETROCHIMIE(TD)","KIHAL","A12","RAFFINAGE PETROCHIMIE(TD) KIHAL A12",null,null,null,null,null,null,null,null,"MEC-POLYMERS(TP)","KOUINI","C48","MEC-POLYMERS(TP) KOUINI C48"]
[null,"16h 20              17h 50"]
["Mercredi","8h 00                    9h 30",null,null,null,null,"BIOPROCEDES©","YEDDOU","B417","BIOPROCEDES© YEDDOU B417","MAIT-STATIS-PROCESS©","HARFOUCHE","B214","MAIT-STATIS-PROCESS© HARFOUCHE B214","APPLIC-IND©","ABDELLAOUI","B413","APPLIC-IND© ABDELLAOUI B413"]
[null,"9h 40                 11h 10","ECONCEPTIONII©","LOUHAB","B37","ECONCEPTIONII© LOUHAB B37","BIOPROCEDES(TD)","YEDDOU","B417","BIOPROCEDES(TD) YEDDOU B417","MAIT-STATIS-PROCESS©","HARFOUCHE","B214","MAIT-STATIS-PROCESS© HARFOUCHE B214","RECY-VAL-POLY©","OUSLIMANI","RC14","RECY-VAL-POLY© OUSLIMANI RC14"]
[null,"11h20                12h 50"]
[null,"13h 00              14h 30","PLAN D'EXPERIENCE©","BENMALEK","B47","PLAN D'EXPERIENCE© BENMALEK B47","PROC-MEMB-D'ESSAI©","BENRACHEDI","B417","PROC-MEMB-D'ESSAI© BENRACHEDI B417","MAINT-INDUST©","SMAILI-MI","A24","MAINT-INDUST© SMAILI-MI A24","PROP-POLYMERS©","BOUMERDASSI","B413","PROP-POLYMERS© BOUMERDASSI B413"]
[null,"14h 40              16h 10","PLAN D'EXPERIENCE(TP)","BENMALEK","X","PLAN D'EXPERIENCE(TP) BENMALEK X","PROC-MEMB-D'ESSAI(TD)","BENRACHEDI","B417","PROC-MEMB-D'ESSAI(TD) BENRACHEDI B417",null,null,null,null,"PROP-POLYMERS(TD)","BOUMERDASSI","B413","PROP-POLYMERS(TD) BOUMERDASSI B413"]
[null,"16h 20              17h 50"]
["Jeudi","8h 00                     9h 30","RECH-DOC-CON©","SOUAM","AP6","RECH-DOC-CON© SOUAM AP6","RECH-DOC-CON©","SOUAM","AP6","RECH-DOC-CON© SOUAM AP6","RECH-DOC-CON©","SOUAM","AP6","RECH-DOC-CON© SOUAM AP6","RECH-DOC-CON©","SOUAM","AP6","RECH-DOC-CON© SOUAM AP6"]
[null,"9h 40                  11h 10","MILIEUX-POREUX-DISPERSES©","OUAZENE","B37","MILIEUX-POREUX-DISPERSES© OUAZENE B37","MILIEUX-PAREUX-DISPERSES©","OUAZENE","B37","MILIEUX-PAREUX-DISPERSES© OUAZENE B37","SECURITE FONC©","KORSO","C49","SECURITE FONC© KORSO C49","MOD-PROC©","TRACHI","A15","MOD-PROC© TRACHI A15"]
[null,"11h20                 12h 50",null,null,null,null,"MATIERE AUX CHOIX©","X","B416","MATIERE AUX CHOIX© X B416",null,null,null,null,"[SI]MOD-PROC(TP)","TRACHI","A15","[SI]MOD-PROC(TP) TRACHI A15"]
[null,"13h 00              14h 30","MILIEUX-POREUX-DISPERSES(TP)","OUAZENE","B111","MILIEUX-POREUX-DISPERSES(TP) OUAZENE B111",null,null,null,null,"SURETTE-FON-SYSII©","X","A24","SURETTE-FON-SYSII© X A24"]
[null,"14h 40              16h 10","MILIEUX-POREUX-DISPERSES(TP)","OUAZENE","B111","MILIEUX-POREUX-DISPERSES(TP) OUAZENE B111",null,null,null,null,"SURETTE-FON-SYSII(TD)","X","A24","SURETTE-FON-SYSII(TD) X A24"]
[null,"16h 20              17h 50"]
["Samedi","8h 00                     9h 30"]
[null,"9h 40                  11h 10"]
[null,"11h20                 12h 50"]

{"sheet":"ENV MASTER12","index":15,"n_rows":36,"n_cols":18,"rows_kept":36,"cut":false,"hidden":false,"merged":[[0,0,0,1],[33,0,35,0],[3,0,8,0],[9,0,14,0],[15,0,20,0],[27,0,32,0],[21,0,26,0]]}
["Flière:G des procedes",null,null,null,null,"Spécialite:génie chimique-",null,null,null,"Spécialite:génie des procedes de l'environnement"]
[null,"Section:",null,null,null,"master 1ère année",null,null,null,{"$f":"NOW()","v":"2018-09-09T13:48:19.280"}]
["Jour","SEANCES","MGCH-18","Enseignant","Salle","MGCH-18","MGEV-18","Enseignant","Salle","MGEV-18","MHSI-18","Enseignant","Salle","MHSI-18","MPOLY-18","Enseignant","Salle","MPOLY-18"]
["Dimanche","8h 00                     9h 30","SIMUL EN GDP©","X","AB12","SIMUL EN GDP© X AB12","GENIE DES REACTEURS HETROGENES©","NOURI-H","B213","GENIE DES REACTEURS HETROGENES© NOURI-H B213",null,null,null,null,"PHYSICO-CHIMIE DES MACROMOL©","X","B46","PHYSICO-CHIMIE DES MACROMOL© X B46"]
[null,"9h 40                 11h 10","SIM-GDP(TP)","X","AB12","SIM-GDP(TP) X AB12","ADSORPTION TECHNIQUE(TP)","SAHMOUNE","C07","ADSORPTION TECHNIQUE(TP) SAHMOUNE C07","RISQUE PYHS INDUST©","BOUGHERARA","B418","RISQUE PYHS INDUST© BOUGHERARA B418","PHYSICO-CHIMIE DES MACROMOL(TD)","X","B46","PHYSICO-CHIMIE DES MACROMOL(TD) X B46"]
[null,"11h20                 12h 50",null,null,null,null,"ADSORPTION TECHNIQUE©","SAHMOUNE","B39","ADSORPTION TECHNIQUE© SAHMOUNE B39","PREVENTION ET DETECTION DU RISQUE©","KEBBOUCHE","B213","PREVENTION ET DETECTION DU RISQUE© KEBBOUCHE B213"]
[null,"13h 00              14h 30","GENIE DE LA REACTION©","NOURI-H","B310","GENIE DE LA REACTION© NOURI-H B310",null,null,null,null,"OUTILS MATH UTILISES-SURETE-FONCT©","X","B213","OUTILS MATH UTILISES-SURETE-FONCT© X B213","TRANSFERT CHALEUR ET DE MASSE©","BOUGHERARA","B414","TRANSFERT CHALEUR ET DE MASSE© BOUGHERARA B414"]
[null,"14h 40              16h 10","GENIE DE LA REACTION(1/2G)(TD)","NOURI-H","B32","GENIE DE LA REACTION(1/2G)(TD) NOURI-H B32"]
[null,"16h 20              17h 50"]
["Lundi","8h 00                    9h 30","TRANSF-THERM-ECHANG-CHALEUR©","AISSAT","B44","TRANSF-THERM-ECHANG-CHALEUR© AISSAT B44",null,null,null,null,"DANGERS ELECTRIQUES MEC(TP)","X","B23","DANGERS ELECTRIQUES MEC(TP) X B23"]
[null,"9h 40                  11h 10","TRANSF-THERM-ECHANG-CHALEUR(TD)","AISSAT","B44","TRANSF-THERM-ECHANG-CHALEUR(TD) AISSAT B44",null,null,null,null,"DANGERS VIBR- PRESSIONS(TP)","X","B23","DANGERS VIBR- PRESSIONS(TP) X B23","THERMODYNAMIQUE ET DAIGRA©","BOUMERDASSI","B413","THERMODYNAMIQUE ET DAIGRA© BOUMERDASSI B413"]
[null,"11h20                12h 50","ANGLAIS-TECH-TERM©","X","B44","ANGLAIS-TECH-TERM© X B44","ASSAINISSEMENT©","AMITOUCHE","C48","ASSAINISSEMENT© AMITOUCHE C48","LEVAGE ET MANULENTION(TP)","X","B23","LEVAGE ET MANULENTION(TP) X B23","RHEOLOGIES DES POLYMERS©","BOUMERDASSI","B413","RHEOLOGIES DES POLYMERS© BOUMERDASSI B413"]
[null,"13h 00              14h 30",null,null,null,null,"ECOLOGIE APPLIQUES©","BALLOUL","C48","ECOLOGIE APPLIQUES© BALLOUL C48","ANGLAIS TECH-TER©","X","B39","ANGLAIS TECH-TER© X B39"]
[null,"14h 40              16h 10","THERMOD-TECH(TD)","AISSAT","B418","THERMOD-TECH(TD) AISSAT B418","ANGLAIS-TECH-TERM©","X","C45","ANGLAIS-TECH-TERM© X C45",null,null,null,null,"[SI]RHEOLOGIES DES POLYMERS(TP)","BOUMERDASSI","B23","[SI]RHEOLOGIES DES POLYMERS(TP) BOUMERDASSI B23"]
[null,"16h 20              17h 50"]
["Mardi","8h 00                    9h 30","GENIE DE LA REACTION(1/2G)(TD)","NOURI-H","B311","GENIE DE LA REACTION(1/2G)(TD) NOURI-H B311","CHIMIE DES EAUX©","BENRACHEDI","A25","CHIMIE DES EAUX© BENRACHEDI A25","PROGRAMMATION MATLAB©","BENZAID","B36","PROGRAMMATION MATLAB© BENZAID B36","SURFACE ET INTERFACE©","ALIOUCHE","A21","SURFACE ET INTERFACE© ALIOUCHE A21"]
[null,"9h 40                 11h 10","OPERATION-UNITAIRE(TD)","SEKOUR","B417","OPERATION-UNITAIRE(TD) SEKOUR B417","GENIE DES REACTEURS HETEROGENES(TD)","NOURI-H","A25","GENIE DES REACTEURS HETEROGENES(TD) NOURI-H A25","RISQUE MAJEURS©","TIRECHE","B36","RISQUE MAJEURS© TIRECHE B36","CHIMIE  MACROMOLECULES©","BOUMERDASSI","X","CHIMIE  MACROMOLECULES© BOUMERDASSI X"]
[null,"11h20                12h 50",null,null,null,null,null,null,null,null,null,null,null,null,"THERMODYNAMIQUE ET DAIGRA(TD)","BOUMERDASSI","B49","THERMODYNAMIQUE ET DAIGRA(TD) BOUMERDASSI B49"]
[null,"13h 00              14h 30","TRANSF-THERM-ECHANG-CHALEUR(TP);THERMODY(TP)","X;AISSAT","B26;C26","TRANSF-THERM-ECHANG-CHALEUR(TP) X B26\nTHERMODY(TP) AISSAT C26","GENIE DE L'ENVIRONNEMENT(TP)","TALANTIKIT","C07","GENIE DE L'ENVIRONNEMENT(TP) TALANTIKIT C07","METHONUME-MATRIC-ANALY-RISQ©","HARFOUCHE","B313","METHONUME-MATRIC-ANALY-RISQ© HARFOUCHE B313","ANGLAIS-TECH-TER©","REZAL","B49","ANGLAIS-TECH-TER© REZAL B49"]
[null,"14h 40              16h 10","TRANSF-THERM-ECHANG-CHALEUR(TP);THERMODY(TP)","X;AISSAT","B26;C26","TRANSF-THERM-ECHANG-CHALEUR(TP) X B26\nTHERMODY(TP) AISSAT C26","GENIE DE L'ENVIRONNEMENT(TP)","TALANTIKIT","C07","GENIE DE L'ENVIRONNEMENT(TP) TALANTIKIT C07"]
[null,"16h 20              17h 50"]
["Mercredi","8h 00                    9h 30","TECHNOL-PROC-PROPRES©","OUSLIMANI","RC14","TECHNOL-PROC-PROPRES© OUSLIMANI RC14","CHIMIE DES MILIEUX AQUATIQUE©","HADDADOU","B35","CHIMIE DES MILIEUX AQUATIQUE© HADDADOU B35","MESURE ET MAITRISE DU RISQUE©","MEGDOUD","C42","MESURE ET MAITRISE DU RISQUE© MEGDOUD C42"]
[null,"9h 40                 11h 10","OPERATION-UNITAIRE©","BOUREGHDA","B213","OPERATION-UNITAIRE© BOUREGHDA B213","CHIMIE DES MILIEUX AQUATIQUE(TD)","HADDADOU","B31","CHIMIE DES MILIEUX AQUATIQUE(TD) HADDADOU B31","MESURE ET MAITRISE DU RISQUE(TD)","MEGDOUD","C42","MESURE ET MAITRISE DU RISQUE(TD) MEGDOUD C42","CHIMIE  MACROMOLECULES(TD)","BOUMERDASSI","B413","CHIMIE  MACROMOLECULES(TD) BOUMERDASSI B413"]
[null,"11h20                12h 50",null,null,null,null,null,null,null,null,"PROGRAMMATION MATLAB(TD)","BENZAID","B210","PROGRAMMATION MATLAB(TD) BENZAID B210","SYNTHESE ET FORMES POLY©","BELLOUL","B49","SYNTHESE ET FORMES POLY© BELLOUL B49"]
[null,"13h 00              14h 30","OPERATION-UNITAIRE(TP);GENIE DE REACTION(TP)","SEKOUR;NOURI-H","B24;B11","OPERATION-UNITAIRE(TP) SEKOUR B24\nGENIE DE REACTION(TP) NOURI-H B11","TRAITEMENT DES EAUX POTABLE©","BOUREGHDA","X","TRAITEMENT DES EAUX POTABLE© BOUREGHDA X","METHONUME-MATRIC-ANALY-RISQ(TD)","HARFOUCHE","B31","METHONUME-MATRIC-ANALY-RISQ(TD) HARFOUCHE B31","TRANSFERT CHALEUR ET DE MASSE(TD)","BOUGHERARA","B49","TRANSFERT CHALEUR ET DE MASSE(TD) BOUGHERARA B49"]
[null,"14h 40              16h 10","OPERATION-UNITAIRE(TP);GENIE DE REACTION(TP)","SEKOUR;NOURI-H","B24;B11","OPERATION-UNITAIRE(TP) SEKOUR B24\nGENIE DE REACTION(TP) NOURI-H B11",null,null,null,null,null,null,null,null,"SYNTHESE ET FORMES POLYTD)","BELLOUL","B49","SYNTHESE ET FORMES POLYTD) BELLOUL B49"]
[null,"16h 20              17h 50"]
["Jeudi","8h 00                     9h 30","THERMOD-TECH©","AISSAT","B418","THERMOD-TECH© AISSAT B418","BIOCHIMIE©","FERNANI","B47","BIOCHIMIE© FERNANI B47","RISQUE PYHS INDUST©","BOUGHERARA","B31","RISQUE PYHS INDUST© BOUGHERARA B31"]
[null,"9h 40                  11h 10","OPERATION-UNITAIRE©","BOUREGHDA","B418","OPERATION-UNITAIRE© BOUREGHDA B418","BIOCHIMIE(TD)","FERNANI","B47","BIOCHIMIE(TD) FERNANI B47","RISQUE PHYS INDUST(TD)","BOUGHERARA","B31","RISQUE PHYS INDUST(TD) BOUGHERARA B31","ELECTROCHIMIE©","LOUHAB","B46","ELECTROCHIMIE© LOUHAB B46"]
[null,"11h20                 12h 50","MANAG DE L'ENVIRONNEMENT©","KORSO","B417","MANAG DE L'ENVIRONNEMENT© KORSO B417","TRAIT DES EAUX POTABLES(TD)","BOUREGHDA","B418","TRAIT DES EAUX POTABLES(TD) BOUREGHDA B418","OUTILS MATH UTILISES-SURETE-FONCT(TD)","X","B310","OUTILS MATH UTILISES-SURETE-FONCT(TD) X B310","SYNTHESE ET FORMES POLY(TP)","BELLOUL","B48","SYNTHESE ET FORMES POLY(TP) BELLOUL B48"]
[null,"13h 00              14h 30",null,null,null,null,null,null,null,null,null,null,null,null,"CLASSES MAT POLYM©","BELLOUL","B48","CLASSES MAT POLYM© BELLOUL B48"]
[null,"14h 40              16h 10"]
[null,"16h 20              17h 50"]
["Samedi","8h 00                     9h 30"]
[null,"9h 40                  11h 10"]
[null,"11h20                 12h 50"]

{"sheet":"TA LICENCE10","index":16,"n_rows":36,"n_cols":22,"rows_kept":36,"cut":false,"hidden":false,"merged":[[35,22,36,22],[35,23,36,23],[35,24,36,24],[35,25,36,25],[35,18,36,18],[35,19,36,19],[35,20,36,20],[35,21,36,21],[35,14,36,14],[35,15,36,15],[35,16,36,16],[35,17,36,17],[35,13,36,13],[35,10,36,10],[35,11,36,11],[35,12,36,12],[27,0,32,0],[33,0,36,0],[35,1,36,1],[35,2,36,2],[35,3,36,3],[35,4,36,4],[0,21,0,22],[0,18,0,19],[0,0,0,1],[21,0,26,0],[15,0,20,0],[9,0,14,0],[3,0,8,0],[0,9,0,10]]}
[null,null,null,null,null,"Filière:electromecanique",null,null,null,"Spécialite:electromecanique",null,null,null,"Maint indust-Génie indust",null,null,null,null,null,null,null,"Spécialite:Maint indust"]
[{"$f":"TODAY()","v":"2018-09-09"},"Section:",null,null,null,"licence3ème année",null,null,null,{"$f":"NOW()","v":"2018-09-09T13:48:19.280"}]
["Jour","SEANCES","LEM-16/A","Enseignant","Salle","LEM-16/A","LEM-16/B","Enseignant","Salle","LEM-16/B","LMI-16","Enseignant","Salle","LMI-16","LGI-16","Enseignant","Salle","LGI-16"]
["Dimanche","8h 00                     9h 30","TRANSPHERT THERMIQUE©","SETTET","C43","TRANSPHERT THERMIQUE© SETTET C43","TRANSPHERT THERMIQUE©","SETTET","C43","TRANSPHERT THERMIQUE© SETTET C43","ELEMENTS DE MACHINES©","AGUIB","B313","ELEMENTS DE MACHINES© AGUIB B313","OPTIMISATION-MES©","OURARI","B49","OPTIMISATION-MES© OURARI B49"]
[null,"9h 40                 11h 10","MATERIEAUX ELECTROTECH©","GUERRACHE","B44","MATERIEAUX ELECTROTECH© GUERRACHE B44","MATERIEAUX ELECTROTECH©","GUERRACHE","B44","MATERIEAUX ELECTROTECH© GUERRACHE B44","ELEMENTS DE MACHINES(TD) ","AGUIB","B313","ELEMENTS DE MACHINES(TD)  AGUIB B313","OPTIMISATION-MES(TD)","OURARI","B49","OPTIMISATION-MES(TD) OURARI B49"]
[null,"11h20                 12h 50",null,null,null,null,"SYSTEMES  ASSERVISSEMENT(TP)","GOUGAM","A26","SYSTEMES  ASSERVISSEMENT(TP) GOUGAM A26","ENV ET DEVELOPPEMENT DURABLE©","BAHLOUL","B313","ENV ET DEVELOPPEMENT DURABLE© BAHLOUL B313","CONCEPT-ASSIST-ORD©","CHERABI","B49","CONCEPT-ASSIST-ORD© CHERABI B49"]
[null,"13h 00              14h 30","SYSTEMES ASSERVISSEMENT(TP)","GOUGAM","AB12","SYSTEMES ASSERVISSEMENT(TP) GOUGAM AB12",null,null,null,null,"CAPTEURS ET INSTRUMENTATION©","GUERRACHE","B313","CAPTEURS ET INSTRUMENTATION© GUERRACHE B313"]
[null,"14h 40              16h 10",null,null,null,null,null,null,null,null,null,null,null,null,"INTRODUCTION-SYST-D'INF©","HARRAT","B313","INTRODUCTION-SYST-D'INF© HARRAT B313"]
[null,"16h 20              17h 50"]
["Lundi","8h 00                    9h 30","ELECTRO-PUISSANCE(TP)","BERRAZOUANE","A26","ELECTRO-PUISSANCE(TP) BERRAZOUANE A26","TRANSPHERT THERMIQUE(TD)","SETTET","B36","TRANSPHERT THERMIQUE(TD) SETTET B36","TRANSPHERT THERMIQUE©","GRINE","B419","TRANSPHERT THERMIQUE© GRINE B419","ANGLAIS©","DAOUALI","B49","ANGLAIS© DAOUALI B49"]
[null,"9h 40                  11h 10","TRANSPHERT THERMIQUE(TD)","SETTET","B36","TRANSPHERT THERMIQUE(TD) SETTET B36","ELECTRO-PUISSANCE(TP)","BERRAZOUANE","A26","ELECTRO-PUISSANCE(TP) BERRAZOUANE A26","ELECTROTECHNIQUE(TP) ","LARBANI","EEA1","ELECTROTECHNIQUE(TP)  LARBANI EEA1","CONCEPT-ASSIST-ORD(TP)","CHERABI","B49","CONCEPT-ASSIST-ORD(TP) CHERABI B49"]
[null,"11h20                12h 50",null,null,null,null,null,null,null,null,null,null,null,null,"MAIN-SUR-FON(TD)","BENAMMAR","B49","MAIN-SUR-FON(TD) BENAMMAR B49"]
[null,"13h 00              14h 30","PROD D'ENERGIE ELECTRIQUE©","BAHLOUL","AP2","PROD D'ENERGIE ELECTRIQUE© BAHLOUL AP2","PROD D'ENERGIE ELECTRIQUE©","BAHLOUL","AP2","PROD D'ENERGIE ELECTRIQUE© BAHLOUL AP2","ORG TE METH DE LA MAINT©","ADJERID","C412","ORG TE METH DE LA MAINT© ADJERID C412"]
[null,"14h 40              16h 10","SCHEMAS ET APPARILLAGE©","LARBANI","AP2","SCHEMAS ET APPARILLAGE© LARBANI AP2","SCHEMAS ET APPARILLAGE©","LARBANI","AP2","SCHEMAS ET APPARILLAGE© LARBANI AP2","ELECTROTECH FONDII(TD) ","RAHMOUNE","C412","ELECTROTECH FONDII(TD)  RAHMOUNE C412"]
[null,"16h 20              17h 50"]
["Mardi","8h 00                    9h 30","SYSTEMES ASSERVISSEMENT©","DOUDAH","B417","SYSTEMES ASSERVISSEMENT© DOUDAH B417","SYSTEMES ASSERVISSEMENT©","DOUDAH","B417","SYSTEMES ASSERVISSEMENT© DOUDAH B417","METROLOGIE ET ASSEMBLABLE(TP) ","ATMANI","ATFMS","METROLOGIE ET ASSEMBLABLE(TP)  ATMANI ATFMS","AUTOMATIQUE IND©","HAMDAOUI","B415","AUTOMATIQUE IND© HAMDAOUI B415"]
[null,"9h 40                 11h 10","SCHEMAS ET APPARILLAGE(TP)","LARBANI","EEA1","SCHEMAS ET APPARILLAGE(TP) LARBANI EEA1","SYSTEMES ASSERVISSEMENT(TD)","DOUDAH","B310","SYSTEMES ASSERVISSEMENT(TD) DOUDAH B310","METROLOGIE ET ASSEMBLABLE(TP) ","ATMANI","ATFMS","METROLOGIE ET ASSEMBLABLE(TP)  ATMANI ATFMS","MAIN-SUR-FON©","BENAMMAR","B414","MAIN-SUR-FON© BENAMMAR B414"]
[null,"11h20                12h 50","MACHIN ELECTRIQUE(TP)","LARBANI","EEA2","MACHIN ELECTRIQUE(TP) LARBANI EEA2",null,null,null,null,null,null,null,null,"MODELISATION-ENTR©","OURARI","B414","MODELISATION-ENTR© OURARI B414"]
[null,"13h 00              14h 30",null,null,null,null,"SCHEMAS ET APPARILLAGE(TP)","LARBANI","EEA2","SCHEMAS ET APPARILLAGE(TP) LARBANI EEA2","ELECTRONIQUE FONDII©","MELLAL","B37","ELECTRONIQUE FONDII© MELLAL B37","OPTIMISATION-MES(TP)","OURARI","B210","OPTIMISATION-MES(TP) OURARI B210"]
[null,"14h 40              16h 10",null,null,null,null,"MACHIN ELECTRIQUE(TP)","LARBANI","EEA1","MACHIN ELECTRIQUE(TP) LARBANI EEA1","ELECTRONIQUE FONDII(TD) ","MELLAL","B37","ELECTRONIQUE FONDII(TD)  MELLAL B37"]
[null,"16h 20              17h 50"]
["Mercredi","8h 00                    9h 30","MACHIN ELECTRIQUE(TD)","ALEM","B414","MACHIN ELECTRIQUE(TD) ALEM B414",null,null,null,null,"GMAO©","ADJERID","C43","GMAO© ADJERID C43","AUTOMATIQUE IND©","HAMDAOUI","B49","AUTOMATIQUE IND© HAMDAOUI B49"]
[null,"9h 40                 11h 10","SYSTEMES ASSERVISSEMENT(TD)","DOUDAH","B41","SYSTEMES ASSERVISSEMENT(TD) DOUDAH B41","MACHIN ELECTRIQUE(TD)","ALEM","B415","MACHIN ELECTRIQUE(TD) ALEM B415","GMAO(TP) ","ADJERID","C43","GMAO(TP)  ADJERID C43","AUTOMATIQUE IND(TD)","HAMDAOUI","B49","AUTOMATIQUE IND(TD) HAMDAOUI B49"]
[null,"11h20                12h 50",null,null,null,null,null,null,null,null,"ELECTRONIQUEII©","RAHMOUNE","C43","ELECTRONIQUEII© RAHMOUNE C43"]
[null,"13h 00              14h 30","CONSTR MEC©","AKNOUCHE","AP4","CONSTR MEC© AKNOUCHE AP4","CONSTR MEC©","AKNOUCHE","AP4","CONSTR MEC© AKNOUCHE AP4",null,null,null,null,"PROCED-ELAB-FAB©","GUERRACHE","B46","PROCED-ELAB-FAB© GUERRACHE B46"]
[null,"14h 40              16h 10","SECURITE ELECTRIQUE©","X","AP4","SECURITE ELECTRIQUE© X AP4","SECURITE ELECTRIQUE©","X","AP4","SECURITE ELECTRIQUE© X AP4","ELECTRONIQUE(TP) ","AGGAD","AT11","ELECTRONIQUE(TP)  AGGAD AT11","PROCED-ELAB-FAB(TD)","GUERRACHE","B46","PROCED-ELAB-FAB(TD) GUERRACHE B46"]
[null,"16h 20              17h 50"]
["Jeudi","8h 00                     9h 30","ELECTRONIQUE DE PUISSANCE©","BERRAZOUANE","A16","ELECTRONIQUE DE PUISSANCE© BERRAZOUANE A16","ELECTRONIQUE DE PUISSANCE©","BERRAZOUANE","A16","ELECTRONIQUE DE PUISSANCE© BERRAZOUANE A16","ORG TE METH DE LA MAINT©","ADJERID","B212","ORG TE METH DE LA MAINT© ADJERID B212"]
[null,"9h 40                  11h 10","MACHIN ELECTRIQUE©","ALEM","AP2","MACHIN ELECTRIQUE© ALEM AP2","MACHIN ELECTRIQUE©","ALEM","AP2","MACHIN ELECTRIQUE© ALEM AP2","ORG-META-MACH(TD) ","ADJERID","B212","ORG-META-MACH(TD)  ADJERID B212","MAIN-SUR-FON(TP)","CHEBBOUBA","AT15","MAIN-SUR-FON(TP) CHEBBOUBA AT15"]
[null,"11h20                 12h 50",null,null,null,null,"ELECTRONIQUE DE PUISSANCE(TD)","BERRAZOUANE","A16","ELECTRONIQUE DE PUISSANCE(TD) BERRAZOUANE A16",null,null,null,null,"AUTOMATIQUE IND(TP)","HAMDAOUI","B210","AUTOMATIQUE IND(TP) HAMDAOUI B210"]
[null,"13h 00              14h 30","ELECTRONIQUE DE PUISSANCE(TD)","BERRAZOUANE","A16","ELECTRONIQUE DE PUISSANCE(TD) BERRAZOUANE A16",null,null,null,null,"DESSIN-IND-DAO(TP) ","X","AT11","DESSIN-IND-DAO(TP)  X AT11"]
[null,"14h 40              16h 10"]
[null,"16h 20              17h 50"]
["Samedi","8h 00                     9h 30"]
[null,"9h 40                  11h 10"]
[null,"11h20                 12h 50"]

{"sheet":"TA MASTER12","index":17,"n_rows":36,"n_cols":14,"rows_kept":36,"cut":false,"hidden":false,"merged":[[0,0,0,1],[21,0,26,0],[27,0,32,0],[33,0,35,0],[3,0,8,0],[9,0,14,0],[15,0,20,0]]}
["Departement:",null,null,null,null,"TECN        ALIMENTAIRE"]
[null,"Section:",null,null,null,{"$f":"'TA MASTER11'!A2","v":"2018-09-09"}]
["Jour","SEANCES","MGA18","Enseignant","Salle","MGA18","MGIA16","Enseignant","Salle","MGIA16","IECM09","Enseignant","Salle","IECM09"]
["Dimanche","8h 00                     9h 30","BIOCH-INSTRIMENTAL(TP)(1/3G);ANALY-ALIM(TP)(1/3G)","BENMALEK;ZIDANI","B18;B15","BIOCH-INSTRIMENTAL(TP)(1/3G) BENMALEK B18\nANALY-ALIM(TP)(1/3G) ZIDANI B15",null,null,null,null,"MEC DE REP©","XXXX","XXXX","MEC DE REP© XXXX XXXX"]
[null,"9h 40                 11h 10","BIOCH-INSTRIMENTAL(TP)(1/3G);ANALY-ALIM(TP)(1/3G)","BENMALEK;ZIDANI","B18;B15","BIOCH-INSTRIMENTAL(TP)(1/3G) BENMALEK B18\nANALY-ALIM(TP)(1/3G) ZIDANI B15","CONSERVAT DES ALIMENTS©","X","X","CONSERVAT DES ALIMENTS© X X"]
[null,"11h20                 12h 50",null,null,null,null,"TECN DES CEREAL ET DERIVES©","X","X","TECN DES CEREAL ET DERIVES© X X","MDR(TD)","XXXX","XXXX","MDR(TD) XXXX XXXX"]
[null,"13h 00              14h 30"]
[null,"14h 40              16h 10",null,null,null,null,"ECO-GESTION©","X","X","ECO-GESTION© X X"]
[null,"16h 20              17h 50"]
["Lundi","8h 00                    9h 30",null,null,null,null,null,null,null,null,"METHODES FMS©","XXXX","XXXX","METHODES FMS© XXXX XXXX"]
[null,"9h 40                  11h 10","BIOCHIMIE  DES ALIMENTS ET CHMIE©","NOUANI","C43","BIOCHIMIE  DES ALIMENTS ET CHMIE© NOUANI C43","BIOCH-ALIM(TP)(1/4G);ANALY-DES CERALTP)(1/4G)","XX;XX","XX;XX","BIOCH-ALIM(TP)(1/4G) XX XX\nANALY-DES CERALTP)(1/4G) XX XX","METHODES FMS(TD)","XXXX","XXXX","METHODES FMS(TD) XXXX XXXX"]
[null,"11h20                12h 50","BIOCHIMIE  DES ALIMENTS ET CHMIE©","NOUANI","C43","BIOCHIMIE  DES ALIMENTS ET CHMIE© NOUANI C43","BIOCH-ALIM(TP)(1/4G);ANALY-DES CERALTP)(1/4G)","XX;XX","XX;XX","BIOCH-ALIM(TP)(1/4G) XX XX\nANALY-DES CERALTP)(1/4G) XX XX","CND©","XXXX","XXXX","CND© XXXX XXXX"]
[null,"13h 00              14h 30","OPER-UNIT-DU GENIE ALIMENTAIRE1©","BOUKHIAR","A22","OPER-UNIT-DU GENIE ALIMENTAIRE1© BOUKHIAR A22"]
[null,"14h 40              16h 10","OPER-UNIT-DU GENIE ALIMENTAIRE1(TD)","BOUKHIAR","A22","OPER-UNIT-DU GENIE ALIMENTAIRE1(TD) BOUKHIAR A22","TECN DES CEREAL ET DERIVES©","X","X","TECN DES CEREAL ET DERIVES© X X"]
[null,"16h 20              17h 50"]
["Mardi","8h 00                    9h 30",null,null,null,null,"OPER-UNIT-IAA1©","X","X","OPER-UNIT-IAA1© X X"]
[null,"9h 40                 11h 10",null,null,null,null,"OPER-UNIT-IAA1©","X","X","OPER-UNIT-IAA1© X X","METHODES FMS©","XXXX","XXXX","METHODES FMS© XXXX XXXX"]
[null,"11h20                12h 50",null,null,null,null,"TRAIT DES EAUX©","X","X","TRAIT DES EAUX© X X"]
[null,"13h 00              14h 30","RHEOLOGIE DES SYSTEMES ALIMENTAIRES©","BENAMARA-TA","A24","RHEOLOGIE DES SYSTEMES ALIMENTAIRES© BENAMARA-TA A24",null,null,null,null,"CONCEP-METALIQ©","XXXX","XXXX","CONCEP-METALIQ© XXXX XXXX"]
[null,"14h 40              16h 10","RHEOLOGE DES SYSTEMES ALIMENTAIRES©","BENAMARA-TA","A24","RHEOLOGE DES SYSTEMES ALIMENTAIRES© BENAMARA-TA A24",null,null,null,null,"CONCEP-METALIQ(TD)","XXXX","XXXX","CONCEP-METALIQ(TD) XXXX XXXX"]
[null,"16h 20              17h 50"]
["Mercredi","8h 00                    9h 30",null,null,null,null,"ANGLAIS©","X","X","ANGLAIS© X X","TECH-SP©","XXXX","XXXX","TECH-SP© XXXX XXXX"]
[null,"9h 40                 11h 10","PROCESS DE-TRANSF DES ALIMENTS©","NOUANI","C412","PROCESS DE-TRANSF DES ALIMENTS© NOUANI C412","BIOCHIMIE ALIMENT©","X","X","BIOCHIMIE ALIMENT© X X","TECH-SP(TD)","XXXX","XXXX","TECH-SP(TD) XXXX XXXX"]
[null,"11h20                12h 50","PROCESS DE-TRANSF-DES ALIMENTS(TD)","NOUANI","C412","PROCESS DE-TRANSF-DES ALIMENTS(TD) NOUANI C412","BIOCHIMIE ALIMENT©","X","X","BIOCHIMIE ALIMENT© X X","MANAGEMENT©","XXXX","XXXX","MANAGEMENT© XXXX XXXX"]
[null,"13h 00              14h 30","OPER-UNIT-DU GENIE ALIMENTAIRE1©","BOUKHIAR","C49","OPER-UNIT-DU GENIE ALIMENTAIRE1© BOUKHIAR C49"]
[null,"14h 40              16h 10",null,null,null,null,null,null,null,null,"RECHERCHE OPERATIONNEL(TD)","XXXX","XXXX","RECHERCHE OPERATIONNEL(TD) XXXX XXXX"]
[null,"16h 20              17h 50"]
["Jeudi","8h 00                     9h 30","TECHNIQUE ET TERMINOLOGIE©","X","C43","TECHNIQUE ET TERMINOLOGIE© X C43","METHODOLOGIE RECHERCHE©","X","X","METHODOLOGIE RECHERCHE© X X","RECHERCHE OPERATIONNEL©","XXXX","XXXX","RECHERCHE OPERATIONNEL© XXXX XXXX"]
[null,"9h 40                  11h 10","SECURITE SANITAIRE DES ALIMENTS©","MEGDOUD","C43","SECURITE SANITAIRE DES ALIMENTS© MEGDOUD C43","METHODOLOGIE RECHERCHE©","X","X","METHODOLOGIE RECHERCHE© X X","CND©","XXXX","XXXX","CND© XXXX XXXX"]
[null,"11h20                 12h 50","SECURITE SANITAIRE DES ALIMENTS(TD)","MEGDOUD","C43","SECURITE SANITAIRE DES ALIMENTS(TD) MEGDOUD C43",null,null,null,null,"MANAGEMENT(TD)","XXXX","XXXX","MANAGEMENT(TD) XXXX XXXX"]
[null,"13h 00              14h 30","STATISTIQUES APPLIQUE©","LECHEB-TA","B36","STATISTIQUES APPLIQUE© LECHEB-TA B36"]
[null,"14h 40              16h 10"]
[null,"16h 20              17h 50"]
["Samedi","8h 00                     9h 30"]
[null,"9h 40                  11h 10"]
[null,"11h20                 12h 50"]

{"sheet":"TA MASTER11","index":18,"n_rows":36,"n_cols":15,"rows_kept":36,"cut":false,"hidden":false,"merged":[[0,14,0,16],[0,0,0,1],[3,0,8,0],[33,0,35,0],[27,0,32,0],[21,0,26,0],[15,0,20,0],[9,0,14,0]]}
["Departement:",null,null,null,null,"technologie alimentaire",null,null,null,null,null,null,null,null,{"$f":"NOW()","v":"2018-09-09T13:48:19.280"}]
[{"$f":"TODAY()","v":"2018-09-09"},"Section:",null,null,null,"Master 2ème année"]
["Jour","SEANCES","MGA17","Enseignant","Salle","MGA17","MSBLA15","Enseignant","Salle","MSBLA15","MGIA15","Enseignant","Salle","MGIA15"]
["Dimanche","8h 00                     9h 30","COND-PROD-IND-AGRO©","ABDELLAOUI","B41","COND-PROD-IND-AGRO© ABDELLAOUI B41",null,null,null,null,"MICROBIOLOGIE INDUSTR ET BIOTECHNOLOGIE©","XX","XX","MICROBIOLOGIE INDUSTR ET BIOTECHNOLOGIE© XX XX"]
[null,"9h 40                 11h 10","COND-PROD-IND-AGRO(TD) ","ABDELLAOUI","B41","COND-PROD-IND-AGRO(TD)  ABDELLAOUI B41","PRODUITS LAITIERES©","XX","XX","PRODUITS LAITIERES© XX XX","NUTRITION ET TOXICOLOGIE©","XX","XX","NUTRITION ET TOXICOLOGIE© XX XX"]
[null,"11h20                 12h 50",null,null,null,null,"ANGLAIS©","XX","XX","ANGLAIS© XX XX","NUTRITION ET TXICOLOGIE©","XX","XX","NUTRITION ET TXICOLOGIE© XX XX"]
[null,"13h 00              14h 30","PROCEDES-CONSERV-ALIM©","TRACHI","B417","PROCEDES-CONSERV-ALIM© TRACHI B417","MICROBIOLOGIE DU LAIT©","XX","XX","MICROBIOLOGIE DU LAIT© XX XX"]
[null,"14h 40              16h 10","PROC-CONSER-ALIM(TD) ","TRACHI","B417","PROC-CONSER-ALIM(TD)  TRACHI B417","CHIMIE DU LAIT©","XX","XX","CHIMIE DU LAIT© XX XX","ANGLAIS©","XX","XX","ANGLAIS© XX XX"]
[null,"16h 20              17h 50"]
["Lundi","8h 00                    9h 30","TRAIT-EAUX-DECHETS-VALO©","ZIDANI","AP2","TRAIT-EAUX-DECHETS-VALO© ZIDANI AP2",null,null,null,null,"ALIM-FONC-PROD-NOUVEAUX©","XX","XX","ALIM-FONC-PROD-NOUVEAUX© XX XX"]
[null,"9h 40                  11h 10","INTER-ATMOSPH-EMB-ALIM©","IDIR-TA","AP2","INTER-ATMOSPH-EMB-ALIM© IDIR-TA AP2","CHIMIE DE LAIT©","XX","XX","CHIMIE DE LAIT© XX XX","ALIM-FONC-PROD-NOUVEAUX©","XX","XX","ALIM-FONC-PROD-NOUVEAUX© XX XX"]
[null,"11h20                12h 50","INTER-ATMOSPH-EMB-ALIM(TD) ","IDIR-TA","AP2","INTER-ATMOSPH-EMB-ALIM(TD)  IDIR-TA AP2","S-H-L©","XX","XX","S-H-L© XX XX"]
[null,"13h 00              14h 30",null,null,null,null,null,null,null,null,"XX","XX","XX","XX XX XX"]
[null,"14h 40              16h 10",null,null,null,null,null,null,null,null,"XX","XX","XX","XX XX XX"]
[null,"16h 20              17h 50"]
["Mardi","8h 00                    9h 30","PHYSICO-CHIMIE DES ALIM(TP) ","LARID+YELLES","C28","PHYSICO-CHIMIE DES ALIM(TP)  LARID+YELLES C28","TECHN ET BIOTRANSFORMATION DE LAIT(TP)","XX","XX","TECHN ET BIOTRANSFORMATION DE LAIT(TP) XX XX","CONDITIONNEMENT-EMBALLAGE©","XX","XX","CONDITIONNEMENT-EMBALLAGE© XX XX"]
[null,"9h 40                 11h 10","PHYSICO-CHIMIE DES ALIM(TP) ","LARID+YELLES","C212","PHYSICO-CHIMIE DES ALIM(TP)  LARID+YELLES C212","TECHN ET BIOTRANSFORMATION DE LAIT(TP)","XX","XX","TECHN ET BIOTRANSFORMATION DE LAIT(TP) XX XX","TECH DES CORPS GRAS©","XX","XX","TECH DES CORPS GRAS© XX XX"]
[null,"11h20                12h 50",null,null,null,null,"EQUIP DU LAITIERES©","XX","XX","EQUIP DU LAITIERES© XX XX","COND-EMB©","XX","XX","COND-EMB© XX XX"]
[null,"13h 00              14h 30","PLANTS D'EXPERIENCES©","BOUKHIAR","B212","PLANTS D'EXPERIENCES© BOUKHIAR B212"]
[null,"14h 40              16h 10","PLANTS D'EXPERIENCES(TD)","BOUKHIAR","B212","PLANTS D'EXPERIENCES(TD) BOUKHIAR B212",null,null,null,null,"TECH DES CORPS GRAS©","XX","XX","TECH DES CORPS GRAS© XX XX"]
[null,"16h 20              17h 50"]
["Mercredi","8h 00                    9h 30","PHYSICO-CHIMIE DES ALIM(TP) ","LARID+YELLES","C28","PHYSICO-CHIMIE DES ALIM(TP)  LARID+YELLES C28","EQUIP  LAITIERE©","XX","XX","EQUIP  LAITIERE© XX XX","TECH DE LAIT ET DERIVES©","XX","XX","TECH DE LAIT ET DERIVES© XX XX"]
[null,"9h 40                 11h 10","PHYSICO-CHIMIE DES ALIM(TP) ","LARID+YELLES","C212","PHYSICO-CHIMIE DES ALIM(TP)  LARID+YELLES C212","PRODUIT LAITIERS©","XX","XX","PRODUIT LAITIERS© XX XX","TECH DE LAIT ET DERIVES©","XX","XX","TECH DE LAIT ET DERIVES© XX XX"]
[null,"11h20                12h 50",null,null,null,null,"SECURITE ET HYGIEN DE LAIT©","XX","XX","SECURITE ET HYGIEN DE LAIT© XX XX"]
[null,"13h 00              14h 30","APLICATION-PROJET-COURS©","HADERBACHE","B213","APLICATION-PROJET-COURS© HADERBACHE B213",null,null,null,null,"QUAL SANI ALIM TRACAB©","XX","XX","QUAL SANI ALIM TRACAB© XX XX"]
[null,"14h 40              16h 10","APLICATION-PROJET-COURS(TP) ","HADERBACHE","B213","APLICATION-PROJET-COURS(TP)  HADERBACHE B213",null,null,null,null,"QUAL SANI ALIM TRACAB©","XX","XX","QUAL SANI ALIM TRACAB© XX XX"]
[null,"16h 20              17h 50"]
["Jeudi","8h 00                     9h 30","RECH-DOC-CONCEP-MEM©","SOUAM","AP6","RECH-DOC-CONCEP-MEM© SOUAM AP6","CHIMIE DE LAIT(TP)","XX","XX","CHIMIE DE LAIT(TP) XX XX","MICROBIOLOGIE INDUSTR ET BIOTECHNOLOGIE©","XX","XX","MICROBIOLOGIE INDUSTR ET BIOTECHNOLOGIE© XX XX"]
[null,"9h 40                  11h 10","PLANIFI-POLITIQUE-ALIM©","BENAKMOUM","AP4","PLANIFI-POLITIQUE-ALIM© BENAKMOUM AP4","CHIMIE DE LAIT(TP)","XX","XX","CHIMIE DE LAIT(TP) XX XX","XX","XX","XX","XX XX XX"]
[null,"11h20                 12h 50","ALIM-FON-PRO-NOUV©","BENAMARA-TA","AP4","ALIM-FON-PRO-NOUV© BENAMARA-TA AP4","MICROBIOLOGIE DU LAIT©","XX","XX","MICROBIOLOGIE DU LAIT© XX XX","XX","XX","XX","XX XX XX"]
[null,"13h 00              14h 30"]
[null,"14h 40              16h 10"]
[null,"16h 20              17h 50"]
["Samedi","8h 00                     9h 30"]
[null,"9h 40                  11h 10"]
[null,"11h20                 12h 50"]

{"sheet":"MI MASTER11","index":19,"n_rows":36,"n_cols":22,"rows_kept":36,"cut":false,"hidden":false,"merged":[[1,9,1,13],[0,0,0,1],[3,0,8,0],[33,0,35,0],[27,0,32,0],[21,0,26,0],[15,0,20,0],[9,0,14,0]]}
["Departement:",null,null,null,null,"G-MECANIQUE",null,null,null,{"$f":"NOW()","v":"2018-09-09T13:48:19.280"}]
[null,"Section:",null,null,null,"Master 2ème année",null,null,null,"Filière:electromécanique-mécatronique-maint  indust"]
["Jour","SEANCES","MEM17/A","Enseignant","Salle","MEM17/A","MEM17/B","Enseignant","Salle","MEM17/B","MMI17/A","Enseignant","Salle","MMI17/A","MMI17/B","Enseignant","Salle","MMI17/B","MMTR17","Enseignant","Salle","MMTR17"]
["Dimanche","8h 00                     9h 30","MOD-SIM-SYST-ELECTRO©","MERAINANI","AP2","MOD-SIM-SYST-ELECTRO© MERAINANI AP2","MOD-SIM-SYST-ELECTRO©","MERAINANI","AP2","MOD-SIM-SYST-ELECTRO© MERAINANI AP2","ACOUSTIQUE-APP©","NOUR","A12","ACOUSTIQUE-APP© NOUR A12","ACOUSTIQUE-APP©","NOUR","A12","ACOUSTIQUE-APP© NOUR A12"]
[null,"9h 40                 11h 10","TECH-COMM-AVAN(TD)","MELLAL","A15","TECH-COMM-AVAN(TD) MELLAL A15","MOD-SIM-SYST-ELECTRO(TD)","MERAINANI","A16","MOD-SIM-SYST-ELECTRO(TD) MERAINANI A16","ACOUSTIQUE-APP(TD)","NOUR","RC13","ACOUSTIQUE-APP(TD) NOUR RC13","TECH-DET-DEFAI(TD)","CHEMANI-H","A12","TECH-DET-DEFAI(TD) CHEMANI-H A12","CONCEPT-FAB-ASSI-PAR-ORD CFAO(TP)","CHALLA","C37","CONCEPT-FAB-ASSI-PAR-ORD CFAO(TP) BOUHABILA C37"]
[null,"11h20                 12h 50",null,null,null,null,null,null,null,null,"INSTRUMENTATION©","HIRECHE","RC14","INSTRUMENTATION© HIRECHE RC14","INSTRUMENTATION©","HIRECHE","RC14","INSTRUMENTATION© HIRECHE RC14","SYSTEMES EMBARQUES©","TOUATI","B417","SYSTEMES EMBARQUES© TOUATI B417"]
[null,"13h 00              14h 30","MOD-SIM-SYST-ELECTRO(TP)","MERAINANI","X","MOD-SIM-SYST-ELECTRO(TP) MERAINANI X","TECH-COMM-REG(TP);MICROP-API(TP)","CHAMSA;BOUMEDINE","B210;AT15","TECH-COMM-REG(TP) CHAMSA B210\nMICROP-API(TP) BOUMEDINE AT15"]
[null,"14h 40              16h 10","MOD-SIM-SYST-ELECTRO(TP)","MERAINANI","X","MOD-SIM-SYST-ELECTRO(TP) MERAINANI X","TECH-COMM-REG(TP);MICROP-API(TP)","CHAMSA;BOUMEDINE","B210;AT15","TECH-COMM-REG(TP) CHAMSA B210\nMICROP-API(TP) BOUMEDINE AT15"]
[null,"16h 20              17h 50"]
["Lundi","8h 00                    9h 30","TECH-COMM-AVAN©","MELLAL","RC14","TECH-COMM-AVAN© MELLAL RC14","TECH-COMM-AVAN©","MELLAL","RC14","TECH-COMM-AVAN© MELLAL RC14","TRIBO-LUB-SYST-MEC©","ATMANI","A14","TRIBO-LUB-SYST-MEC© ATMANI A14","TRIBO-LUB-SYST-MEC©","ATMANI","A14","TRIBO-LUB-SYST-MEC© ATMANI A14","MOD-DIAG-SYS-MEC©","BENAZOUZ","B312","MOD-DIAG-SYS-MEC© BENAZOUZ B312"]
[null,"9h 40                  11h 10","ORG-GEST-MAINT(TD)","SMAILI-MI","X","ORG-GEST-MAINT(TD) SMAILI-MI X","TECH-COMM-AVAN(TD)","MELLAL","RC14","TECH-COMM-AVAN(TD) MELLAL RC14","TRIBO-LUB-SYST-MEC(TD)","ATMANI","A14","TRIBO-LUB-SYST-MEC(TD) ATMANI A14",null,null,null,null,"MOD-DIAG-SYS-MEC©","BENAZOUZ","B312","MOD-DIAG-SYS-MEC© BENAZOUZ B312"]
[null,"11h20                12h 50",null,null,null,null,null,null,null,null,"TURBO MACHINE©","GUEDIFA","A12","TURBO MACHINE© GUEDIFA A12","TURBO MACHINE©","GUEDIFA","A12","TURBO MACHINE© GUEDIFA A12"]
[null,"13h 00              14h 30","MOD-SIM-SYST-ELECTRO©","MERAINANI","AP1","MOD-SIM-SYST-ELECTRO© MERAINANI AP1","MOD-SIM-SYST-ELECTRO©","MERAINANI","AP1","MOD-SIM-SYST-ELECTRO© MERAINANI AP1",null,null,null,null,"DAIGNO-VIBRAT(TP) ;TECH-DET-DEFAI(TP) ","CHELLIL;BOUMEDAINE","AT12;RC15","DAIGNO-VIBRAT(TP)  CHELLIL AT12\nTECH-DET-DEFAI(TP)  BOUMEDAINE RC15","REGULATION-INDUST©","MELLAL","B44","REGULATION-INDUST© MELLAL B44"]
[null,"14h 40              16h 10","MOD-SIM-SYST-ELECTRO(TD)","MERAINANI","A14","MOD-SIM-SYST-ELECTRO(TD) MERAINANI A14",null,null,null,null,null,null,null,null,"DIAGNO-VIBRAT(TP) ;TECH-DET-DEFAI(TP) ","CHELLIL;BOUMEDAINE","AT12;RC15","DIAGNO-VIBRAT(TP)  CHELLIL AT12\nTECH-DET-DEFAI(TP)  BOUMEDAINE RC15","SYSTEMES EMBARQUES(TD)","TOUATI","B44","SYSTEMES EMBARQUES(TD) TOUATI B44"]
[null,"16h 20              17h 50"]
["Mardi","8h 00                    9h 30","CONCEPT-FAB©","MECHAKRA","ATFM","CONCEPT-FAB© MECHAKRA ATFM","CONCEPT-FAB©","MECHAKRA","ATFM","CONCEPT-FAB© MECHAKRA ATFM","MEC-RUP-ENDO©","LECHEB","RC14","MEC-RUP-ENDO© LECHEB RC14","MEC-RUP-ENDO©","LECHEB","RC14","MEC-RUP-ENDO© LECHEB RC14"]
[null,"9h 40                 11h 10","CONCEPT-FAB(TP)","MECHAKRA","ATFM","CONCEPT-FAB(TP) MECHAKRA ATFM","CONCEPT-FAB(TP)","MECHAKRA","ATFM","CONCEPT-FAB(TP) MECHAKRA ATFM","MEC-RUP-ENDO(TD)","LECHEB","RC14","MEC-RUP-ENDO(TD) LECHEB RC14","ACOUSTIQUE-APP(TD)","NOUR","RC13","ACOUSTIQUE-APP(TD) NOUR RC13","REGULATION-INDUST(TD)","MELLAL","B44","REGULATION-INDUST(TD) MELLAL B44"]
[null,"11h20                12h 50","CONCEPT-FAB(TP)","MECHAKRA","ATFM","CONCEPT-FAB(TP) MECHAKRA ATFM","CONCEPT-FAB(TP)","MECHAKRA","ATFM","CONCEPT-FAB(TP) MECHAKRA ATFM",null,null,null,null,null,null,null,null,"SYSTEMES EMBARQUES(TP)","BOUNAB","AT11","SYSTEMES EMBARQUES(TP) BOUNAB AT11"]
[null,"13h 00              14h 30",null,null,null,null,null,null,null,null,"TECH-DET-DEFAI©","CHEMANI-H","RC14","TECH-DET-DEFAI© CHEMANI-H RC14","TECH-DET-DEFAI©","CHEMANI-H","RC14","TECH-DET-DEFAI© CHEMANI-H RC14"]
[null,"14h 40              16h 10",null,null,null,null,null,null,null,null,"TECH-DET-DEFAI(TD)","CHEMANI-H","RC14","TECH-DET-DEFAI(TD) CHEMANI-H RC14","MEC-RUP-ENDO(TD)","LECHEB","RC13","MEC-RUP-ENDO(TD) LECHEB RC13"]
[null,"16h 20              17h 50"]
["Mercredi","8h 00                    9h 30","ORG-GEST-MAINT©","SMAILI-MI","AP4","ORG-GEST-MAINT© SMAILI-MI AP4","ORG-GEST-MAINT©","SMAILI-MI","AP4","ORG-GEST-MAINT© SMAILI-MI AP4","AUTOMATISMES©","GAHLOUZ","A14","AUTOMATISMES© GAHLOUZ A14","AUTOMATISMES©","GAHLOUZ","A14","AUTOMATISMES© GAHLOUZ A14","CONCEPT-FAB-ASSI-PAR-ORD CFAO©","BELAIDI-I","C310","CONCEPT-FAB-ASSI-PAR-ORD CFAO© BELAIDI-I C310"]
[null,"9h 40                 11h 10","TECH-COMM-REG(TP)","CHAMSA","X","TECH-COMM-REG(TP) CHAMSA X","ORG-GEST-MAINT(TD)","SMAILI-MI","A11","ORG-GEST-MAINT(TD) SMAILI-MI A11","DIAGNO-VIBRAT©","CHELLIL","A14","DIAGNO-VIBRAT© CHELLIL A14","DIAGNO-VIBRAT©","CHELLIL","A14","DIAGNO-VIBRAT© CHELLIL A14","TECH-FOND-ELEM-MEC©","GAHLOUZ","A22","TECH-FOND-ELEM-MEC© GAHLOUZ A22"]
[null,"11h20                12h 50","TECH-COMM-REG(TP)","CHAMSA","X","TECH-COMM-REG(TP) CHAMSA X",null,null,null,null,null,null,null,null,null,null,null,null,"TECH-FOND-ELEM-MEC(TD)","GAHLOUZ","A22","TECH-FOND-ELEM-MEC(TD) GAHLOUZ A24"]
[null,"13h 00              14h 30","MICROP-API(TP)","BOUMEDINE","AT15","MICROP-API(TP) BOUMEDINE AT15","MOD-SIM-SYST-ELECTRO(TP)","MERAINANI","AB12","MOD-SIM-SYST-ELECTRO(TP) MERAINANI AB12","DAIGNO-VIBRAT(TP) ;TECH-DET-DEFAI(TP) ","CHELLIL;BOUMEDAINE","AT12;RC15","DAIGNO-VIBRAT(TP)  CHELLIL AT12\nTECH-DET-DEFAI(TP)  BOUMEDAINE RC15","AUTOMATISMES(TP) ","GAHLOUZ","AT15","AUTOMATISMES(TP)  GAHLOUZ AT15","MOD-DIAG-SYS-MEC(TD)","BENAZOUZ","B44","MOD-DIAG-SYS-MEC(TD) BENAZOUZ B44"]
[null,"14h 40              16h 10","MICROP-API(TP)","BOUMEDINE","AT15","MICROP-API(TP) BOUMEDINE AT15","MOD-SIM-SYST-ELECTRO(TP)","MERAINANI","AB12","MOD-SIM-SYST-ELECTRO(TP) MERAINANI AB12","DIAGNO-VIBRAT(TP) ;TECH-DET-DEFAI(TP) ","CHELLIL;BOUMEDAINE","AT12;RC15","DIAGNO-VIBRAT(TP)  CHELLIL AT12\nTECH-DET-DEFAI(TP)  BOUMEDAINE RC15"]
[null,"16h 20              17h 50"]
["Jeudi","8h 00                     9h 30","RECH-DOC-CONC-MEM©","ALEM","A22","RECH-DOC-CONC-MEM© ALEM A22","RECH-DOC-CONC-MEM©","ALEM","A22","RECH-DOC-CONC-MEM© ALEM A22","RECH-DOC-CONCEPT-MEM©","ALEM","A22","RECH-DOC-CONCEPT-MEM© ALEM A22","RECH-DOC-CONCEPT-MEM©","ALEM","A22","RECH-DOC-CONCEPT-MEM© ALEM A22","METHOD-RECHERCHE©","ALEM","A22","METHOD-RECHERCHE© ALEM A22"]
[null,"9h 40                  11h 10","TRAIT DE SIGNAL©","DJEDDID","AP3","TRAIT DE SIGNAL© DJEDDID AP3","TRAIT DE SIGNAL©","DJEDDID","AP3","TRAIT DE SIGNAL© DJEDDID AP3","TRIBO-LUB-SYST-MEC©","ATMANI","A22","TRIBO-LUB-SYST-MEC© ATMANI A22","TRIBO-LUB-SYST-MEC©","ATMANI","A22","TRIBO-LUB-SYST-MEC© ATMANI A22","FIABILITE©","BENAMMAR","A12","FIABILITE© BENAMMAR A12"]
[null,"11h20                 12h 50","FIABILITE©","BENAMMAR","AP5","FIABILITE© BENAMMAR AP5","FIABILITE DES SYSTEMES©","BENAMMAR","AP5","FIABILITE DES SYSTEMES© BENAMMAR AP5","AUTOMATISMES(TP) ","GAHLOUZ","AT15","AUTOMATISMES(TP)  GAHLOUZ AT15","TRIBO-LUB-SYST-MEC(TD)","ATMANI","A16","TRIBO-LUB-SYST-MEC(TD) ATMANI A16","SURETE DE FONCTIONNEL©","MELLAL","B46","SURETE DE FONCTIONNEL© CHELLIL B46"]
[null,"13h 00              14h 30",null,null,null,null,null,null,null,null,null,null,null,null,null,null,null,null,"MOD-DIAG-SYST-MEC(TP)","OULMOKHTAR","AT11","MOD-DIAG-SYST-MEC(TP) BENAZOUZ AT11"]
[null,"14h 40              16h 10",null,null,null,null,null,null,null,null,null,null,null,null,null,null,null,null,"MOD-DIAG-SYST-MEC(TP)","OULMOKHTAR","AT11","MOD-DIAG-SYST-MEC(TP) BENAZOUZ AT11"]
[null,"16h 20              17h 50"]
["Samedi","8h 00                     9h 30","MICROP-API©","BOUMEDINE","RC9/B","MICROP-API© BOUMEDINE RC9/B","MICROP-API©","BOUMEDINE","RC9/B","MICROP-API© BOUMEDINE RC9/B"]
[null,"9h 40                  11h 10",null,null,null,null,"MICROP-API(TD)","BOUMEDINE","RC9/B","MICROP-API(TD) BOUMEDINE RC9/B"]
[null,"11h20                 12h 50","MICROP-API(TD)","BOUMEDINE","RC9/B","MICROP-API(TD) BOUMEDINE RC9/B"]

{"sheet":"MI MASTER12","index":20,"n_rows":36,"n_cols":18,"rows_kept":36,"cut":false,"hidden":false,"merged":[[0,5,0,9],[0,0,0,1],[21,0,26,0],[27,0,32,0],[33,0,35,0],[3,0,8,0],[9,0,14,0],[15,0,20,0]]}
["Filière:electromécanique",null,null,null,null,"Spécialite:electromeca-mecatron-maint industr",null,null,null,null,null,null,null,{"$f":"NOW()","v":"2018-09-09T13:48:19.280"}]
[null,"Section:",null,null,null,"Master 1ère année"]
["Jour","SEANCES","MEM-18/A","Enseignant","Salle","MEM-18/A","MEM-18/B","Enseignant","Salle","MEM-18/B","MMTR-18","Enseignant","Salle","MMTR-18","MMI-18","Enseignant","Salle","MMI-18"]
["Dimanche","8h 00                     9h 30","MOD-SIM-MACH-ELEC©","RAHMOUNE","AP1","MOD-SIM-MACH-ELEC© RAHMOUNE AP1","MOD-SIM-MACH-ELEC©","RAHMOUNE","AP1","MOD-SIM-MACH-ELEC© RAHMOUNE AP1","ELECT-APP©","BENAZOUZ","A14","ELECT-APP© BENAZOUZ A14","STRATEGIES-MAINT©","SMAILI-MI","B416","STRATEGIES-MAINT© SMAILI-MI B416"]
[null,"9h 40                 11h 10","ELECTRO-PUISSANCE-IND©","TOUATI","AP1","ELECTRO-PUISSANCE-IND© TOUATI AP1","ELECTRO-PUISSANCE-IND©","TOUATI","AP1","ELECTRO-PUISSANCE-IND© TOUATI AP1","ELECTRO-APP(TD)","BENAZOUZ","A14","ELECTRO-APP(TD) BENAZOUZ A14","STRATEGIES-MAINT(TD)","SMAILI-MI","B416","STRATEGIES-MAINT(TD) SMAILI-MI B416"]
[null,"11h20                 12h 50","MOD-SIM-MACH-ELEC(TD)","RAHMOUNE","A27","MOD-SIM-MACH-ELEC(TD) RAHMOUNE A27","ELECTRO-PUISSANCE-IND(TD)","TOUATI","A24","ELECTRO-PUISSANCE-IND(TD) TOUATI A24","ELEC-APP(TP)","BENAZOUZ","AT11","ELEC-APP(TP) BENAZOUZ AT11"]
[null,"13h 00              14h 30",null,null,null,null,null,null,null,null,null,null,null,null,"THERMODY-APP©","BOUSHAKI","B416","THERMODY-APP© BOUSHAKI B416"]
[null,"14h 40              16h 10",null,null,null,null,null,null,null,null,"ANGLAIS©","MEGHARI","B310","ANGLAIS© MEGHARI B310","THERMODY-APP(TD)","BOUSHAKI","B416","THERMODY-APP(TD) BOUSHAKI B416"]
[null,"16h 20              17h 50"]
["Lundi","8h 00                    9h 30","MACH-HYD-PNEMA(TP)","GRABI","RC7","MACH-HYD-PNEMA(TP) GRABI RC7","ELECTRO-PUISSANCE-IND(TP)","CHAMSA","A27","ELECTRO-PUISSANCE-IND(TP) CHAMSA A27","PRO-FAB-MOCN©","CHALA","C310","PRO-FAB-MOCN© CHALA C310","DYNAM-STRUCT©","CHELLIL","A12","DYNAM-STRUCT© CHELLIL A12"]
[null,"9h 40                  11h 10",null,null,null,null,"MACH-HYD-PNEMA(TP)","GRABI","RC7","MACH-HYD-PNEMA(TP) GRABI RC7","CONCEP-MEC©","GUEDIFA","A16","CONCEP-MEC© GUEDIFA A16","DYNAM-STRUCT©","CHELLIL","A12","DYNAM-STRUCT© CHELLIL A12"]
[null,"11h20                12h 50","ELECTRO-PUISSANCE-IND(TD)","TOUATI","A14","ELECTRO-PUISSANCE-IND(TD) TOUATI A14"]
[null,"13h 00              14h 30","MACH-HYD-PNEMAT©","GUEDIFA","AP1","MACH-HYD-PNEMAT© GUEDIFA AP1","MACH-HYD-PNEMAT©","GUEDIFA","AP1","MACH-HYD-PNEMAT© GUEDIFA AP1","CAPTEURS ACTIONN©","TOUATI","B313","CAPTEURS ACTIONN© TOUATI B313","INTRO-MATERIAUX©","BOUAMRENE","B44","INTRO-MATERIAUX© BOUAMRENE B44"]
[null,"14h 40              16h 10",null,null,null,null,"RES-ELEC(TP)","BERRAZOUANE","RC9/A","RES-ELEC(TP) BERRAZOUANE RC9/A","TRIBOLOGIE©","ATMANI","B313","TRIBOLOGIE© ATMANI B313","INTRO-MATERIAUX(TP)","BOUAMRENE","B44","INTRO-MATERIAUX(TP) BOUAMRENE B44"]
[null,"16h 20              17h 50"]
["Mardi","8h 00                    9h 30","MEC-INDUST-TRANS-PUISS©","AGUIB","A24","MEC-INDUST-TRANS-PUISS© AGUIB A24","MEC-INDUST-TRANS-PUISS©","AGUIB","A24","MEC-INDUST-TRANS-PUISS© AGUIB A24","CONCEP-MEC(TP)","GUEDIFA","RC9/B","CONCEP-MEC(TP) GUEDIFA RC9/B","DYNAM-STRUCT(TP)","CHELLIL","AT12","DYNAM-STRUCT(TP) CHELLIL AT12"]
[null,"9h 40                 11h 10","RESEAUX-ELECT-INDUST©","BERRAZOUANE","A24","RESEAUX-ELECT-INDUST© BERRAZOUANE A24","RESEAUX-ELECT-INDUST©","BERRAZOUANE","A24","RESEAUX-ELECT-INDUST© BERRAZOUANE A24","CONCEP-MEC(TP)","GUEDIFA","RC9/B","CONCEP-MEC(TP) GUEDIFA RC9/B","DYNAM-STRUCT(TP)","CHELLIL","AT12","DYNAM-STRUCT(TP) CHELLIL AT12"]
[null,"11h20                12h 50","MACH-HYD-PNEMAT(TD)","GUEDIFA","AP4","MACH-HYD-PNEMAT(TD) GUEDIFA AP4","MEC-INDUST-TRANS-PUISS(TD)","AGUIB","AP4","MEC-INDUST-TRANS-PUISS(TD) AGUIB AP4"]
[null,"13h 00              14h 30",null,null,null,null,null,null,null,null,"CAPTEURS ACTIONN(TD)","TOUATI","A22","CAPTEURS ACTIONN(TD) TOUATI A22","MEC-MILIEU-CONT©","AGUIB","B417","MEC-MILIEU-CONT© AGUIB B417"]
[null,"14h 40              16h 10","MEC-INDUST-TRANS-PUISS(TD)","AGUIB","A12","MEC-INDUST-TRANS-PUISS(TD) AGUIB A12","MACH-HYD-PNEMAT(TD)","GUEDIFA","A12","MACH-HYD-PNEMAT(TD) GUEDIFA A12","CAPT-ACTIONN(TP)","LOUNICI-Y","AT15","CAPT-ACTIONN(TP) LOUNICI-Y AT15","MEC-MILIEU-CONT(TD)","AGUIB","B417","MEC-MILIEU-CONT(TD) AGUIB B417"]
[null,"16h 20              17h 50"]
["Mercredi","8h 00                    9h 30","ELECTRO-PUISSANCE-IND(TP)","CHAMSA","RC9/A","ELECTRO-PUISSANCE-IND(TP) CHAMSA RC9/A",null,null,null,null,"TRAIT SIGNAL©","DJEDDID","A16","TRAIT SIGNAL© DJEDDID A16"]
[null,"9h 40                 11h 10","MOD-SIMUL-MACH(TP)","RAHMOUNE","A16","MOD-SIMUL-MACH(TP) RAHMOUNE A16",null,null,null,null,"ELEC-APP(TP);AUTOMATISMES(TP)","BENAZOUZ;BOUNAB","AT11;AT15","ELEC-APP(TP) BENAZOUZ AT11\nAUTOMATISMES(TP) BOUNAB AT15","TRAIT-SIGNAL©","DJEDDID","B416","TRAIT-SIGNAL© DJEDDID B416"]
[null,"11h20                12h 50","CAPTEUR-INSTRUMENT©","MERAINANI","AP3","CAPTEUR-INSTRUMENT© MERAINANI AP3","CAPTEUR-INSTRUMENT©","MERAINANI","AP3","CAPTEUR-INSTRUMENT© MERAINANI AP3","AUTOMATISMES(TP)","BOUNAB","AT15","AUTOMATISMES(TP) BOUNAB AT15","MEC-TRANSF-MOUV-GAM©","MECHAKRA","B416","MEC-TRANSF-MOUV-GAM© MECHAKRA B416"]
[null,"13h 00              14h 30",null,null,null,null,"MOD-SIMUL-MACH(TP)","RAHMOUNE","A27","MOD-SIMUL-MACH(TP) RAHMOUNE A27"]
[null,"14h 40              16h 10",null,null,null,null,null,null,null,null,"TRAIT-SIGNAL(TD)","DJEDDID","A22","TRAIT-SIGNAL(TD) DJEDDID A22"]
[null,"16h 20              17h 50"]
["Jeudi","8h 00                     9h 30","FROID-COND-AIR©","BAHLOUL","A12","FROID-COND-AIR© BAHLOUL A12","FROID-COND-AIR©","BAHLOUL","A12","FROID-COND-AIR© BAHLOUL A12","AUTOMATISMES©","GAHLOUZ","RC14","AUTOMATISMES© GAHLOUZ RC14","TRAIT-SIGN(TP)","DJEDDID","A27","TRAIT-SIGN(TP) DJEDDID A27"]
[null,"9h 40                  11h 10","ANGLAIS©","MEGHARI","A16","ANGLAIS© MEGHARI A16","ANGLAIS©","MEGHARI","A16","ANGLAIS© MEGHARI A16","AUTOMATISMES(TD)","GAHLOUZ","RC14","AUTOMATISMES(TD) GAHLOUZ RC14","RISQUES-IND-TECH©","MELLAL","B312","RISQUES-IND-TECH© MELLAL B312"]
[null,"11h20                 12h 50","RES-ELEC(TP)","BERRAZOUANE","AB12","RES-ELEC(TP) BERRAZOUANE AB12","MEC-INDUST-TRANS-PUISS(TP)","AGUIB","MER","MEC-INDUST-TRANS-PUISS(TP) AGUIB MER","TRAIT SIGNAL(TP)","DJEDDID","RC9/B","TRAIT SIGNAL(TP) DJEDDID RC9/B","ANGLAIS©","MEGHARI","B36","ANGLAIS© MEGHARI B36"]
[null,"13h 00              14h 30",null,null,null,null,null,null,null,null,null,null,null,null,"METHO-STAT©","ADICHE","B416","METHO-STAT© ADICHE B416"]
[null,"14h 40              16h 10","MEC-IND-TRAS(TP)","AGUIB","MER","MEC-IND-TRAS(TP) AGUIB MER","MOD-SIM-MACH-ELEC(TD)","RAHMOUNE","RC9/A","MOD-SIM-MACH-ELEC(TD) RAHMOUNE RC9/A"]
[null,"16h 20              17h 50"]
["Samedi","8h 00                     9h 30"]
[null,"9h 40                  11h 10"]
[null,"11h20                 12h 50"]

{"sheet":"EN LICENCE10","index":21,"n_rows":36,"n_cols":18,"rows_kept":36,"cut":false,"hidden":false,"merged":[[27,0,32,0],[33,0,35,0],[0,0,0,1],[3,0,8,0],[9,0,14,0],[15,0,20,0],[21,0,26,0]]}
["Departement:",null,null,null,null,null,null,null,null,"Filière:G-mec",null,null,null,"Spécialite:energetique"]
[null,"Section:",null,null,null,"LICENCE 3ème année",null,null,null,{"$f":"NOW()","v":"2018-09-09T13:48:19.280"}]
["Jour","SEANCES","LEN-16/A","Enseignant","Salle","LEN-16/A","LEN-16/B","Enseignant","Salle","LEN-16/B","LEN-16/C","Enseignant","Salle","LEN-16/C","LMF13-B","Enseignant","Salle","LMF13-B"]
["Dimanche","8h 00                     9h 30","TURBOMACHINES©","BRACHEMI","A24","TURBOMACHINES© BRACHEMI A24","TURBOMACHINES©","BRACHEMI","A24","TURBOMACHINES© BRACHEMI A24","TURBOMACHINES©","BRACHEMI","A24","TURBOMACHINES© BRACHEMI A24"]
[null,"9h 40                 11h 10","NOTION-ELEM DE MACHINES©","AKNOUCHE","A24","NOTION-ELEM DE MACHINES© AKNOUCHE A24","NOTION-ELEM DE MACHINES©","AKNOUCHE","A24","NOTION-ELEM DE MACHINES© AKNOUCHE A24","NOTION-ELEM DE MACHINES©","AKNOUCHE","A24","NOTION-ELEM DE MACHINES© AKNOUCHE A24"]
[null,"11h20                 12h 50",null,null,null,null,"CONVERSION D'ENERGIE(TD)","MANSOURI-L","A25","CONVERSION D'ENERGIE(TD) MANSOURI-L A25"]
[null,"13h 00              14h 30","TURBOMACHINES(TD)","BRACHEMI","A14","TURBOMACHINES(TD) BRACHEMI A14",null,null,null,null,"TRANSF DE CHALEUR(TD)","HIMRANE","B418","TRANSF DE CHALEUR(TD) HIMRANE B418","THERMODYNAMIQUE©","XX","XX","THERMODYNAMIQUE© XX XX"]
[null,"14h 40              16h 10","CONVERSION D'ENERGIE(TD)","MANSOURI-L","A14","CONVERSION D'ENERGIE(TD) MANSOURI-L A14","TURBOMACHINES(TD)","BRACHEMI","B36","TURBOMACHINES(TD) BRACHEMI B36",null,null,null,null,"MDF©","XX","XX","MDF© XX XX"]
[null,"16h 20              17h 50"]
["Lundi","8h 00                    9h 30","TRANSF DE CHALEUR(TD)","HIMRANE","C43","TRANSF DE CHALEUR(TD) HIMRANE C43","MESURES ET INSTR(TD)","LADJANI","B37","MESURES ET INSTR(TD) LADJANI B37","TURBOMACHINES(TD)","BRACHEMI","B39","TURBOMACHINES(TD) BRACHEMI B39","THERMIQUE©","XX","XX","THERMIQUE© XX XX"]
[null,"9h 40                  11h 10","MEC DES FLUIDES©","MANSOURI-K","AP1","MEC DES FLUIDES© MANSOURI-K AP1","MEC DES FLUIDES©","MANSOURI-K","AP1","MEC DES FLUIDES© MANSOURI-K AP1","MEC DES FLUIDES©","MANSOURI-K","AP1","MEC DES FLUIDES© MANSOURI-K AP1","DESSIN-TECH(TP)","XX","XX","DESSIN-TECH(TP) XX XX"]
[null,"11h20                12h 50",null,null,null,null,"MEC DES FLUIDES(TD)","GRINE","A15","MEC DES FLUIDES(TD) GRINE A15"]
[null,"13h 00              14h 30","MEC DES FLUIDES(TD)","GRINE","B417","MEC DES FLUIDES(TD) GRINE B417","TRANSF DE CHALEUR(TD)","HIMRANE","B415","TRANSF DE CHALEUR(TD) HIMRANE B415","MESURES ET INSTR(TD)","LADJANI","A24","MESURES ET INSTR(TD) LADJANI A24","THERMIQUE(TP)","XX","XX","THERMIQUE(TP) XX XX"]
[null,"14h 40              16h 10","MESURES ET INSTR(TD)","LADJANI","B417","MESURES ET INSTR(TD) LADJANI B417",null,null,null,null,"CONVERSION D'ENERGIE(TD)","MANSOURI-L","B38","CONVERSION D'ENERGIE(TD) MANSOURI-L B38","THERMIQUE(TP)","XX","XX","THERMIQUE(TP) XX XX"]
[null,"16h 20              17h 50"]
["Mardi","8h 00                    9h 30","[SI]CONVERSION D'ENERGIE(TP)","OUCHIKH","RC5","[SI]CONVERSION D'ENERGIE(TP) OUCHIKH RC5","TRANSF DE CHALEUR(TP)","BAHLOUL","C35","TRANSF DE CHALEUR(TP) BAHLOUL C35","[SP]TURBOMACHINES(TP)","DOUMANE","RC5","[SP]TURBOMACHINES(TP) DOUMANE RC5","THERMIQUE©","XX","XX","THERMIQUE© XX XX"]
[null,"9h 40                 11h 10","[SI]CONVERSION D'ENERGIE(TP)","OUCHIKH","RC5","[SI]CONVERSION D'ENERGIE(TP) OUCHIKH RC5","TRANSF DE CHALEUR(TP)","BAHLOUL","C35","TRANSF DE CHALEUR(TP) BAHLOUL C35","[SP]TURBOMACHINES(TP)","DOUMANE","RC5","[SP]TURBOMACHINES(TP) DOUMANE RC5","THERMIQUE(TD)","XX","XX","THERMIQUE(TD) XX XX"]
[null,"11h20                12h 50","TRANSF DE CHALEUR©","HIMRANE","AP5","TRANSF DE CHALEUR© HIMRANE AP5","TRANSF DE CHALEUR©","HIMRANE","AP5","TRANSF DE CHALEUR© HIMRANE AP5","TRANSF DE CHALEUR©","HIMRANE","AP5","TRANSF DE CHALEUR© HIMRANE AP5"]
[null,"13h 00              14h 30","ENV ET DEVELOPPENT©","BAHLOUL","AP3","ENV ET DEVELOPPENT© BAHLOUL AP3","ENV ET DEVELOPPENT©","BAHLOUL","AP3","ENV ET DEVELOPPENT© BAHLOUL AP3","ENV ET DEVELOPPENT©","BAHLOUL","AP3","ENV ET DEVELOPPENT© BAHLOUL AP3","THERMODYNAMIQUE(TP)","XX","XX","THERMODYNAMIQUE(TP) XX XX"]
[null,"14h 40              16h 10",null,null,null,null,null,null,null,null,"MEC DES FLUIDES(TD)","GRINE","B39","MEC DES FLUIDES(TD) GRINE B39","THERMODYNAMIQUE(TP)","XX","XX","THERMODYNAMIQUE(TP) XX XX"]
[null,"16h 20              17h 50"]
["Mercredi","8h 00                    9h 30","REGULATION ASSERV©","DOUDAH","A24","REGULATION ASSERV© DOUDAH A24","REGULATION ASSERV©","DOUDAH","A24","REGULATION ASSERV© DOUDAH A24","REGULATION ASSERV©","DOUDAH","A24","REGULATION ASSERV© DOUDAH A24","MANAGEMENT©","XX","XX","MANAGEMENT© XX XX"]
[null,"9h 40                 11h 10","MEC DES FLUIDES©","MANSOURI-K","A24","MEC DES FLUIDES© MANSOURI-K A24","MEC DES FLUIDES©","MANSOURI-K","A24","MEC DES FLUIDES© MANSOURI-K A24","MEC DES FLUIDES©","MANSOURI-K","A24","MEC DES FLUIDES© MANSOURI-K A24","THERMODYNAMIQUE©","XX","XX","THERMODYNAMIQUE© XX XX"]
[null,"11h20                12h 50",null,null,null,null,null,null,null,null,null,null,null,null,"THERMODYNAMIQUE(TD)","XX","XX","THERMODYNAMIQUE(TD) XX XX"]
[null,"13h 00              14h 30","[SP]TURBOMACHINES(TP)","DOUMANE","RC5","[SP]TURBOMACHINES(TP) DOUMANE RC5","[SP]TURBOMACHINES(TP)","DOUMANE","RC5","[SP]TURBOMACHINES(TP) DOUMANE RC5","TRANSF DE CHALEUR(TP)","DAHMANI","C35","TRANSF DE CHALEUR(TP) DAHMANI C35"]
[null,"14h 40              16h 10","[SP]TURBOMACHINES(TP)","DOUMANE","RC5","[SP]TURBOMACHINES(TP) DOUMANE RC5","[SP]TURBOMACHINES(TP)","DOUMANE","RC5","[SP]TURBOMACHINES(TP) DOUMANE RC5","TRANSF DE CHALEUR(TP)","DAHMANI","C35","TRANSF DE CHALEUR(TP) DAHMANI C35","RDM(TD)","XX","XX","RDM(TD) XX XX"]
[null,"16h 20              17h 50"]
["Jeudi","8h 00                     9h 30","CONVERSION D'ENERGIE©","BOUSHAKI","B417","CONVERSION D'ENERGIE© BOUSHAKI B417","CONVERSION D'ENERGIE©","BOUSHAKI","B417","CONVERSION D'ENERGIE© BOUSHAKI B417","CONVERSION D'ENERGIE©","BOUSHAKI","B417","CONVERSION D'ENERGIE© BOUSHAKI B417","RDM©","XX","XX","RDM© XX XX"]
[null,"9h 40                  11h 10","TRANSF DE CHALEUR(TP)","DAHMANI","C35","TRANSF DE CHALEUR(TP) DAHMANI C35","[SP]CONVERSION D'ENERGIE(TP)","OUCHIKH","RC5","[SP]CONVERSION D'ENERGIE(TP) OUCHIKH RC5","[SI]CONVERSION D'ENERGIE(TP)","OUCHIKH","RC5","[SI]CONVERSION D'ENERGIE(TP) OUCHIKH RC5","MDF©","XX","XX","MDF© XX XX"]
[null,"11h20                 12h 50","TRANSF DE CHALEUR(TP)","DAHMANI","C35","TRANSF DE CHALEUR(TP) DAHMANI C35","[SP]CONVERSION D'ENERGIE(TP)","OUCHIKH","RC5","[SP]CONVERSION D'ENERGIE(TP) OUCHIKH RC5","[SI]CONVERSION D'ENERGIE(TP)","OUCHIKH","RC5","[SI]CONVERSION D'ENERGIE(TP) OUCHIKH RC5"]
[null,"13h 00              14h 30","MESURES ET INSTR©","LADJANI","AP1","MESURES ET INSTR© LADJANI AP1","MESURES ET INSTR©","LADJANI","AP1","MESURES ET INSTR© LADJANI AP1","MESURES ET INSTR©","LADJANI","AP1","MESURES ET INSTR© LADJANI AP1","MDF(TD)","XX","XX","MDF(TD) XX XX"]
[null,"14h 40              16h 10"]
[null,"16h 20              17h 50"]
["Samedi","8h 00                     9h 30"]
[null,"9h 40                  11h 10",null,null,null,null,null,null,null,null,null,null,null,null,"MANAGEMENT©","XX","XX","MANAGEMENT© XX XX"]
[null,"11h20                 12h 50",null,null,null,null,null,null,null,null,null,null,null,null,"THERMODYNAMIQUE©","XX","XX","THERMODYNAMIQUE© XX XX"]

{"sheet":"EN MASTER11","index":22,"n_rows":36,"n_cols":18,"rows_kept":36,"cut":false,"hidden":false,"merged":[[0,3,0,9],[0,0,0,1],[21,0,26,0],[27,0,32,0],[33,0,35,0],[3,0,8,0],[9,0,14,0],[15,0,20,0]]}
["Departement:Mécanique",null,"G.Mécanique","Spécialité:Energie ren-instal-energ-turb-energetique"]
[null,"Section:",null,null,null,"Master 2ème année",null,null,null,{"$f":"NOW()","v":"2018-09-09T13:48:19.280"}]
["Jour","SEANCES","MER17","Enseignant","Salle","MER17","MIE17","Enseignant","Salle","MIE17","MEN17","Enseignant","Salle","MEN17","xxxx","Enseignant","Salle","xxxx"]
["Dimanche","8h 00                     9h 30","EFFI-ENERG-THER-B©","KHALDI","A23","EFFI-ENERG-THER-B© KHALDI A23","MOTEURS A COMBUSTION©","LOUNICI","A22","MOTEURS A COMBUSTION© LOUNICI A22","MOTEURS A COMBUSTION©","LOUNICI","A22","MOTEURS A COMBUSTION© LOUNICI A22","DEVEL-DURA-GEST-ENV©","xxxx","xxx","DEVEL-DURA-GEST-ENV© xxxx xxx"]
[null,"9h 40                 11h 10","SOL-PHOTO-APPLIC©","DOUMANE","A23","SOL-PHOTO-APPLIC© DOUMANE A23","MEC DE PROPULSION(TD)","BRAHIMI","B414","MEC DE PROPULSION(TD) BRAHIMI B414","MOTEURS-COMB-INT-APP(TD)","LOUNICI","A21","MOTEURS-COMB-INT-APP(TD) LOUNICI A21","DEVEL-DURA-GEST-ENV©","xxx","xxx","DEVEL-DURA-GEST-ENV© xxx xxx"]
[null,"11h20                 12h 50"]
[null,"13h 00              14h 30","FROID-CLIM-SOLAIRE(TP)","MANSOURI-L","RC5","FROID-CLIM-SOLAIRE(TP) MANSOURI-L RC5","OPTIMISATION(TP)","NADIR","A11","OPTIMISATION(TP) NADIR A11","CFD ET LOGICIELES(TP)","GUEMMADI","RC9/A","CFD ET LOGICIELES(TP) GUEMMADI RC9/A","MACH-FRIGO(TP)(1/2G)","xxx","xxx","MACH-FRIGO(TP)(1/2G) xxx xxx"]
[null,"14h 40              16h 10","ECHANGEURS DE CHALEUR©","HIMRANE","A15","ECHANGEURS DE CHALEUR© HIMRANE A15","RHEOLOGIE(TD)","YAHIAOUI-L","A16","RHEOLOGIE(TD) YAHIAOUI-L A16","CFD ET LOGICIELES(TP)","GUEMMADI","RC9/A","CFD ET LOGICIELES(TP) GUEMMADI RC9/A","MACH-FRIGO(TP)(1/2G)","xxx","xxx","MACH-FRIGO(TP)(1/2G) xxx xxx"]
[null,"16h 20              17h 50"]
["Lundi","8h 00                    9h 30","F-T-M-D-S©","GUERRACHE","A23","F-T-M-D-S© GUERRACHE A23","RHEOLOGIE©","YAHIAOUI-L","B413","RHEOLOGIE© YAHIAOUI-L B413","CRYOGENIE©","MANSOURI-L","A21","CRYOGENIE© MANSOURI-L A21"]
[null,"9h 40                  11h 10","MAIN-SYST-ENERG-REN©","HEDEILI-F","A23","MAIN-SYST-ENERG-REN© HEDEILI-F A23","AERODYNAMIQUE(TP)","BRACHEMI","RC5","AERODYNAMIQUE(TP) BRACHEMI RC5","CRYOGENIE(TD)","MANSOURI-L","A21","CRYOGENIE(TD) MANSOURI-L A21","MANAG-COND-PROC-INDUST(TD)","xxx","xxx","MANAG-COND-PROC-INDUST(TD) xxx xxx"]
[null,"11h20                12h 50",null,null,null,null,null,null,null,null,null,null,null,null,"MOD-SYS-ENERG(TP)","xxx","xxx","MOD-SYS-ENERG(TP) xxx xxx"]
[null,"13h 00              14h 30","EFFI-ENERG-THER-B(TD)","KHALDI","A25","EFFI-ENERG-THER-B(TD) KHALDI A25","CFD  ET LOGICIELES©","HACHEMI","B213","CFD  ET LOGICIELES© HACHEMI B213","CFD ET LOGICIELES©","HACHEMI","B213","CFD ET LOGICIELES© HACHEMI B213"]
[null,"14h 40              16h 10","MANAG-PROJET-ENERG©","MESKINE","A12","MANAG-PROJET-ENERG© MESKINE A12","MANAG-PROJET-ENERG©","MESKINE","A12","MANAG-PROJET-ENERG© MESKINE A12","MANAG-PROJET-ENERG©","MESKINE","A12","MANAG-PROJET-ENERG© MESKINE A12"]
[null,"16h 20              17h 50"]
["Mardi","8h 00                    9h 30","PILES-COMB-PROD-HYD©","OUALI","A23","PILES-COMB-PROD-HYD© OUALI A23","AERODYNAMIQUE©","BRACHEMI","A15","AERODYNAMIQUE© BRACHEMI A15","ECHANGEUR DE CHALEUR©","HIMRANE","A11","ECHANGEUR DE CHALEUR© HIMRANE A11"]
[null,"9h 40                 11h 10",null,null,null,null,"AERODYNAMIQUE(TD)","BRACHEMI","A15","AERODYNAMIQUE(TD) BRACHEMI A15","ECHANGEUR DE CHALEUR(TD)","HIMRANE","A11","ECHANGEUR DE CHALEUR(TD) HIMRANE A11","SYSTEMES ENERGETIQUE AVANCEE©","xxx","xxx","SYSTEMES ENERGETIQUE AVANCEE© xxx xxx"]
[null,"11h20                12h 50","PILES-COMPROD-HYD(TD)","OUALI","A16","PILES-COMPROD-HYD(TD) OUALI A16",null,null,null,null,"ECHANGEUR DE CHALEUR(TP)","BELAID","RC5","ECHANGEUR DE CHALEUR(TP) BELAID RC5","VAL-DECH-TRAIT-EFFLU©","xxx","xxx","VAL-DECH-TRAIT-EFFLU© xxx xxx"]
[null,"13h 00              14h 30",null,null,null,null,"MOTEURS-COMB-INT-APP©","LOUNICI","A14","MOTEURS-COMB-INT-APP© LOUNICI A14","MOTEURS-COMB-INT-APP©","LOUNICI","A14","MOTEURS-COMB-INT-APP© LOUNICI A14"]
[null,"14h 40              16h 10",null,null,null,null,"MOTEURS-COMB-INT-APP(TD)","LOUNICI","A21","MOTEURS-COMB-INT-APP(TD) LOUNICI A21"]
[null,"16h 20              17h 50"]
["Mercredi","8h 00                    9h 30","SOL-PHOTO-APPLIC(TD)","DOUMANE","A23","SOL-PHOTO-APPLIC(TD) DOUMANE A23","MEC DE PROPULSION©","BRAHIMI","A22","MEC DE PROPULSION© BRAHIMI A22","MEC DE PROPULSION©","BRAHIMI","A22","MEC DE PROPULSION© BRAHIMI A22","SYSTEMES ENERGETIQUE AVANCEE©","xxx","xxx","SYSTEMES ENERGETIQUE AVANCEE© xxx xxx"]
[null,"9h 40                 11h 10","ETUDE-TECH-ECO(TP)","YAMANI","B210","ETUDE-TECH-ECO(TP) YAMANI B210",null,null,null,null,"MEC-PROPULSION(TD)","BRAHIMI","A23","MEC-PROPULSION(TD) BRAHIMI A23","VAL-DECH-TRAIT-EFFLU©","xxx","xxx","VAL-DECH-TRAIT-EFFLU© xxx xxx"]
[null,"11h20                12h 50","RECHERCHE-DOC-CONCEP-MÉMOIRE©","ALEM","AP4","RECHERCHE-DOC-CONCEP-MÉMOIRE© ALEM AP4","RECHERCHE-DOC-CONCEP-MÉMOIRE©","ALEM","AP4","RECHERCHE-DOC-CONCEP-MÉMOIRE© ALEM AP4","RECHERCHE-DOC-CONCEP-MÉMOIRE©","ALEM","AP4","RECHERCHE-DOC-CONCEP-MÉMOIRE© ALEM AP4","MOD-SYS-ENERG(TD)","xxx","xxx","MOD-SYS-ENERG(TD) xxx xxx"]
[null,"13h 00              14h 30"]
[null,"14h 40              16h 10"]
[null,"16h 20              17h 50"]
["Jeudi","8h 00                     9h 30","ETUDE-TECH-ECO©","YAMANI","A11","ETUDE-TECH-ECO© YAMANI A11","FIABILITE©","BENAMMAR","A15","FIABILITE© BENAMMAR A15"]
[null,"9h 40                  11h 10","LOG-SIM-ENERG-REN(TP)","HACHEMI","A27","LOG-SIM-ENERG-REN(TP) HACHEMI A27","OPTIMISATION©","NADIR","A14","OPTIMISATION© NADIR A14","OPTIMISATION©","NADIR","A12","OPTIMISATION© NADIR A12","MOD-SYS-ENERG©","xxx","xxx","MOD-SYS-ENERG© xxx xxx"]
[null,"11h20                 12h 50","F-T-M-D-S(TD)","GUERRACHE","RC13","F-T-M-D-S(TD) GUERRACHE RC13","CFD  ET LOGICIELES(TP)","GUEMMADI","A27","CFD  ET LOGICIELES(TP) GUEMMADI A27","OPTIMISATION(TD)","NADIR","RC14","OPTIMISATION(TD) NADIR RC14","ELECTRI-ELECTRO-AUTOMATIQUE©","xxx","xxx","ELECTRI-ELECTRO-AUTOMATIQUE© xxx xxx"]
[null,"13h 00              14h 30","AUDIT ENERGETIQUE©","MESKINE","AP2","AUDIT ENERGETIQUE© MESKINE AP2","AUDIT ENERGETIQUE©","MESKINE","AP2","AUDIT ENERGETIQUE© MESKINE AP2","AUDIT ENERGETIQUE©","MESKINE","AP2","AUDIT ENERGETIQUE© MESKINE AP2","MANAG-COND-PROC-INDUST(TD)","xxx","xxx","MANAG-COND-PROC-INDUST(TD) xxx xxx"]
[null,"14h 40              16h 10"]
[null,"16h 20              17h 50"]
["Samedi","8h 00                     9h 30"]
[null,"9h 40                  11h 10"]
[null,"11h20                 12h 50"]

{"sheet":"EN MASTER12","index":23,"n_rows":36,"n_cols":18,"rows_kept":36,"cut":false,"hidden":false,"merged":[[33,0,35,0],[0,0,0,1],[3,0,8,0],[9,0,14,0],[15,0,20,0],[21,0,26,0],[27,0,32,0]]}
["Filère:G Mécanique",null,null,null,null,"Spécialitè:Enérgie renouvlable en mec",null,null,null,"Instalation énergétique et turbomachine",null,null,null,"énergétique"]
[null,"Section:",null,null,null,"master 1ère année",null,null,null,{"$f":"NOW()","v":"2018-09-09T13:48:19.280"}]
["Jour","SEANCES","MER18","Enseignant","Salle","MER18","MIE18","Enseignant","Salle","MIE18","MEN18","Enseignant","Salle","MEN18","MTC16","Enseignant","Salle","MTC16"]
["Dimanche","8h 00                     9h 30","NOTIONS D'AERODY-TURB©","BRAHIMI","A13","NOTIONS D'AERODY-TURB© BRAHIMI A13","M-D-F APP©","MANSOURI-K","B44","M-D-F APP© MANSOURI-K B44","M-D-F APP©","MANSOURI-K","B44","M-D-F APP© MANSOURI-K B44","THERMIQUE(TD)","XX","XX","THERMIQUE(TD) XX XX"]
[null,"9h 40                 11h 10","REGLEMENT-NORMES©","KORSO","A13","REGLEMENT-NORMES© KORSO A13","INSTA-ENERG(TP);METH NUM(TP)","OUALI;GUEMMADI","RC5;RC9/A","INSTA-ENERG(TP) OUALI RC5\nMETH NUM(TP) GUEMMADI RC9/A","M-D-F APP(TD)","MANSOURI-K","A25","M-D-F APP(TD) MANSOURI-K A25","METHODES NUMERIQUE©","XX","XX","METHODES NUMERIQUE© XX XX"]
[null,"11h20                 12h 50",null,null,null,null,"INSTA-ENERG(TP);METH NUM(TP)","OUALI;GUEMMADI","RC5;RC9/A","INSTA-ENERG(TP) OUALI RC5\nMETH NUM(TP) GUEMMADI RC9/A","METH NUM(TD)","HACHEMI","A14","METH NUM(TD) HACHEMI A14"]
[null,"13h 00              14h 30","ENERGIE-RENOUV-ENJ-EN©","DOUMANE","A13","ENERGIE-RENOUV-ENJ-EN© DOUMANE A13",null,null,null,null,null,null,null,null,"PROGRAMMATION(TP)","XX","XX","PROGRAMMATION(TP) XX XX"]
[null,"14h 40              16h 10","METHOD NUM©","NADIR","A13","METHOD NUM© NADIR A13","MDF(TD)","MANSOURI-K","A11","MDF(TD) MANSOURI-K A11",null,null,null,null,"PROGRAMMATION(TP)","XX","XX","PROGRAMMATION(TP) XX XX"]
[null,"16h 20              17h 50"]
["Lundi","8h 00                    9h 30","M D F©","DAIMALLAH","A15","M D F© DAIMALLAH A15","INSTALLATION ENERG I©","BRAHIMI","B416","INSTALLATION ENERG I© BRAHIMI B416","MACHINES THERM©","LOUNICI","A13","MACHINES THERM© LOUNICI A13"]
[null,"9h 40                  11h 10","ENERGIE-RENOUV-ENJ-EN (TD)","DOUMANE","A15","ENERGIE-RENOUV-ENJ-EN (TD) DOUMANE A15","INSTALLATION ENERG I(TD)","BRAHIMI","B416","INSTALLATION ENERG I(TD) BRAHIMI B416","MACHINES THERM(TD)","LOUNICI","A13","MACHINES THERM(TD) LOUNICI A13","M-D-F©","XX","XX","M-D-F© XX XX"]
[null,"11h20                12h 50","THERMODYNAMIQUE APP©","BOUSHAKI","A23","THERMODYNAMIQUE APP© BOUSHAKI A23","M D F©","MANSOURI-K","AP1","M D F© MANSOURI-K AP1","M D F©","MANSOURI-K","AP1","M D F© MANSOURI-K AP1"]
[null,"13h 00              14h 30",null,null,null,null,null,null,null,null,null,null,null,null,"AEROTHERMOCHIMIE-COMBUTION(TD)","XX","XX","AEROTHERMOCHIMIE-COMBUTION(TD) XX XX"]
[null,"14h 40              16h 10",null,null,null,null,null,null,null,null,null,null,null,null,"AEROTHERMOCHIMIE-COMBUTION©","XX","XX","AEROTHERMOCHIMIE-COMBUTION© XX XX"]
[null,"16h 20              17h 50"]
["Mardi","8h 00                    9h 30","M-D-F APP©","DAIMALLAH","B31","M-D-F APP© DAIMALLAH B31","TRANSF-CHALEUR-MASSE©©","GRINE","B418","TRANSF-CHALEUR-MASSE©© GRINE B418","TRANSF-CHALEUR-MASSE©","GRINE","B418","TRANSF-CHALEUR-MASSE© GRINE B418","M-D-F(TD)","XX","XX","M-D-F(TD) XX XX"]
[null,"9h 40                 11h 10","M-D-F (TD)","DAIMALLAH","B31","M-D-F (TD) DAIMALLAH B31","TRANSF-CHALEUR-MASSE(TD)","GRINE","A23","TRANSF-CHALEUR-MASSE(TD) GRINE A23",null,null,null,null,"THERMIQUE©","XX","XX","THERMIQUE© XX XX"]
[null,"11h20                12h 50",null,null,null,null,null,null,null,null,"TRANSF-CHALEUR-MASSE(TD) ","GRINE","A23","TRANSF-CHALEUR-MASSE(TD)  GRINE A23","ANGLAIS E-E-O(TD)","XX","XX","ANGLAIS E-E-O(TD) XX XX"]
[null,"13h 00              14h 30",null,null,null,null,"[SP]INSTRUMENTATION ET MESURES(TP)","LADJANI","C35","[SP]INSTRUMENTATION ET MESURES(TP) LADJANI C35","[SI]INSTRUMENTATION ET MESURES(TP)","LADJANI","C35","[SI]INSTRUMENTATION ET MESURES(TP) LADJANI C35"]
[null,"14h 40              16h 10",null,null,null,null,"[SP]INSTRUMENTATION ET MESURES(TP)","LADJANI","C35","[SP]INSTRUMENTATION ET MESURES(TP) LADJANI C35","[SI]INSTRUMENTATION ET MESURES(TP)","LADJANI","C35","[SI]INSTRUMENTATION ET MESURES(TP) LADJANI C35"]
[null,"16h 20              17h 50"]
["Mercredi","8h 00                    9h 30","GIS  RENOUV METEO©","DAHMANI","A25","GIS  RENOUV METEO© DAHMANI A25","METHO-NUM(TD)","HACHEMI","A15","METHO-NUM(TD) HACHEMI A15","METH NUMERIQUE(TP) ;MACHINES THERMIQUE(TP)","GUEMMADI;OUALI","A26;RC5","METH NUMERIQUE(TP)  GUEMMADI A26\nMACHINES THERMIQUE(TP) OUALI RC5"]
[null,"9h 40                 11h 10","GIS  RENOUV METEO(TD)","DAHMANI","A25","GIS  RENOUV METEO(TD) DAHMANI A25",null,null,null,null,"METH NUMERIQUE(TP) ;MACHINES THERMIQUE(TP)","GUEMMADI;OUALI","A26;RC5","METH NUMERIQUE(TP)  GUEMMADI A26\nMACHINES THERMIQUE(TP) OUALI RC5","THERMODYNAMIQUE©","XX","XX","THERMODYNAMIQUE© XX XX"]
[null,"11h20                12h 50","ANGLAIS©","X","A12","ANGLAIS© X A12","ANGLAIS©","X","A12","ANGLAIS© X A12","ANGLAIS©","X","A12","ANGLAIS© X A12","ANGLAIS E-E-O©","XX","XX","ANGLAIS E-E-O© XX XX"]
[null,"13h 00              14h 30",null,null,null,null,"METHOD NUM©","HACHEMI","A12","METHOD NUM© HACHEMI A12","METHOD NUM©","HACHEMI","A12","METHOD NUM© HACHEMI A12"]
[null,"14h 40              16h 10",null,null,null,null,"ELECTRONIQUE©","AKROUM","A24","ELECTRONIQUE© AKROUM A24","ELECTRONIQUE©","AKROUM","A24","ELECTRONIQUE© AKROUM A24","THERMODYNAMIQUE(TD)","XX","XX","THERMODYNAMIQUE(TD) XX XX"]
[null,"16h 20              17h 50"]
["Jeudi","8h 00                     9h 30","METHOD NUM(TD)","NADIR","A25","METHOD NUM(TD) NADIR A25",null,null,null,null,null,null,null,null,"METHODES NUMERIQUE(TD)","XX","XX","METHODES NUMERIQUE(TD) XX XX"]
[null,"9h 40                  11h 10","THERMODYNAMIQUE APP(TD)","BOUSHAKI","A25","THERMODYNAMIQUE APP(TD) BOUSHAKI A25","ELECTROTECHNIQUE©","RAHMOUNE","B417","ELECTROTECHNIQUE© RAHMOUNE B417","ELECTROTECHNIQUE©","RAHMOUNE","B417","ELECTROTECHNIQUE© RAHMOUNE B417","ENERGIES RENOUVLABLES©","XX","XX","ENERGIES RENOUVLABLES© XX XX"]
[null,"11h20                 12h 50",null,null,null,null,"INSTRUMENTATION ET MESURES©","LADJANI","AP2","INSTRUMENTATION ET MESURES© LADJANI AP2","INSTRUMENTATION ET MESURES©","LADJANI","AP2","INSTRUMENTATION ET MESURES© LADJANI AP2"]
[null,"13h 00              14h 30","METHOD NUM(TP);GIS  RENOUV METEO(TP)","GUEMMADI;DAHMANI","B210;RC5","METHOD NUM(TP) GUEMMADI B210\nGIS  RENOUV METEO(TP) DAHMANI RC5","[SI]MDF(TP)","KHALDI","RC7","[SI]MDF(TP) KHALDI RC7","[SP]MDF(TP)","KHALDI","RC7","[SP]MDF(TP) KHALDI RC7","ENERGIES RENOUVLABLES(TD)","XX","xx","ENERGIES RENOUVLABLES(TD) XX xx"]
[null,"14h 40              16h 10","METHOD NUM(TP);GIS  RENOUV METEO(TP)","GUEMMADI;DAHMANI","B210;RC5","METHOD NUM(TP) GUEMMADI B210\nGIS  RENOUV METEO(TP) DAHMANI RC5","[SI]MDF(TP)","KHALDI","RC7","[SI]MDF(TP) KHALDI RC7","[SP]MDF(TP)","KHALDI","RC7","[SP]MDF(TP) KHALDI RC7"]
[null,"16h 20              17h 50"]
["Samedi","8h 00                     9h 30"]
[null,"9h 40                  11h 10"]
[null,"11h20                 12h 50"]

{"sheet":"TC S31","index":24,"n_rows":36,"n_cols":18,"rows_kept":36,"cut":false,"hidden":false,"merged":[[27,0,32,0],[33,0,35,0],[0,0,0,1],[1,0,1,1],[3,0,8,0],[9,0,14,0],[15,0,20,0],[21,0,26,0]]}
["Filière:",null,null,null,null,"electronique",null,null,null,"automatique",null,null,null,"electrotechnique",null,null,null,{"$f":"TODAY()","v":"2018-09-09"}]
["Section:",null,null,null,null,"Licence 2ème année",null,null,null,{"$f":"NOW()","v":"2018-09-09T13:48:19.280"}]
["Jour","SEANCES","LELN-17","Enseignant","Salle","LELN-17","LAUTO-1","Enseignant","Salle","LAUTO-1","LELET-17/A","Enseignant","Salle","LELET-17/A","LELET-17/B","Enseignant","Salle","LELET-17/B"]
["Dimanche","8h 00                     9h 30","ENERGIE ET ENVIRONNEMENT©","BOUMERIDJA","AP2","ENERGIE ET ENVIRONNEMENT© BOUMERIDJA AP2","ENERGIE ET ENVIRONNEMENT©","BOUMERIDJA","AP2","ENERGIE ET ENVIRONNEMENT© BOUMERIDJA AP2","ENERGIE ET ENVIRONNEMENT©","BOUMERIDJA","AP2","ENERGIE ET ENVIRONNEMENT© BOUMERIDJA AP2","ENERGIE ET ENVIRONNEMENT©","BOUMERIDJA","AP2","ENERGIE ET ENVIRONNEMENT© BOUMERIDJA AP2"]
[null,"9h 40                 11h 10","ANGLAIS©","YAHIAOUI","AP4","ANGLAIS© YAHIAOUI AP4","ANGLAIS©","YAHIAOUI","AP4","ANGLAIS© YAHIAOUI AP4","ANGLAIS©","YAHIAOUI","AP4","ANGLAIS© YAHIAOUI AP4","ANGLAIS©","YAHIAOUI","AP4","ANGLAIS© YAHIAOUI AP4"]
[null,"11h20                 12h 50","ELECTRONIQUE FOND©","YAKHELEF","AP4","ELECTRONIQUE FOND© YAKHELEF AP4","ELECTRONIQUE FOND©","YAKHELEF","AP4","ELECTRONIQUE FOND© YAKHELEF AP4","ELECTRONIQUE FOND©","YAKHELEF","AP4","ELECTRONIQUE FOND© YAKHELEF AP4","ELECTRONIQUE FOND©","YAKHELEF","AP4","ELECTRONIQUE FOND© YAKHELEF AP4"]
[null,"13h 00              14h 30",null,null,null,null,"ELECTROTECH(TP)","HAMEL","C315","ELECTROTECH(TP) HAMEL C315",null,null,null,null,"ELECTRONIQUE(TD)","MOUATSI","C48","ELECTRONIQUE(TD) MOUATSI C48"]
[null,"14h 40              16h 10","ELECTRONIQUE(TD)","MOUATSI","C48","ELECTRONIQUE(TD) MOUATSI C48"]
[null,"16h 20              17h 50"]
["Lundi","8h 00                    9h 30",null,null,null,null,"ELECTRNOIQUE(TP)","MOUATSI","AT11","ELECTRNOIQUE(TP) MOUATSI AT11",null,null,null,null,"ELECTROTECH-FOND(TD)","MZIOU","B35","ELECTROTECH-FOND(TD) MZIOU B35"]
[null,"9h 40                  11h 10","ELECTROTECH(TP);ELECTRONIQUE(TP)","HAROUN;MOUATSI","C315;B211","ELECTROTECH(TP) HAROUN C315\nELECTRONIQUE(TP) MOUATSI B211","INFORMATIQUE(TP)","X","X","INFORMATIQUE(TP) X X","ELECTROTECH-FOND(TD)","MZIOU","B37","ELECTROTECH-FOND(TD) MZIOU B37"]
[null,"11h20                12h 50","ELEC-TECH-FOND©","MZIOU","AP5","ELEC-TECH-FOND© MZIOU AP5","ELEC-TECH-FOND©","MZIOU","AP5","ELEC-TECH-FOND© MZIOU AP5","ELEC-TECH-FOND©","MZIOU","AP5","ELEC-TECH-FOND© MZIOU AP5","ELEC-TECH-FOND©","MZIOU","AP5","ELEC-TECH-FOND© MZIOU AP5"]
[null,"13h 00              14h 30",null,null,null,null,"ELECTRONIQUE(TD)","MOUATSI","C49","ELECTRONIQUE(TD) MOUATSI C49"]
[null,"14h 40              16h 10","ETAT DE  L'ART  DE G-ELECT©","SAADSOUD","AP6","ETAT DE  L'ART  DE G-ELECT© SAADSOUD AP6","ETAT DE  L'ART  DE G-ELECT©","SAADSOUD","AP6","ETAT DE  L'ART  DE G-ELECT© SAADSOUD AP6","ETAT DE  L'ART  DE G-ELECT©","SAADSOUD","AP6","ETAT DE  L'ART  DE G-ELECT© SAADSOUD AP6","ETAT DE  L'ART  DE G-ELECT©","SAADSOUD","AP6","ETAT DE  L'ART  DE G-ELECT© SAADSOUD AP6"]
[null,"16h 20              17h 50"]
["Mardi","8h 00                    9h 30","INFORMATIQUE(TP)","BELHABCHIA","A26","INFORMATIQUE(TP) BELHABCHIA A26",null,null,null,null,"ELECTRONIQUE(TD)","MOUATSI","B32","ELECTRONIQUE(TD) MOUATSI B32","ONDES ET VIBR(TD)","GOUGAM","C32","ONDES ET VIBR(TD) GOUGAM C32"]
[null,"9h 40                 11h 10",null,null,null,null,"MATHEMATIQUE(TD)","BOUKROU","B49","MATHEMATIQUE(TD) BOUKROU B49","OND ET VIB(TP)","ZIROUR","B32","OND ET VIB(TP) ZIROUR B32","ELECTRNOIQUE(TP)","BOURKACHE","AT11","ELECTRNOIQUE(TP) BOURKACHE AT11"]
[null,"11h20                12h 50","MATHEMATIQUE(TD)","BOUKROU","B39","MATHEMATIQUE(TD) BOUKROU B39",null,null,null,null,"ELECTRNOIQUE(TP)","BOURKACHE","B211","ELECTRNOIQUE(TP) BOURKACHE B211","ONDES ET VIBR(TP)","ZIROUR","B310","ONDES ET VIBR(TP) ZIROUR B310"]
[null,"13h 00              14h 30","MATHEMATIQUE©","AZZAL","AP4","MATHEMATIQUE© AZZAL AP4","MATHEMATIQUE©","AZZAL","AP4","MATHEMATIQUE© AZZAL AP4","MATHEMATIQUE©","AZZAL","AP4","MATHEMATIQUE© AZZAL AP4","MATHEMATIQUE©","AZZAL","AP4","MATHEMATIQUE© AZZAL AP4"]
[null,"14h 40              16h 10",null,null,null,null,null,null,null,null,"ONDES ET VIBR(TD)","GOUGAM","C49","ONDES ET VIBR(TD) GOUGAM C49"]
[null,"16h 20              17h 50"]
["Mercredi","8h 00                    9h 30","PROBAT ET STAT©","X","AP3","PROBAT ET STAT© X AP3","PROBAT ET STAT©","X","AP3","PROBAT ET STAT© X AP3","PROBAT ET STAT©","X","AP3","PROBAT ET STAT© X AP3","PROBAT ET STAT©","X","AP3","PROBAT ET STAT© X AP3"]
[null,"9h 40                 11h 10","ONDES ET VIBR©","RAHMOUNE","AP3","ONDES ET VIBR© RAHMOUNE AP3","ONDES ET VIBR©","RAHMOUNE","AP3","ONDES ET VIBR© RAHMOUNE AP3","ONDES ET VIBR©","RAHMOUNE","AP3","ONDES ET VIBR© RAHMOUNE AP3","ONDES ET VIBR©","RAHMOUNE","AP3","ONDES ET VIBR© RAHMOUNE AP3"]
[null,"11h20                12h 50","ELECTROTECH-FOND(TD)","LARABI","C42","ELECTROTECH-FOND(TD) LARABI C42","ONDES ET VIBR(TD)","LOUNICI-H","C45","ONDES ET VIBR(TD) LOUNICI-H C45"]
[null,"13h 00              14h 30",null,null,null,null,"ELECTROTECH-FOND(TD)","LARABI","C48","ELECTROTECH-FOND(TD) LARABI C48","INFORMATIQUE(TP)","X","RC9/A","INFORMATIQUE(TP) X RC9/A","PROBAT-STAT(TD)","ALIOUCHE-EL","B32","PROBAT-STAT(TD) ALIOUCHE-EL B32"]
[null,"14h 40              16h 10","ONDES ET VIBR(TD)","LOUNICI-H","B311","ONDES ET VIBR(TD) LOUNICI-H B311",null,null,null,null,"PROBAT-STAT(TD)","ALIOUCHE-EL","B31","PROBAT-STAT(TD) ALIOUCHE-EL B31","INFORMATIQUE(TP)","X","A27","INFORMATIQUE(TP) X A27"]
[null,"16h 20              17h 50"]
["Jeudi","8h 00                     9h 30","MATHEMATIQUE©","AZZAL","AP4","MATHEMATIQUE© AZZAL AP4","MATHEMATIQUE©","AZZAL","AP4","MATHEMATIQUE© AZZAL AP4","MATHEMATIQUE©","AZZAL","AP4","MATHEMATIQUE© AZZAL AP4","MATHEMATIQUE©","AZZAL","AP4","MATHEMATIQUE© AZZAL AP4"]
[null,"9h 40                  11h 10","PROBAT-STAT(TD)","ALIOUCHE-EL","B38","PROBAT-STAT(TD) ALIOUCHE-EL B38","OND ET VIB(TP)","ZIROUR","B413","OND ET VIB(TP) ZIROUR B413","ELECTROTECH(TP)","HAMEL","C315","ELECTROTECH(TP) HAMEL C315","MATHEMATIQUE(TD)","BOUKROU","B419","MATHEMATIQUE(TD) BOUKROU B419"]
[null,"11h20                 12h 50","OND ET VIB(TP)","ZIROUR","B38","OND ET VIB(TP) ZIROUR B38","PROBAT-STAT(TD)","ALIOUCHE-EL","B313","PROBAT-STAT(TD) ALIOUCHE-EL B313","MATHEMATIQUE(TD)","BOUKROU","C32","MATHEMATIQUE(TD) BOUKROU C32"]
[null,"13h 00              14h 30",null,null,null,null,null,null,null,null,null,null,null,null,"ELECTROTECH(TP)","HAMEL","C315","ELECTROTECH(TP) HAMEL C315"]
[null,"14h 40              16h 10"]
[null,"16h 20              17h 50"]
["Samedi","8h 00                     9h 30"]
[null,"9h 40                  11h 10"]
[null,"11h20                 12h 50"]

{"sheet":"TC S32","index":25,"n_rows":36,"n_cols":18,"rows_kept":36,"cut":false,"hidden":false,"merged":[[27,0,32,0],[33,0,35,0],[0,0,0,1],[1,0,1,1],[3,0,8,0],[9,0,14,0],[15,0,20,0],[21,0,26,0]]}
["Filière:Génie civil"]
["Section:",null,null,null,null,"Licence 2ème année",null,null,null,null,null,null,null,{"$f":"NOW()","v":"2018-09-09T13:48:19.280"}]
["Jour","SEANCES","LGC-17/A","Enseignant","Salle","LGC-17/A","LGC-17/B","Enseignant","Salle","LGC-17/B","LGC-17/C","Enseignant","Salle","LGC-17/C","LGC-17/D","Enseignant","Salle","LGC-17/D"]
["Dimanche","8h 00                     9h 30","MEC DES FLUIDES©","GHERNAOUAT","AP5","MEC DES FLUIDES© GHERNAOUAT AP5","MEC DES FLUIDES©","GHERNAOUAT","AP5","MEC DES FLUIDES© GHERNAOUAT AP5","MEC DES FLUIDES©","GHERNAOUAT","AP5","MEC DES FLUIDES© GHERNAOUAT AP5","MEC DES FLUIDES©","GHERNAOUAT","AP5","MEC DES FLUIDES© GHERNAOUAT AP5"]
[null,"9h 40                 11h 10",null,null,null,null,null,null,null,null,"MATHEMATIQUE(TD)","MESSAOUDI","B415","MATHEMATIQUE(TD) MESSAOUDI B415"]
[null,"11h20                 12h 50","MATHEMATIQUE©","MESSAOUDI","AP5","MATHEMATIQUE© MESSAOUDI AP5","MATHEMATIQUE©","MESSAOUDI","AP5","MATHEMATIQUE© MESSAOUDI AP5","MATHEMATIQUE©","MESSAOUDI","AP5","MATHEMATIQUE© MESSAOUDI AP5","MATHEMATIQUE©","MESSAOUDI","AP5","MATHEMATIQUE© MESSAOUDI AP5"]
[null,"13h 00              14h 30"]
[null,"14h 40              16h 10","METROLOGIE©","TOURAB","AP5","METROLOGIE© TOURAB AP5","METROLOGIE©","TOURAB","AP5","METROLOGIE© TOURAB AP5","METROLOGIE©","TOURAB","AP5","METROLOGIE© TOURAB AP5","METROLOGIE©","TOURAB","AP5","METROLOGIE© TOURAB AP5"]
[null,"16h 20              17h 50"]
["Lundi","8h 00                    9h 30","DESSIN(TP)","DERBAH","AT23","DESSIN(TP) DERBAH AT23","M-D-F(TD)","GHERNAOUAT","B414","M-D-F(TD) GHERNAOUAT B414","INFORMATIQUE(TP)","X","RC9/A","INFORMATIQUE(TP) X RC9/A"]
[null,"9h 40                  11h 10","DESSIN(TP)","DERBAH","AT23","DESSIN(TP) DERBAH AT23","INFORMATIQUE(TP)","X","RC9/A","INFORMATIQUE(TP) X RC9/A","M-D-F(TD)","GHERNAOUAT","B419","M-D-F(TD) GHERNAOUAT B419"]
[null,"11h20                12h 50","INFORMATIQUE(TP)","X","RC9/A","INFORMATIQUE(TP) X RC9/A"]
[null,"13h 00              14h 30",null,null,null,null,"DESSIN(TP)","DERBAH","AT23","DESSIN(TP) DERBAH AT23","PROBAT STAT(TD)","KAB","B310","PROBAT STAT(TD) KAB B310","M-D-F(TD)","GHERNAOUAT","B418","M-D-F(TD) GHERNAOUAT B418"]
[null,"14h 40              16h 10","M-D-F(TD)","GHERNAOUAT","B48","M-D-F(TD) GHERNAOUAT B48","DESSIN(TP)","DERBAH","AT23","DESSIN(TP) DERBAH AT23",null,null,null,null,"PROBAT STAT(TD)","KAB","B312","PROBAT STAT(TD) KAB B312"]
[null,"16h 20              17h 50"]
["Mardi","8h 00                    9h 30","TECH DE BASE©","DILMI","AP2","TECH DE BASE© DILMI AP2","TECH DE BASE©","DILMI","AP2","TECH DE BASE© DILMI AP2","TECH DE BASE©","DILMI","AP2","TECH DE BASE© DILMI AP2","TECH DE BASE©","DILMI","AP2","TECH DE BASE© DILMI AP2"]
[null,"9h 40                 11h 10","MATHEMATIQUE(TD)","MESSAOUDI","B311","MATHEMATIQUE(TD) MESSAOUDI B311"]
[null,"11h20                12h 50",null,null,null,null,null,null,null,null,null,null,null,null,"INFORMATIQUE(TP)","X","RC9/A","INFORMATIQUE(TP) X RC9/A"]
[null,"13h 00              14h 30","PROBAT STAT©","KAB","AP5","PROBAT STAT© KAB AP5","PROBAT STAT©","KAB","AP5","PROBAT STAT© KAB AP5","PROBAT STAT©","KAB","AP5","PROBAT STAT© KAB AP5","PROBAT STAT©","KAB","AP5","PROBAT STAT© KAB AP5"]
[null,"14h 40              16h 10","PROBAT STAT(TD)","KAB","B213","PROBAT STAT(TD) KAB B213"]
[null,"16h 20              17h 50"]
["Mercredi","8h 00                    9h 30","MATHEMATIQUE©","MESSAOUDI","AP5","MATHEMATIQUE© MESSAOUDI AP5","MATHEMATIQUE©","MESSAOUDI","AP5","MATHEMATIQUE© MESSAOUDI AP5","MATHEMATIQUE©","MESSAOUDI","AP5","MATHEMATIQUE© MESSAOUDI AP5","MATHEMATIQUE©","MESSAOUDI","AP5","MATHEMATIQUE© MESSAOUDI AP5"]
[null,"9h 40                 11h 10",null,null,null,null,"MATHEMATIQUE(TD)","MESSAOUDI","B414","MATHEMATIQUE(TD) MESSAOUDI B414","DESSIN(TP)","DERBAH","AT24","DESSIN(TP) DERBAH AT24","ONDES ET VIBR(TD)","FEKHAR","C32","ONDES ET VIBR(TD) FEKHAR C32"]
[null,"11h20                12h 50","ONDES ET VIBR(TD)","FEKHAR","B414","ONDES ET VIBR(TD) FEKHAR B414",null,null,null,null,"DESSIN(TP)","DERBAH","AT24","DESSIN(TP) DERBAH AT24","MATHEMATIQUE(TD)","MESSAOUDI","C32","MATHEMATIQUE(TD) MESSAOUDI C32"]
[null,"13h 00              14h 30","VIB OND(TP)","FEKHAR","B414","VIB OND(TP) FEKHAR B414"]
[null,"14h 40              16h 10",null,null,null,null,null,null,null,null,null,null,null,null,"ONDES ET VIBR(TP)","FEKHAR","B35","ONDES ET VIBR(TP) FEKHAR B35"]
[null,"16h 20              17h 50"]
["Jeudi","8h 00                     9h 30","ONDES ET VIBR©","RAHMOUNE","AP5","ONDES ET VIBR© RAHMOUNE AP5","ONDES ET VIBR©","RAHMOUNE","AP5","ONDES ET VIBR© RAHMOUNE AP5","ONDES ET VIBR©","RAHMOUNE","AP5","ONDES ET VIBR© RAHMOUNE AP5","ONDES ET VIBR©","RAHMOUNE","AP5","ONDES ET VIBR© RAHMOUNE AP5"]
[null,"9h 40                  11h 10","ANGLAIS©","BOUDERAH","B414","ANGLAIS© BOUDERAH B414","PROBAT STAT(TD)","KAB","B213","PROBAT STAT(TD) KAB B213","ONDES ET VIBR(TD)","FEKHAR","B41","ONDES ET VIBR(TD) FEKHAR B41","DESSIN(TP)","DERBAH","AT23","DESSIN(TP) DERBAH AT23"]
[null,"11h20                 12h 50",null,null,null,null,"ONDES ET VIBR(TD)","FEKHAR","C49","ONDES ET VIBR(TD) FEKHAR C49","ANGLAIS©","BOUDERAH","B41","ANGLAIS© BOUDERAH B41","DESSIN(TP)","DERBAH","AT23","DESSIN(TP) DERBAH AT23"]
[null,"13h 00              14h 30",null,null,null,null,"VIB OND(TP)","FEKHAR","C43","VIB OND(TP) FEKHAR C43"]
[null,"14h 40              16h 10",null,null,null,null,null,null,null,null,"VIB OND(TP)","FEKHAR","C43","VIB OND(TP) FEKHAR C43"]
[null,"16h 20              17h 50"]
["Samedi","8h 00                     9h 30","MEC RATIONNEL©","DJEDDI","AP6","MEC RATIONNEL© DJEDDI AP6","MEC RATIONNEL©","DJEDDI","AP6","MEC RATIONNEL© DJEDDI AP6","MEC RATIONNEL©","DJEDDI","AP6","MEC RATIONNEL© DJEDDI AP6","MEC RATIONNEL©","DJEDDI","AP6","MEC RATIONNEL© DJEDDI AP6"]
[null,"9h 40                  11h 10","MEC RATIONNEL(TD)","MEGHOUCHE","B46","MEC RATIONNEL(TD) MEGHOUCHE B46","MEC RATIONNEL(TD)","DJEDDI","B47","MEC RATIONNEL(TD) DJEDDI B47",null,null,null,null,"ANGLAIS©","BOUDERAH","B417","ANGLAIS© BOUDERAH B417"]
[null,"11h20                 12h 50",null,null,null,null,"ANGLAIS©","BOUDERAH","B47","ANGLAIS© BOUDERAH B47","MEC RATIONNEL(TD)","MEGHOUCHE","B46","MEC RATIONNEL(TD) MEGHOUCHE B46","MEC RATIONNEL(TD)","DJEDDI","B417","MEC RATIONNEL(TD) DJEDDI B417"]

{"sheet":"TC S34","index":26,"n_rows":36,"n_cols":18,"rows_kept":36,"cut":false,"hidden":false,"merged":[[27,0,32,0],[33,0,35,0],[0,0,0,1],[1,0,1,1],[3,0,8,0],[9,0,14,0],[15,0,20,0],[21,0,26,0]]}
["Filière:",null,null,null,null,"GDP",null,null,null,"Filière:G DES PROCEDES"]
["Section:",null,null,null,null,"Licence 2ème année",null,null,null,null,null,null,null,{"$f":"NOW()","v":"2018-09-09T13:48:19.280"}]
["Jour","SEANCES","LGP-17/A","Enseignant","Salle","LGP-17/A","LGP-17/B","Enseignant","Salle","LGP-17/B","LGP-17/C","Enseignant","Salle","LGP-17/C","LHSI-17","Enseignant","Salle","LHSI-17"]
["Dimanche","8h 00                     9h 30","MEC DES FLUIDES©","SAHMOUNE","AP6","MEC DES FLUIDES© SAHMOUNE AP6","MEC DES FLUIDES©","SAHMOUNE","AP6","MEC DES FLUIDES© SAHMOUNE AP6","MEC DES FLUIDES©","SAHMOUNE","AP6","MEC DES FLUIDES© SAHMOUNE AP6","MEC DES FLUIDES©","SAHMOUNE","AP6","MEC DES FLUIDES© SAHMOUNE AP6"]
[null,"9h 40                 11h 10","CHIMIE MINERALE©","BENBOUABDALLAH","AP6","CHIMIE MINERALE© BENBOUABDALLAH AP6","CHIMIE MINERALE©","BENBOUABDALLAH","AP6","CHIMIE MINERALE© BENBOUABDALLAH AP6","CHIMIE MINERALE©","BENBOUABDALLAH","AP6","CHIMIE MINERALE© BENBOUABDALLAH AP6","CHIMIE MINERALE©","BENBOUABDALLAH","AP6","CHIMIE MINERALE© BENBOUABDALLAH AP6"]
[null,"11h20                 12h 50",null,null,null,null,null,null,null,null,null,null,null,null,"CHIMIE MINERALE(TD)","BOUAZIZ","C45","CHIMIE MINERALE(TD) BOUAZIZ C45"]
[null,"13h 00              14h 30",null,null,null,null,"CHIMIE MINERALE(TD)","BOUAZIZ","B415","CHIMIE MINERALE(TD) BOUAZIZ B415"]
[null,"14h 40              16h 10"]
[null,"16h 20              17h 50"]
["Lundi","8h 00                    9h 30","ONDES ET VIBR©","RAHMOUNE","AP6","ONDES ET VIBR© RAHMOUNE AP6","ONDES ET VIBR©","RAHMOUNE","AP6","ONDES ET VIBR© RAHMOUNE AP6","ONDES ET VIBR©","RAHMOUNE","AP6","ONDES ET VIBR© RAHMOUNE AP6","ONDES ET VIBR©","RAHMOUNE","AP6","ONDES ET VIBR© RAHMOUNE AP6"]
[null,"9h 40                  11h 10","CHIMIE MINERALE(TD)","BOUAZIZ","C32","CHIMIE MINERALE(TD) BOUAZIZ C32","DESSIN(TP)","HALFAOUI","AT22","DESSIN(TP) HALFAOUI AT22","ONDES ET VIBR(TD)","LADDADA","C49","ONDES ET VIBR(TD) LADDADA C49","M-D-F(TD)","AMITOUCHE","C45","M-D-F(TD) AMITOUCHE C45"]
[null,"11h20                12h 50",null,null,null,null,"DESSIN(TP)","HALFAOUI","AT22","DESSIN(TP) HALFAOUI AT22","CHIMIE MINERALE(TD)","BOUAZIZ","C49","CHIMIE MINERALE(TD) BOUAZIZ C49","INFORMATIQUE(TP)","HARFOUCHE","A26","INFORMATIQUE(TP) HARFOUCHE A26"]
[null,"13h 00              14h 30","[SI]VIB OND(TP)","YAHIAOUI-L","B47","[SI]VIB OND(TP) YAHIAOUI-L B47","M-D-F(TD)","AMITOUCHE","B32","M-D-F(TD) AMITOUCHE B32"]
[null,"14h 40              16h 10"]
[null,"16h 20              17h 50"]
["Mardi","8h 00                    9h 30","HSI-INSTAL-INDUST©","KORSO","AP4","HSI-INSTAL-INDUST© KORSO AP4","HSI-INSTAL-INDUST©","KORSO","AP4","HSI-INSTAL-INDUST© KORSO AP4","HSI-INSTAL-INDUST©","KORSO","AP4","HSI-INSTAL-INDUST© KORSO AP4","HSI-INSTAL-INDUST©","KORSO","AP4","HSI-INSTAL-INDUST© KORSO AP4"]
[null,"9h 40                 11h 10","DESSIN(TP)","HALFAOUI","AT23","DESSIN(TP) HALFAOUI AT23","INFORMATIQUE(TP)","HARFOUCHE","AB12","INFORMATIQUE(TP) HARFOUCHE AB12","ANGLAIS©","X","C412","ANGLAIS© X C412","ONDES ET VIBR(TD)","LADDADA","A14","ONDES ET VIBR(TD) LADDADA A14"]
[null,"11h20                12h 50","DESSIN(TP)","HALFAOUI","AT23","DESSIN(TP) HALFAOUI AT23",null,null,null,null,"INFORMATIQUE(TP)","HARFOUCHE","RC9/B","INFORMATIQUE(TP) HARFOUCHE RC9/B"]
[null,"13h 00              14h 30",null,null,null,null,"ONDES ET VIBR(TP)","YAHIAOUI-L","B48","ONDES ET VIBR(TP) YAHIAOUI-L B48",null,null,null,null,"DESSIN(TP)","HALFAOUI","AT23","DESSIN(TP) HALFAOUI AT23"]
[null,"14h 40              16h 10","ANGLAIS©","X","B41","ANGLAIS© X B41",null,null,null,null,"[SP]ONDES ET VIBR(TP)","YAHIAOUI-L","X","[SP]ONDES ET VIBR(TP) YAHIAOUI-L X","DESSIN(TP)","HALFAOUI","AT23","DESSIN(TP) HALFAOUI AT23"]
[null,"16h 20              17h 50"]
["Mercredi","8h 00                    9h 30",null,null,null,null,null,null,null,null,"PROBAT ET STAT(TD)","LATRECHE","B31","PROBAT ET STAT(TD) LATRECHE B31"]
[null,"9h 40                 11h 10","PROBAT ET STAT©","RIH","AP6","PROBAT ET STAT© RIH AP6","PROBAT ET STAT©","RIH","AP6","PROBAT ET STAT© RIH AP6","PROBAT ET STAT©","RIH","AP6","PROBAT ET STAT© RIH AP6","PROBAT ET STAT©","RIH","AP6","PROBAT ET STAT© RIH AP6"]
[null,"11h20                12h 50","PROBAT ET STAT(TD)","LATRECHE","B310","PROBAT ET STAT(TD) LATRECHE B310",null,null,null,null,null,null,null,null,"ANGLAIS©","X","B39","ANGLAIS© X B39"]
[null,"13h 00              14h 30",null,null,null,null,"ANGLAIS©","X","B35","ANGLAIS© X B35","DESSIN(TP)","HALFAOUI","AT24","DESSIN(TP) HALFAOUI AT24"]
[null,"14h 40              16h 10","INFORMATIQUE(TP)","HARFOUCHE","RC9/B","INFORMATIQUE(TP) HARFOUCHE RC9/B","PROBAT ET STAT(TD)","LATRECHE","B312","PROBAT ET STAT(TD) LATRECHE B312","DESSIN(TP)","HALFAOUI","AT24","DESSIN(TP) HALFAOUI AT24"]
[null,"16h 20              17h 50"]
["Jeudi","8h 00                     9h 30","REGLEMENT ET NORMES©","KORSO","AP2","REGLEMENT ET NORMES© KORSO AP2","REGLEMENT ET NORMES©","KORSO","AP2","REGLEMENT ET NORMES© KORSO AP2","REGLEMENT ET NORMES©","KORSO","AP2","REGLEMENT ET NORMES© KORSO AP2","REGLEMENT ET NORMES©","KORSO","AP2","REGLEMENT ET NORMES© KORSO AP2"]
[null,"9h 40                  11h 10","MATHEMATIQUE©","AZZOUNI","AP5","MATHEMATIQUE© AZZOUNI AP5","MATHEMATIQUE©","AZZOUNI","AP5","MATHEMATIQUE© AZZOUNI AP5","MATHEMATIQUE©","AZZOUNI","AP5","MATHEMATIQUE© AZZOUNI AP5","MATHEMATIQUE©","AZZOUNI","AP5","MATHEMATIQUE© AZZOUNI AP5"]
[null,"11h20                 12h 50",null,null,null,null,"MATHEMATIQUE(TD)","AZZOUNI","C412","MATHEMATIQUE(TD) AZZOUNI C412"]
[null,"13h 00              14h 30","MATHEMATIQUE(TD)","AZZOUNI","C412","MATHEMATIQUE(TD) AZZOUNI C412"]
[null,"14h 40              16h 10",null,null,null,null,null,null,null,null,null,null,null,null,"VIB OND(TP)","TOUNSI","B313","VIB OND(TP) TOUNSI B313"]
[null,"16h 20              17h 50"]
["Samedi","8h 00                     9h 30","ONDES ET VIBR(TD)","LADDADA","B311","ONDES ET VIBR(TD) LADDADA B311",null,null,null,null,"M-D-F(TD)","AMITOUCHE","B35","M-D-F(TD) AMITOUCHE B35","MATHEMATIQUE(TD)","AZZOUNI","X","MATHEMATIQUE(TD) AZZOUNI X"]
[null,"9h 40                  11h 10","M-D-F(TD)","AMITOUCHE","B311","M-D-F(TD) AMITOUCHE B311","[SP]ONDES ET VIBR(TD)","LADDADA","X","[SP]ONDES ET VIBR(TD) LADDADA X","MATHEMATIQUE(TD)","AZZOUNI","B35","MATHEMATIQUE(TD) AZZOUNI B35","PROBAT ET STAT(TD)","LATRECHE","C32","PROBAT ET STAT(TD) LATRECHE C32"]
[null,"11h20                 12h 50","MATHEMATIQUE©","AZZOUNI","AP5","MATHEMATIQUE© AZZOUNI AP5","MATHEMATIQUE©","AZZOUNI","AP5","MATHEMATIQUE© AZZOUNI AP5","MATHEMATIQUE©","AZZOUNI","AP5","MATHEMATIQUE© AZZOUNI AP5","MATHEMATIQUE©","AZZOUNI","AP5","MATHEMATIQUE© AZZOUNI AP5"]

{"sheet":"TC S35","index":27,"n_rows":36,"n_cols":18,"rows_kept":36,"cut":false,"hidden":false,"merged":[[27,0,32,0],[33,0,35,0],[0,0,0,1],[1,0,1,1],[3,0,8,0],[9,0,14,0],[15,0,20,0],[21,0,26,0]]}
["Dep::",null,null,null,null,"G DES PROCEDES",null,null,null,"Filière:G DES PROCEDES"]
["Section:",null,null,null,null,"Licence 2ème année",null,null,null,null,null,null,null,{"$f":"NOW()","v":"2018-09-09T13:48:19.280"}]
["Jour","SEANCES","LGP-17/D","Enseignant","Salle","LGP-17/D","LGP-17/E","Enseignant","Salle","LGP-17/E","LGP-17/F","Enseignant","Salle","LGP-17/F","LGP-17/G","Enseignant","Salle","LGP-17/G"]
["Dimanche","8h 00                     9h 30"]
[null,"9h 40                 11h 10","MATHEMATIQUE©","KHALFAOUI","AP2","MATHEMATIQUE© KHALFAOUI AP2","MATHEMATIQUE©","KHALFAOUI","AP2","MATHEMATIQUE© KHALFAOUI AP2","MATHEMATIQUE©","KHALFAOUI","AP2","MATHEMATIQUE© KHALFAOUI AP2","MATHEMATIQUE©","KHALFAOUI","AP2","MATHEMATIQUE© KHALFAOUI AP2"]
[null,"11h20                 12h 50","CHIMIE MINERALE©","BENBOUABDALLAH","AP2","CHIMIE MINERALE© BENBOUABDALLAH AP2","CHIMIE MINERALE©","BENBOUABDALLAH","AP2","CHIMIE MINERALE© BENBOUABDALLAH AP2","CHIMIE MINERALE©","BENBOUABDALLAH","AP2","CHIMIE MINERALE© BENBOUABDALLAH AP2","CHIMIE MINERALE©","BENBOUABDALLAH","AP2","CHIMIE MINERALE© BENBOUABDALLAH AP2"]
[null,"13h 00              14h 30","DESSIN(TP)","X","AT23","DESSIN(TP) X AT23","CHIMIE MINERALE(TD)","X","B41","CHIMIE MINERALE(TD) X B41",null,null,null,null,"MATHEMATIQUE(TD)","X","B47","MATHEMATIQUE(TD) X B47"]
[null,"14h 40              16h 10","DESSIN(TP)","X","AT23","DESSIN(TP) X AT23",null,null,null,null,"MATHEMATIQUE(TD)","X","B48","MATHEMATIQUE(TD) X B48"]
[null,"16h 20              17h 50"]
["Lundi","8h 00                    9h 30","MEC DES FLUIDES©","SAHMOUNE","AP4","MEC DES FLUIDES© SAHMOUNE AP4","MEC DES FLUIDES©","SAHMOUNE","AP4","MEC DES FLUIDES© SAHMOUNE AP4","MEC DES FLUIDES©","SAHMOUNE","AP4","MEC DES FLUIDES© SAHMOUNE AP4","MEC DES FLUIDES©","SAHMOUNE","AP4","MEC DES FLUIDES© SAHMOUNE AP4"]
[null,"9h 40                  11h 10",null,null,null,null,"PROBAT ET STAT(TD)","TRECHE","B213","PROBAT ET STAT(TD) TRECHE B213",null,null,null,null,"ONDES ET VIBR(TP)","X","B312","ONDES ET VIBR(TP) X B312"]
[null,"11h20                12h 50","MATHEMATIQUE©","KHALFAOUI","AP3","MATHEMATIQUE© KHALFAOUI AP3","MATHEMATIQUE©","KHALFAOUI","AP3","MATHEMATIQUE© KHALFAOUI AP3","MATHEMATIQUE©","KHALFAOUI","AP3","MATHEMATIQUE© KHALFAOUI AP3","MATHEMATIQUE©","KHALFAOUI","AP3","MATHEMATIQUE© KHALFAOUI AP3"]
[null,"13h 00              14h 30","PROBAT ET STAT(TD)","TRECHE","C43","PROBAT ET STAT(TD) TRECHE C43","VIB OND(TP)","X","X","VIB OND(TP) X X","DESSIN(TP)","X","AT22","DESSIN(TP) X AT22","INFORMATIQUE(TP)","X","RC9/A","INFORMATIQUE(TP) X RC9/A"]
[null,"14h 40              16h 10","MATHEMATIQUE(TD)","X","C32","MATHEMATIQUE(TD) X C32",null,null,null,null,"DESSIN(TP)","X","AT22","DESSIN(TP) X AT22"]
[null,"16h 20              17h 50"]
["Mardi","8h 00                    9h 30","HSI-INSTAL-INDUST©","KORSO","AP4","HSI-INSTAL-INDUST© KORSO AP4","HSI-INSTAL-INDUST©","KORSO","AP4","HSI-INSTAL-INDUST© KORSO AP4","HSI-INSTAL-INDUST©","KORSO","AP4","HSI-INSTAL-INDUST© KORSO AP4","HSI-INSTAL-INDUST©","KORSO","AP4","HSI-INSTAL-INDUST© KORSO AP4"]
[null,"9h 40                 11h 10","INFORMATIQUE(TP)","X","A26","INFORMATIQUE(TP) X A26","INFORMATIQUE(TP)","X","A27","INFORMATIQUE(TP) X A27","ONDES ET VIBR(TP)","X","C48","ONDES ET VIBR(TP) X C48","ONDES ET VIBR(TD)","X","C310","ONDES ET VIBR(TD) X C310"]
[null,"11h20                12h 50","VIB OND(TP)","YAMANI","C412","VIB OND(TP) YAMANI C412","ANGLAIS©","X","A11","ANGLAIS© X A11","VIB OND(TD)","X","A13","VIB OND(TD) X A13"]
[null,"13h 00              14h 30","ANGLAIS©","X","C412","ANGLAIS© X C412",null,null,null,null,null,null,null,null,"DESSIN(TP)","X","AT22","DESSIN(TP) X AT22"]
[null,"14h 40              16h 10",null,null,null,null,null,null,null,null,"INFORMATIQUE(TP)","X","B210","INFORMATIQUE(TP) X B210","DESSIN(TP)","X","AT22","DESSIN(TP) X AT22"]
[null,"16h 20              17h 50"]
["Mercredi","8h 00                    9h 30","ONDES ET VIBR©","RAHMOUNE","AP1","ONDES ET VIBR© RAHMOUNE AP1","ONDES ET VIBR©","RAHMOUNE","AP1","ONDES ET VIBR© RAHMOUNE AP1","ONDES ET VIBR©","RAHMOUNE","AP1","ONDES ET VIBR© RAHMOUNE AP1","ONDES ET VIBR©","RAHMOUNE","AP1","ONDES ET VIBR© RAHMOUNE AP1"]
[null,"9h 40                 11h 10","PROBAT ET STAT©","RIH","AP5","PROBAT ET STAT© RIH AP5","PROBAT ET STAT©","RIH","AP5","PROBAT ET STAT© RIH AP5","PROBAT ET STAT©","RIH","AP5","PROBAT ET STAT© RIH AP5","PROBAT ET STAT©","RIH","AP5","PROBAT ET STAT© RIH AP5"]
[null,"11h20                12h 50","ONDES ET VIBR(TD)","X","X","ONDES ET VIBR(TD) X X",null,null,null,null,"M-D-F(TD)","DAHOU-M","B32","M-D-F(TD) DAHOU-M B32"]
[null,"13h 00              14h 30",null,null,null,null,"MATHEMATIQUE(TD)","X","C45","MATHEMATIQUE(TD) X C45",null,null,null,null,"M-D-F(TD)","DAHOU-M","X","M-D-F(TD) DAHOU-M X"]
[null,"14h 40              16h 10",null,null,null,null,"M-D-F(TD)","DAHOU-M","X","M-D-F(TD) DAHOU-M X"]
[null,"16h 20              17h 50"]
["Jeudi","8h 00                     9h 30","REGLEMENT ET NORMES©","KORSO","AP2","REGLEMENT ET NORMES© KORSO AP2","REGLEMENT ET NORMES©","KORSO","AP2","REGLEMENT ET NORMES© KORSO AP2","REGLEMENT ET NORMES©","KORSO","AP2","REGLEMENT ET NORMES© KORSO AP2","REGLEMENT ET NORMES©","KORSO","AP2","REGLEMENT ET NORMES© KORSO AP2"]
[null,"9h 40                  11h 10","CHIMIE MINERALE(TD)","X","X","CHIMIE MINERALE(TD) X X","ONDES ET VIBR(TD)","X","X","ONDES ET VIBR(TD) X X"]
[null,"11h20                 12h 50","M-D-F(TD)","DAHOU-M","A23","M-D-F(TD) DAHOU-M A23"]
[null,"13h 00              14h 30",null,null,null,null,"DESSIN(TP)","X","AT24","DESSIN(TP) X AT24"]
[null,"14h 40              16h 10",null,null,null,null,"DESSIN(TP)","X","AT24","DESSIN(TP) X AT24"]
[null,"16h 20              17h 50"]
["Samedi","8h 00                     9h 30",null,null,null,null,null,null,null,null,"PROBAT ET STAT(TD)","TRECHE","B310","PROBAT ET STAT(TD) TRECHE B310","CHIMIE MINERALE(TD)","X","B313","CHIMIE MINERALE(TD) X B313"]
[null,"9h 40                  11h 10",null,null,null,null,null,null,null,null,"CHIMIE MINERALE(TD)","X","B310","CHIMIE MINERALE(TD) X B310","ANGLAIS©","X","B313","ANGLAIS© X B313"]
[null,"11h20                 12h 50",null,null,null,null,null,null,null,null,"ANGLAIS©","X","B310","ANGLAIS© X B310","PROBAT ET STAT(TD)","LATRECHE","B313","PROBAT ET STAT(TD) LATRECHE B313"]

{"sheet":"TC S36","index":28,"n_rows":36,"n_cols":22,"rows_kept":36,"cut":false,"hidden":false,"merged":[[27,0,32,0],[33,0,35,0],[0,0,0,1],[1,0,1,1],[3,0,8,0],[9,0,14,0],[15,0,20,0],[21,0,26,0]]}
["Filière:",null,null,null,null,"ELECTROMECANIQUE",null,null,null,"G INDUSTRIELLE"]
["Section:",null,null,null,null,"Licence 2ème année",null,null,null,null,null,null,null,{"$f":"NOW()","v":"2018-09-09T13:48:19.280"}]
["Jour","SEANCES","LEMEC-17/A","Enseignant","Salle","LEMEC-17/A","LEMEC-17/B","Enseignant","Salle","LEMEC-17/B","LEMEC-17/C","Enseignant","Salle","LEMEC-17/C","LGI-17","Enseignant","Salle","LGI-17","X","Enseignant","Salle","X"]
["Dimanche","8h 00                     9h 30","MATHEMATIQUE©","AZZAL","AP3","MATHEMATIQUE© AZZAL AP3","MATHEMATIQUE©","AZZAL","AP3","MATHEMATIQUE© AZZAL AP3","MATHEMATIQUE©","AZZAL","AP3","MATHEMATIQUE© AZZAL AP3","MATHEMATIQUE©","AZZAL","AP3","MATHEMATIQUE© AZZAL AP3"]
[null,"9h 40                 11h 10",null,null,null,null,"PROBAT-STAT(TD)","ADICHE","B38","PROBAT-STAT(TD) ADICHE B38","ELECTRONIQUEI FOND(TD)","BOUNAB","A15","ELECTRONIQUEI FOND(TD) BOUNAB A15"]
[null,"11h20                 12h 50","ELECTRONIQUE-FOND(TD)","BOUNAB","C32","ELECTRONIQUE-FOND(TD) BOUNAB C32",null,null,null,null,null,null,null,null,"PROBAT-STAT(TD)","ADICHE","B38","PROBAT-STAT(TD) ADICHE B38"]
[null,"13h 00              14h 30","ENNERGIES ET ENVIRONNEMENT©","BAHLOUL","AP4","ENNERGIES ET ENVIRONNEMENT© BAHLOUL AP4","ENNERGIES ET ENVIRONNEMENT©","BAHLOUL","AP4","ENNERGIES ET ENVIRONNEMENT© BAHLOUL AP4","ENNERGIES ET ENVIRONNEMENT©","BAHLOUL","AP4","ENNERGIES ET ENVIRONNEMENT© BAHLOUL AP4","ENNERGIES ET ENVIRONNEMENT©","BAHLOUL","AP4","ENNERGIES ET ENVIRONNEMENT© BAHLOUL AP4"]
[null,"14h 40              16h 10"]
[null,"16h 20              17h 50"]
["Lundi","8h 00                    9h 30",null,null,null,null,null,null,null,null,"ONDES ET VIBR(TD)","MELLOUSSI","C32","ONDES ET VIBR(TD) MELLOUSSI C32"]
[null,"9h 40                  11h 10","ONDES ET VIBR©","RAHMOUNE","AP6","ONDES ET VIBR© RAHMOUNE AP6","ONDES ET VIBR©","RAHMOUNE","AP6","ONDES ET VIBR© RAHMOUNE AP6","ONDES ET VIBR©","RAHMOUNE","AP6","ONDES ET VIBR© RAHMOUNE AP6","ONDES ET VIBR©","RAHMOUNE","AP6","ONDES ET VIBR© RAHMOUNE AP6"]
[null,"11h20                12h 50","ELEC-TECH-FOND©","RAHMOUNE","AP6","ELEC-TECH-FOND© RAHMOUNE AP6","ELEC-TECH-FOND©","RAHMOUNE","AP6","ELEC-TECH-FOND© RAHMOUNE AP6","ELEC-TECH-FOND©","RAHMOUNE","AP6","ELEC-TECH-FOND© RAHMOUNE AP6","ELEC-TECH-FOND©","RAHMOUNE","AP6","ELEC-TECH-FOND© RAHMOUNE AP6"]
[null,"13h 00              14h 30","ONDES ET VIBR(TD)","MELLOUSSI","A13","ONDES ET VIBR(TD) MELLOUSSI A13",null,null,null,null,"ANGLAIS©","DAOUALI","A15","ANGLAIS© DAOUALI A15"]
[null,"14h 40              16h 10",null,null,null,null,"ONDES ET VIBR(TD)","MELLOUSSI","A15","ONDES ET VIBR(TD) MELLOUSSI A15",null,null,null,null,"ANGLAIS©","DAOUALI","A13","ANGLAIS© DAOUALI A13"]
[null,"16h 20              17h 50"]
["Mardi","8h 00                    9h 30","ELECTRONIQUE-FOND©","MELLAL","AP5","ELECTRONIQUE-FOND© MELLAL AP5","ELECTRONIQUE-FOND©","MELLAL","AP5","ELECTRONIQUE-FOND© MELLAL AP5","ELECTRONIQUE-FOND©","MELLAL","AP5","ELECTRONIQUE-FOND© MELLAL AP5","ELECTRONIQUE-FOND©","MELLAL","AP5","ELECTRONIQUE-FOND© MELLAL AP5"]
[null,"9h 40                 11h 10","PROBAT ET STAT©","ADICHE","AP5","PROBAT ET STAT© ADICHE AP5","PROBAT ET STAT©","ADICHE","AP5","PROBAT ET STAT© ADICHE AP5","PROBAT ET STAT©","ADICHE","AP5","PROBAT ET STAT© ADICHE AP5","PROBAT ET STAT©","ADICHE","AP5","PROBAT ET STAT© ADICHE AP5"]
[null,"11h20                12h 50","MATHEMATIQUE(TD)","AZZAL","B31","MATHEMATIQUE(TD) AZZAL B31","INFORMATIQUE(TP)","AGGAD","B210","INFORMATIQUE(TP) AGGAD B210"]
[null,"13h 00              14h 30",null,null,null,null,null,null,null,null,"ELECTRONIQUE(TP);ELECTROTECH(TP)","AGGAD;KANTAS","AT11;C315","ELECTRONIQUE(TP) AGGAD AT11\nELECTROTECH(TP) KANTAS C315","INFORMATIQUE(TP)","MECHKRA","RC9/A","INFORMATIQUE(TP) MECHKRA RC9/A"]
[null,"14h 40              16h 10",null,null,null,null,"ELECTRONIQUE(TP);ELECTROTECH(TP)","AGGAD;KANTAS","AT11;C315","ELECTRONIQUE(TP) AGGAD AT11\nELECTROTECH(TP) KANTAS C315",null,null,null,null,"ONDES ET VIBR(TD)","MELLOUSSI","A16","ONDES ET VIBR(TD) MELLOUSSI A16"]
[null,"16h 20              17h 50"]
["Mercredi","8h 00                    9h 30","MATHEMATIQUE(TD)","AZZAL","C412","MATHEMATIQUE(TD) AZZAL C412",null,null,null,null,null,null,null,null,"ELECTRONIQUE(TP);ELECTROTECH(TP)","AGGAD;KANTAS","AT11;C315","ELECTRONIQUE(TP) AGGAD AT11\nELECTROTECH(TP) KANTAS C315"]
[null,"9h 40                 11h 10","MATHEMATIQUE©","AZZAL","AP5","MATHEMATIQUE© AZZAL AP5","MATHEMATIQUE©","AZZAL","AP5","MATHEMATIQUE© AZZAL AP5","MATHEMATIQUE©","AZZAL","AP5","MATHEMATIQUE© AZZAL AP5","MATHEMATIQUE©","AZZAL","AP5","MATHEMATIQUE© AZZAL AP5"]
[null,"11h20                12h 50","ELECTRONIQUE(TP);ELECTROTECH(TP)","AGGAD;KANTAS","AT11;C315","ELECTRONIQUE(TP) AGGAD AT11\nELECTROTECH(TP) KANTAS C315"]
[null,"13h 00              14h 30","ETAT DE  L'ART  DE G-ELECT©","ALEM","AP5","ETAT DE  L'ART  DE G-ELECT© ALEM AP5","ETAT DE  L'ART  DE G-ELECT©","ALEM","AP5","ETAT DE  L'ART  DE G-ELECT© ALEM AP5","ETAT DE  L'ART  DE G-ELECT©","ALEM","AP5","ETAT DE  L'ART  DE G-ELECT© ALEM AP5","ETAT DE  L'ART  DE G-ELECT©","ALEM","AP5","ETAT DE  L'ART  DE G-ELECT© ALEM AP5"]
[null,"14h 40              16h 10","INFORMATIQUE(TP)","AGGAD","RC9/A","INFORMATIQUE(TP) AGGAD RC9/A"]
[null,"16h 20              17h 50"]
["Jeudi","8h 00                     9h 30","ELECTECHNIQUE-FOND(TD)","HIRECHE","RC13","ELECTECHNIQUE-FOND(TD) HIRECHE RC13","ELECTRONIQUE-FOND(TD)","BOUNAB","B32","ELECTRONIQUE-FOND(TD) BOUNAB B32","INFORMATIQUE(TP)","MECHAKRA","RC9/A","INFORMATIQUE(TP) MECHAKRA RC9/A","MATHEMATIQUE(TD)","AZZAL","B39","MATHEMATIQUE(TD) AZZAL B39"]
[null,"9h 40                  11h 10",null,null,null,null,"MATHEMATIQUE(TD)","AZZAL","B32","MATHEMATIQUE(TD) AZZAL B32","PROBAT-STAT(TD)","ADICHE","B35","PROBAT-STAT(TD) ADICHE B35","ELECTECHNIQUE FOND(TD)","HIRECHE","B39","ELECTECHNIQUE FOND(TD) HIRECHE B39"]
[null,"11h20                 12h 50","PROBAT-STAT(TD)","ADICHE","B32","PROBAT-STAT(TD) ADICHE B32",null,null,null,null,"MATHEMATIQUE(TD)","AZZAL","A21","MATHEMATIQUE(TD) AZZAL A21","ELECTRONIQUE-FOND(TD)","BOUNAB","B39","ELECTRONIQUE-FOND(TD) BOUNAB B39"]
[null,"13h 00              14h 30","OND ET VIB(TP)","CHELLIL-S","AT13","OND ET VIB(TP) CHELLIL-S AT13","ELECTECHNIQUE-FOND(TD)","HIRECHE","C32","ELECTECHNIQUE-FOND(TD) HIRECHE C32"]
[null,"14h 40              16h 10",null,null,null,null,null,null,null,null,null,null,null,null,"OND ET VIB(TP)","CHELLIL-S","B39","OND ET VIB(TP) CHELLIL-S B39"]
[null,"16h 20              17h 50"]
["Samedi","8h 00                     9h 30"]
[null,"9h 40                  11h 10","ANGLAIS©","DAOUALI","B39","ANGLAIS© DAOUALI B39","OND ET VIB(TP)","CHELLIL-S","AT13","OND ET VIB(TP) CHELLIL-S AT13","ELECTECHNIQUE-FOND(TD)","HIRECHE","C48","ELECTECHNIQUE-FOND(TD) HIRECHE C48"]
[null,"11h20                 12h 50",null,null,null,null,"ANGLAIS©","DAOUALI","B311","ANGLAIS© DAOUALI B311","OND ET VIB(TP)","CHELLIL-S","AT13","OND ET VIB(TP) CHELLIL-S AT13"]

{"sheet":"TC S38","index":29,"n_rows":36,"n_cols":18,"rows_kept":36,"cut":false,"hidden":false,"merged":[[27,0,32,0],[33,0,35,0],[0,0,0,1],[1,0,1,1],[3,0,8,0],[9,0,14,0],[15,0,20,0],[21,0,26,0]]}
["Filière:",null,null,null,null,"G.Mécanique"]
["Section:",null,null,null,null,"Licence 2ème année",null,null,null,null,null,null,null,{"$f":"NOW()","v":"2018-09-09T13:48:19.280"}]
["Jour","SEANCES","LGM-17/A","Enseignant","Salle","LGM-17/A","LGM-17/B","Enseignant","Salle","LGM-17/B","LGM-17/C","Enseignant","Salle","LGM-17/C","LGM-17/D","Enseignant","Salle","LGM-17/D"]
["Dimanche","8h 00                     9h 30","MATHEMATIQUE©","KHALFAOUI","AP4","MATHEMATIQUE© KHALFAOUI AP4","MATHEMATIQUE©","KHALFAOUI","AP4","MATHEMATIQUE© KHALFAOUI AP4","MATHEMATIQUE©","KHALFAOUI","AP4","MATHEMATIQUE© KHALFAOUI AP4","MATHEMATIQUE©","KHALFAOUI","AP4","MATHEMATIQUE© KHALFAOUI AP4"]
[null,"9h 40                 11h 10",null,null,null,null,null,null,null,null,"INFORMATIQUE(TP)","BENZAID","RC9/B","INFORMATIQUE(TP) BENZAID RC9/B","MATHEMATIQUE(TD)","MESSAOUDI-H","C45","MATHEMATIQUE(TD) MESSAOUDI-H C45"]
[null,"11h20                 12h 50","MEC DES FLUIDES(TD)","MERAH","C42","MEC DES FLUIDES(TD) MERAH C42",null,null,null,null,"PROBAT-STAT(TD)","BOUHDJAR","C412","PROBAT-STAT(TD) BOUHDJAR C412","OND ET VIB(TP)","TOUATI-A","B311","OND ET VIB(TP) TOUATI-A B311"]
[null,"13h 00              14h 30","OND ET VIB(TP)","TOUATI-A","C412","OND ET VIB(TP) TOUATI-A C412","DESSIN(TP)","SEMMOUD","AT22","DESSIN(TP) SEMMOUD AT22"]
[null,"14h 40              16h 10",null,null,null,null,"DESSIN(TP)","SEMMOUD","AT22","DESSIN(TP) SEMMOUD AT22","ONDES ET VIBR(TD)","REGUEB","C412","ONDES ET VIBR(TD) REGUEB C412","PROBAT-STAT(TD)","BOUHDJAR","B311","PROBAT-STAT(TD) BOUHDJAR B311"]
[null,"16h 20              17h 50"]
["Lundi","8h 00                    9h 30","PROBAT ET STAT©","MESSAOUDI-H","AP1","PROBAT ET STAT© MESSAOUDI-H AP1","PROBAT ET STAT©","MESSAOUDI-H","AP1","PROBAT ET STAT© MESSAOUDI-H AP1","PROBAT ET STAT©","MESSAOUDI-H","AP1","PROBAT ET STAT© MESSAOUDI-H AP1","PROBAT ET STAT©","MESSAOUDI-H","AP1","PROBAT ET STAT© MESSAOUDI-H AP1"]
[null,"9h 40                  11h 10",null,null,null,null,"ONDES ET VIBR(TD)","REGUEB","B41","ONDES ET VIBR(TD) REGUEB B41","M-D-F(TD)","BOUARAB","B414","M-D-F(TD) BOUARAB B414"]
[null,"11h20                12h 50","PROBAT-STAT(TD)","BOUHDJAR","B310","PROBAT-STAT(TD) BOUHDJAR B310","MEC DES FLUIDES(TD)","BOUARAB","B41","MEC DES FLUIDES(TD) BOUARAB B41",null,null,null,null,"ONDES ET VIBR(TD)","BENBELLIL","B312","ONDES ET VIBR(TD) BENBELLIL B312"]
[null,"13h 00              14h 30","METROLOGIE©","TALHI","AP5","METROLOGIE© TALHI AP5","METROLOGIE©","TALHI","AP5","METROLOGIE© TALHI AP5","METROLOGIE©","TALHI","AP5","METROLOGIE© TALHI AP5","METROLOGIE©","TALHI","AP5","METROLOGIE© TALHI AP5"]
[null,"14h 40              16h 10","ANGLAIS©","SMAIL","B41","ANGLAIS© SMAIL B41"]
[null,"16h 20              17h 50"]
["Mardi","8h 00                    9h 30","MEC DES FLUIDES©","MANSOURI-K","AP6","MEC DES FLUIDES© MANSOURI-K AP6","MEC DES FLUIDES©","MANSOURI-K","AP6","MEC DES FLUIDES© MANSOURI-K AP6","MEC DES FLUIDES©","MANSOURI-K","AP6","MEC DES FLUIDES© MANSOURI-K AP6","MEC DES FLUIDES©","MANSOURI-K","AP6","MEC DES FLUIDES© MANSOURI-K AP6"]
[null,"9h 40                 11h 10","ONDES ET VIBR©","MAAMIR","AP6","ONDES ET VIBR© MAAMIR AP6","ONDES ET VIBR©","MAAMIR","AP6","ONDES ET VIBR© MAAMIR AP6","ONDES ET VIBR©","MAAMIR","AP6","ONDES ET VIBR© MAAMIR AP6","ONDES ET VIBR©","MAAMIR","AP6","ONDES ET VIBR© MAAMIR AP6"]
[null,"11h20                12h 50"]
[null,"13h 00              14h 30","ONDES ET VIBR(TD)","REGUEB","RC13","ONDES ET VIBR(TD) REGUEB RC13","OND ET VIB(TP)","TOUATI-A","B312","OND ET VIB(TP) TOUATI-A B312","ANGLAIS©","HAMADI","B311","ANGLAIS© HAMADI B311"]
[null,"14h 40              16h 10","INFORMATIQUE(TP)","BENZAID","RC9/A","INFORMATIQUE(TP) BENZAID RC9/A","ANGLAIS©","HAMADI","B312","ANGLAIS© HAMADI B312","OND ET VIB(TP)","TOUATI-A","B38","OND ET VIB(TP) TOUATI-A B38"]
[null,"16h 20              17h 50"]
["Mercredi","8h 00                    9h 30",null,null,null,null,null,null,null,null,"DESSIN(TP)","TALHI","AT23","DESSIN(TP) TALHI AT23","INFORMATIQUE(TP)","RACHEDI","A27","INFORMATIQUE(TP) RACHEDI A27"]
[null,"9h 40                 11h 10",null,null,null,null,null,null,null,null,"DESSIN(TP)","TALHI","AT23","DESSIN(TP) TALHI AT23"]
[null,"11h20                12h 50","MECANIQUE RATIONNEL©","HACHEMANE","AP5","MECANIQUE RATIONNEL© HACHEMANE AP5","MECANIQUE RATIONNEL©","HACHEMANE","AP5","MECANIQUE RATIONNEL© HACHEMANE AP5","MECANIQUE RATIONNEL©","HACHEMANE","AP5","MECANIQUE RATIONNEL© HACHEMANE AP5","MECANIQUE RATIONNEL©","HACHEMANE","AP5","MECANIQUE RATIONNEL© HACHEMANE AP5"]
[null,"13h 00              14h 30","DESSIN(TP)","AITCHIKH","AT23","DESSIN(TP) AITCHIKH AT23","MECANIQUE RATIONNEL(TD)","BENDJEDDOU","B38","MECANIQUE RATIONNEL(TD) BENDJEDDOU B38"]
[null,"14h 40              16h 10","DESSIN(TP)","AITCHIKH","AT23","DESSIN(TP) AITCHIKH AT23"]
[null,"16h 20              17h 50"]
["Jeudi","8h 00                     9h 30",null,null,null,null,null,null,null,null,null,null,null,null,"ANGLAIS©","SMAIL","B311","ANGLAIS© SMAIL B311"]
[null,"9h 40                  11h 10","MATHEMATIQUE(TD)","MESSAOUDI-H","A11","MATHEMATIQUE(TD) MESSAOUDI-H A11","INFORMATIQUE(TP)","RACHEDI","A26","INFORMATIQUE(TP) RACHEDI A26",null,null,null,null,"MECANIQUE RATIONNEL(TD)","BENDJEDDOU","B415","MECANIQUE RATIONNEL(TD) BENDJEDDOU B415"]
[null,"11h20                 12h 50","MECANIQUE RATIONNEL(TD)","BENDJEDDOU","A24","MECANIQUE RATIONNEL(TD) BENDJEDDOU A24","PROBAT-STAT(TD)","DJELLAB","C45","PROBAT-STAT(TD) DJELLAB C45","MATHEMATIQUE(TD)","MESSAOUDI-H","B415","MATHEMATIQUE(TD) MESSAOUDI-H B415","MDF(TD) ","BOUARAB","B312","MDF(TD)  BOUARAB B312"]
[null,"13h 00              14h 30",null,null,null,null,"MATHEMATIQUE(TD)","MESSAOUDI-H","C45","MATHEMATIQUE(TD) MESSAOUDI-H C45","MECANIQUE RATIONNEL(TD)","BENDJEDDOU","B415","MECANIQUE RATIONNEL(TD) BENDJEDDOU B415","DESSIN(TP)","BELLAL","AT22","DESSIN(TP) BELLAL AT22"]
[null,"14h 40              16h 10",null,null,null,null,null,null,null,null,null,null,null,null,"DESSIN(TP)","BELLAL","AT22","DESSIN(TP) BELLAL AT22"]
[null,"16h 20              17h 50"]
["Samedi","8h 00                     9h 30"]
[null,"9h 40                  11h 10","TECHNOLOGIE DE BASE©","TOURAB","AP6","TECHNOLOGIE DE BASE© TOURAB AP6","TECHNOLOGIE DE BASE©","TOURAB","AP6","TECHNOLOGIE DE BASE© TOURAB AP6","TECHNOLOGIE DE BASE©","TOURAB","AP6","TECHNOLOGIE DE BASE© TOURAB AP6","TECHNOLOGIE DE BASE©","TOURAB","AP6","TECHNOLOGIE DE BASE© TOURAB AP6"]
[null,"11h20                 12h 50","MATHEMATIQUE©","KHALFAOUI","AP6","MATHEMATIQUE© KHALFAOUI AP6","MATHEMATIQUE©","KHALFAOUI","AP6","MATHEMATIQUE© KHALFAOUI AP6","MATHEMATIQUE©","KHALFAOUI","AP6","MATHEMATIQUE© KHALFAOUI AP6","MATHEMATIQUE©","KHALFAOUI","AP6","MATHEMATIQUE© KHALFAOUI AP6"]

{"sheet":"TC S39","index":30,"n_rows":36,"n_cols":18,"rows_kept":36,"cut":false,"hidden":false,"merged":[[27,0,32,0],[33,0,35,0],[1,0,1,1],[3,0,8,0],[9,0,14,0],[15,0,20,0],[21,0,26,0]]}
["Dep:G-Mécanique",null,null,null,null,"Filière:G.Mécanique"]
["Section:",null,null,null,null,"Licence 2ème année",null,null,null,null,null,null,null,{"$f":"NOW()","v":"2018-09-09T13:48:19.280"}]
["Jour","SEANCES","LGM-17/E","Enseignant","Salle","LGM-17/E","LGM-17/F","Enseignant","Salle","LGM-17/F","LGM-17/G","Enseignant","Salle","LGM-17/G","LGM-17/H","Enseignant","Salle","LGM-17/H"]
["Dimanche","8h 00                     9h 30","DESSIN(TP)","SEMMOUD","AT22","DESSIN(TP) SEMMOUD AT22",null,null,null,null,"INFORMATIQUE(TP)","BENZAID","RC9/B","INFORMATIQUE(TP) BENZAID RC9/B","DESSIN(TP)","BELHADEF","AT24","DESSIN(TP) BELHADEF AT24"]
[null,"9h 40                 11h 10","DESSIN(TP)","SEMMOUD","AT22","DESSIN(TP) SEMMOUD AT22",null,null,null,null,null,null,null,null,"DESSIN(TP)","BELHADEF","AT24","DESSIN(TP) BELHADEF AT24"]
[null,"11h20                 12h 50",null,null,null,null,null,null,null,null,"MECANIQUE RATIONNEL(TD)","AGUIB","A21","MECANIQUE RATIONNEL(TD) AGUIB A21"]
[null,"13h 00              14h 30","PROBAT ET STAT©","MESSAOUDI-H","AP6","PROBAT ET STAT© MESSAOUDI-H AP6","PROBAT ET STAT©","MESSAOUDI-H","AP6","PROBAT ET STAT© MESSAOUDI-H AP6","PROBAT ET STAT©","MESSAOUDI-H","AP6","PROBAT ET STAT© MESSAOUDI-H AP6","PROBAT ET STAT©","MESSAOUDI-H","AP6","PROBAT ET STAT© MESSAOUDI-H AP6"]
[null,"14h 40              16h 10","MATHEMATIQUE©","KHALFAOUI","AP6","MATHEMATIQUE© KHALFAOUI AP6","MATHEMATIQUE©","KHALFAOUI","AP6","MATHEMATIQUE© KHALFAOUI AP6","MATHEMATIQUE©","KHALFAOUI","AP6","MATHEMATIQUE© KHALFAOUI AP6","MATHEMATIQUE©","KHALFAOUI","AP6","MATHEMATIQUE© KHALFAOUI AP6"]
[null,"16h 20              17h 50"]
["Lundi","8h 00                    9h 30","MATHEMATIQUE©","KHALFAOUI","AP5","MATHEMATIQUE© KHALFAOUI AP5","MATHEMATIQUE©","KHALFAOUI","AP5","MATHEMATIQUE© KHALFAOUI AP5","MATHEMATIQUE©","KHALFAOUI","AP5","MATHEMATIQUE© KHALFAOUI AP5","MATHEMATIQUE©","KHALFAOUI","AP5","MATHEMATIQUE© KHALFAOUI AP5"]
[null,"9h 40                  11h 10","ONDES ET VIBR©","RATNI","AP5","ONDES ET VIBR© RATNI AP5","ONDES ET VIBR©","RATNI","AP5","ONDES ET VIBR© RATNI AP5","ONDES ET VIBR©","RATNI","AP5","ONDES ET VIBR© RATNI AP5","ONDES ET VIBR©","RATNI","AP5","ONDES ET VIBR© RATNI AP5"]
[null,"11h20                12h 50",null,null,null,null,"ONDES ET VIBR(TD)","IRINISLIMANE","C42","ONDES ET VIBR(TD) IRINISLIMANE C42","MEC DES FLUIDES(TD)","DAIMALLAH","B37","MEC DES FLUIDES(TD) DAIMALLAH B37","MATHEMATIQUE(TD)","MESSAOUDI-H","B415","MATHEMATIQUE(TD) MESSAOUDI-H B415"]
[null,"13h 00              14h 30","MEC DES FLUIDES(TD)","BOUARAB","C32","MEC DES FLUIDES(TD) BOUARAB C32","MATHEMATIQUE(TD)","MESSAOUDI-H","C45","MATHEMATIQUE(TD) MESSAOUDI-H C45"]
[null,"14h 40              16h 10",null,null,null,null,null,null,null,null,"MATHEMATIQUE(TD)","MESSAOUDI-H","C48","MATHEMATIQUE(TD) MESSAOUDI-H C48"]
[null,"16h 20              17h 50"]
["Mardi","8h 00                    9h 30","ANGLAIS©","HAMADI","B413","ANGLAIS© HAMADI B413","DESSIN(TP)","BELHADEF","AT22","DESSIN(TP) BELHADEF AT22","ONDES ET VIBR(TP)","IRINISLIMANE","C45","ONDES ET VIBR(TP) IRINISLIMANE C45","PROBAT ET STAT(TD)","BELAID","B46","PROBAT ET STAT(TD) BELAID B46"]
[null,"9h 40                 11h 10","ONDES ET VIBR(TD)","IRINISLIMANE","A21","ONDES ET VIBR(TD) IRINISLIMANE A21","DESSIN(TP)","BELHADEF","AT22","DESSIN(TP) BELHADEF AT22","ANGLAIS©","HAMADI","C32","ANGLAIS© HAMADI C32","MECANIQUE RATIONNEL(TD)","AGUIB","C45","MECANIQUE RATIONNEL(TD) AGUIB C45"]
[null,"11h20                12h 50",null,null,null,null,null,null,null,null,null,null,null,null,"ONDES ET VIBR(TP)","LOUNICI-H","C45","ONDES ET VIBR(TP) LOUNICI-H C45"]
[null,"13h 00              14h 30","MECANIQUE RATIONNEL©","HACHEMANE","AP6","MECANIQUE RATIONNEL© HACHEMANE AP6","MECANIQUE RATIONNEL©","HACHEMANE","AP6","MECANIQUE RATIONNEL© HACHEMANE AP6","MECANIQUE RATIONNEL©","HACHEMANE","AP6","MECANIQUE RATIONNEL© HACHEMANE AP6","MECANIQUE RATIONNEL©","HACHEMANE","AP6","MECANIQUE RATIONNEL© HACHEMANE AP6"]
[null,"14h 40              16h 10",null,null,null,null,"ONDES ET VIBR(TP)","CHEBBOUBA","B311","ONDES ET VIBR(TP) CHEBBOUBA B311"]
[null,"16h 20              17h 50"]
["Mercredi","8h 00                    9h 30","MECANIQUE DES FLUIDES©","MANSOURI-K","AP6","MECANIQUE DES FLUIDES© MANSOURI-K AP6","MECANIQUE DES FLUIDES©","MANSOURI-K","AP6","MECANIQUE DES FLUIDES© MANSOURI-K AP6","MECANIQUE DES FLUIDES©","MANSOURI-K","AP6","MECANIQUE DES FLUIDES© MANSOURI-K AP6","MECANIQUE DES FLUIDES©","MANSOURI-K","AP6","MECANIQUE DES FLUIDES© MANSOURI-K AP6"]
[null,"9h 40                 11h 10",null,null,null,null,"MECANIQUE RATIONNEL(TD)","TALAMALI","B35","MECANIQUE RATIONNEL(TD) TALAMALI B35","DESSIN(TP)","BELLAL","AT22","DESSIN(TP) BELLAL AT22","INFORMATIQUE(TP)","RACHEDI","RC9/A","INFORMATIQUE(TP) RACHEDI RC9/A"]
[null,"11h20                12h 50","MECANIQUE RATIONNEL(TD)","TALAMALI","C49","MECANIQUE RATIONNEL(TD) TALAMALI C49",null,null,null,null,"DESSIN(TP)","BELLAL","AT22","DESSIN(TP) BELLAL AT22"]
[null,"13h 00              14h 30","METROLOGIE©","TALHI","AP6","METROLOGIE© TALHI AP6","METROLOGIE©","TALHI","AP6","METROLOGIE© TALHI AP6","METROLOGIE©","TALHI","AP6","METROLOGIE© TALHI AP6","METROLOGIE©","TALHI","AP6","METROLOGIE© TALHI AP6"]
[null,"14h 40              16h 10"]
[null,"16h 20              17h 50"]
["Jeudi","8h 00                     9h 30","MATHEMATIQUE(TD)","MESSAOUDI-H","C32","MATHEMATIQUE(TD) MESSAOUDI-H C32","PROBAT-STAT(TD)","DJELLAB","C45","PROBAT-STAT(TD) DJELLAB C45"]
[null,"9h 40                  11h 10","PROBAT-STAT(TD)","DJELLAB","C32","PROBAT-STAT(TD) DJELLAB C32","MEC DES FLUIDES(TD)","BOUARAB","C45","MEC DES FLUIDES(TD) BOUARAB C45"]
[null,"11h20                 12h 50","INFORMATIQUE(TP)","RACHEDI","RC9/A","INFORMATIQUE(TP) RACHEDI RC9/A","ANGLAIS©","SMAIL","C42","ANGLAIS© SMAIL C42",null,null,null,null,"ONDES ET VIBR(TD)","BENBELLIL","A25","ONDES ET VIBR(TD) BENBELLIL A25"]
[null,"13h 00              14h 30",null,null,null,null,"INFORMATIQUE(TP)","RACHEDI","A27","INFORMATIQUE(TP) RACHEDI A27",null,null,null,null,"M-D-F(TD)","BOUARAB","A25","M-D-F(TD) BOUARAB A25"]
[null,"14h 40              16h 10"]
[null,"16h 20              17h 50"]
["Samedi","8h 00                     9h 30","TECHNOLOGIE DE BASE©","TOURAB","AP5","TECHNOLOGIE DE BASE© TOURAB AP5","TECHNOLOGIE DE BASE©","TOURAB","AP5","TECHNOLOGIE DE BASE© TOURAB AP5","TECHNOLOGIE DE BASE©","TOURAB","AP5","TECHNOLOGIE DE BASE© TOURAB AP5","TECHNOLOGIE DE BASE©","TOURAB","AP5","TECHNOLOGIE DE BASE© TOURAB AP5"]
[null,"9h 40                  11h 10","ONDES ET VIBR(TP)","IRINISLIMANE","B414","ONDES ET VIBR(TP) IRINISLIMANE B414",null,null,null,null,"PROBAT-STAT(TD)","BELAID","B31","PROBAT-STAT(TD) BELAID B31"]
[null,"11h20                 12h 50",null,null,null,null,null,null,null,null,"ONDES ET VIBR(TD)","IRINISLIMANE","B31","ONDES ET VIBR(TD) IRINISLIMANE B31","ANGLAIS©","HAMADI","B32","ANGLAIS© HAMADI B32"]

{"sheet":"TC S310","index":31,"n_rows":36,"n_cols":17,"rows_kept":36,"cut":false,"hidden":false,"merged":[[27,0,32,0],[33,0,35,0],[0,0,0,1],[1,0,1,1],[3,0,8,0],[9,0,14,0],[15,0,20,0],[21,0,26,0]]}
["Filière:",null,null,null,null,"G.Mécanique",null,null,null,null,null,null,null,{"$f":"TODAY()","v":"2018-09-09"}]
["Section:",null,null,null,null,"Licence 2ème année",null,null,null,{"$f":"NOW()","v":"2018-09-09T13:48:19.280"}]
["Jour","SEANCES","LGM-17/I","Enseignant","Salle","LGM-17/I","LGM-17/J","Enseignant","Salle","LGM-17/J","LGM-15/","Enseignant","Salle","LGM-15/","ST32","Enseignant","Salle"]
["Dimanche","8h 00                     9h 30","MATHEMATIQUE©","KHALFAOUI","AP4","MATHEMATIQUE© KHALFAOUI AP4"]
[null,"9h 40                 11h 10"]
[null,"11h20                 12h 50","INFORMATIQUE(TP)","BENZAID","RC9/B","INFORMATIQUE(TP) BENZAID RC9/B","MATHEMATIQUE(TD)","MESSAOUDI-H","B32","MATHEMATIQUE(TD) MESSAOUDI-H B32"]
[null,"13h 00              14h 30","PROBAT-STAT(TD)","BOUHDJAR","C49","PROBAT-STAT(TD) BOUHDJAR C49","PROBAT ET STAT©","MESSAOUDI-H","AP6","PROBAT ET STAT© MESSAOUDI-H AP6"]
[null,"14h 40              16h 10","MATHEMATIQUE(TD)","MESSAOUDI-H","C49","MATHEMATIQUE(TD) MESSAOUDI-H C49","MATHEMATIQUE©","KHALFAOUI","AP6","MATHEMATIQUE© KHALFAOUI AP6"]
[null,"16h 20              17h 50"]
["Lundi","8h 00                    9h 30","PROBAT ET STAT©","MESSAOUDI-H","AP1","PROBAT ET STAT© MESSAOUDI-H AP1","MATHEMATIQUE©","KHALFAOUI","AP5","MATHEMATIQUE© KHALFAOUI AP5"]
[null,"9h 40                  11h 10","ONDES ET VIBR(TD)","IRINISLIMANE","B46","ONDES ET VIBR(TD) IRINISLIMANE B46","ONDES ET VIBR©","RATNI","AP5","ONDES ET VIBR© RATNI AP5"]
[null,"11h20                12h 50","ANGLAIS©","SMAIL","B46","ANGLAIS© SMAIL B46"]
[null,"13h 00              14h 30","METROLOGIE©","TALHI","AP05","METROLOGIE© TALHI AP05","MDF(TD) ","DAIMALLAH","B311","MDF(TD)  DAIMALLAH B311"]
[null,"14h 40              16h 10"]
[null,"16h 20              17h 50"]
["Mardi","8h 00                    9h 30","MEC DES FLUIDES©","MANSOURI-K","AP6","MEC DES FLUIDES© MANSOURI-K AP6","DESSIN(TP)","TABLIT","AT24","DESSIN(TP) TABLIT AT24"]
[null,"9h 40                 11h 10","ONDES ET VIBR©","MAAMIR","AP6","ONDES ET VIBR© MAAMIR AP6","DESSIN(TP)","TABLIT","AT24","DESSIN(TP) TABLIT AT24"]
[null,"11h20                12h 50","MDF(TD) ","MERAH","C43","MDF(TD)  MERAH C43"]
[null,"13h 00              14h 30",null,null,null,null,"MECANIQUE RATIONNEL©","HACHEMANE","AP6","MECANIQUE RATIONNEL© HACHEMANE AP6"]
[null,"14h 40              16h 10"]
[null,"16h 20              17h 50"]
["Mercredi","8h 00                    9h 30","MECANIQUE RATIONNEL(TD)","TALAMALI","B310","MECANIQUE RATIONNEL(TD) TALAMALI B310","MECANIQUE DES FLUIDES©","MANSOURI-K","AP6","MECANIQUE DES FLUIDES© MANSOURI-K AP6"]
[null,"9h 40                 11h 10",null,null,null,null,"MECANIQUE RATIONNEL(TD)","TALAMALI","B310","MECANIQUE RATIONNEL(TD) TALAMALI B310"]
[null,"11h20                12h 50","MECANIQUE RATIONNEL©","HACHEMANE","AP5","MECANIQUE RATIONNEL© HACHEMANE AP5","INFORMATIQUE(TP)","RACHEDI","A27","INFORMATIQUE(TP) RACHEDI A27"]
[null,null,null,null,null,null,"METROLOGIE©","TALHI","AP6","METROLOGIE© TALHI AP6"]
[null,"14h 40              16h 10"]
[null,"16h 20              17h 50"]
["Jeudi","8h 00                     9h 30",null,null,null,null,"ONDES ET VIBR(TP)","TABLIT","B310","ONDES ET VIBR(TP) TABLIT B310"]
[null,"9h 40                  11h 10","DESSIN(TP)","HACHEMANE","AT24","DESSIN(TP) HACHEMANE AT24","ONDES ET VIBR(TD)","BENBELLIL","B310","ONDES ET VIBR(TD) BENBELLIL B310"]
[null,"11h20                 12h 50","DESSIN(TP)","HACHEMANE","AT24","DESSIN(TP) HACHEMANE AT24"]
[null,"13h 00              14h 30","OND ET VIB(TP)","GOUGAM","B47","OND ET VIB(TP) GOUGAM B47"]
[null,"14h 40              16h 10"]
[null,"16h 20              17h 50"]
["Samedi","8h 00                     9h 30",null,null,null,null,"TECHNOLOGIE DE BASE©","TOURAB","AP5","TECHNOLOGIE DE BASE© TOURAB AP5"]
[null,"9h 40                  11h 10","TECHNOLOGIE DE BASE©","TOURAB","AP6","TECHNOLOGIE DE BASE© TOURAB AP6","ANGLAIS©","HAMADI","B312","ANGLAIS© HAMADI B312"]
[null,"11h20                 12h 50","MATHEMATIQUE©","KHALFAOUI","AP6","MATHEMATIQUE© KHALFAOUI AP6","PROBAT ET STAT(TD)","BELAID","B312","PROBAT ET STAT(TD) BELAID B312"]